NUMERO_MANDATO;RIGA_MANDATO;QUIET;IMPORTO_RIGA;IMPORTO_MANDATO;BENEFICIARIO;CIG;TITOLO_PAGAMENTO;DATA_MANDATO;CAPITOLO;ARTICOLO;NUMERO_IMPEGNO;TITOLO;DESCR_TITOLO;LIVELLO_II;DESCR_LIVELLO_II;LIVELLO_III;DESCR_LIVELLO_III;LIVELLO_IV;DESCR_LIVELLO_IV;LIVELLO_V;DESCR_LIVELLO_V;DATA_PAG_EFF;
901;1;0;"7.392,00";"13.904,68";OMESSO NOMINATIVO NEL RISPETTO DELLA NORMATIVA SULLA PROTEZIONE DATI PERSONALI; ;D.G.R. N. 1465 DEL 08.10.2018 - BANDO REGIONALE PER LA CONCESSIONE DI CONTRIBUTI PER LA RIDUZIONE DEI CONSUMI DELLA FORNITURA DI ENERGIA ELETTRICA PER FINALITA' SOCIALI. LIQUIDAZIONE SOMME AI BENEFICIARI.;02-07-2019;502;0;317;1;Spese correnti;4;Trasferimenti correnti;2;Trasferimenti correnti a Famiglie;2;Interventi assistenziali;999;Altri assegni e sussidi assistenziali;02-07-2019;
901;2;0;"3.170,68";"13.904,68";OMESSO NOMINATIVO NEL RISPETTO DELLA NORMATIVA SULLA PROTEZIONE DATI PERSONALI; ;D.G.R. N. 1465 DEL 08.10.2018 - BANDO REGIONALE PER LA CONCESSIONE DI CONTRIBUTI PER LA RIDUZIONE DEI CONSUMI DELLA FORNITURA DI ENERGIA ELETTRICA PER FINALITA' SOCIALI. LIQUIDAZIONE SOMME AI BENEFICIARI.;02-07-2019;502;0;317;1;Spese correnti;4;Trasferimenti correnti;2;Trasferimenti correnti a Famiglie;2;Interventi assistenziali;999;Altri assegni e sussidi assistenziali;02-07-2019;
901;3;0;"3.342,00";"13.904,68";OMESSO NOMINATIVO NEL RISPETTO DELLA NORMATIVA SULLA PROTEZIONE DATI PERSONALI; ;D.G.R. N. 1465 DEL 08.10.2018 - BANDO REGIONALE PER LA CONCESSIONE DI CONTRIBUTI PER LA RIDUZIONE DEI CONSUMI DELLA FORNITURA DI ENERGIA ELETTRICA PER FINALITA' SOCIALI. LIQUIDAZIONE SOMME AI BENEFICIARI.;02-07-2019;502;0;317;1;Spese correnti;4;Trasferimenti correnti;2;Trasferimenti correnti a Famiglie;2;Interventi assistenziali;999;Altri assegni e sussidi assistenziali;02-07-2019;
902;1;0;"21.090,25";"21.090,25";CABI BROKER DI ASSICURAZIONI S.R.L.;Z9528E05B5;IMPEGNO E LIQUIDAZIONE DEI CONTRATTI ASSICURATIVI TRAMITE LO STUDIO DI INTERMEDIAZIONE ASSICURATIVA CABI BROKER S.R.L.  DI PADOVA - ANNO 2019;03-07-2019;35;0;350;1;Spese correnti;10;Altre spese correnti;4;Premi di assicurazione;1;Premi di assicurazione contro i danni;999;Altri premi di assicurazione contro i danni;03-07-2019;
903;1;0;"440,28";"440,28";LIBRALATO EMMA; ;RETROCESSIONE CONCESSIONE LOCULO N. 110 - 1^ FILA - CIMITERO DI LIEDOLO. RIMBORSO SOMMA.;03-07-2019;581;0;329;1;Spese correnti;4;Trasferimenti correnti;2;Trasferimenti correnti a Famiglie;5;Altri trasferimenti a famiglie;999;Altri trasferimenti a famiglie n.a.c.;03-07-2019;
904;1;0;"-990,00";"4.084,64";RIGATO INFISSI S.R.L.;ZAD21E0806;SALDO Fatt.n. 370/P  del 21/06/2019 NOTA DI ACCREDITO;05-07-2019;775;0;621;2;Spese in conto capitale;2;Investimenti fissi lordi e acquisto di terreni;1;Beni materiali;9;Beni immobili;3;Fabbricati ad uso scolastico;05-07-2019;
904;2;0;"5.074,64";"4.084,64";RIGATO INFISSI S.R.L.;ZAD21E0806;SALDO Fatt.n. 114/P  del 12/03/2019 FORNITURA E POSA IN OPERA FRANGISOLE PER PLESSO SCOLASTICO;05-07-2019;775;0;621;2;Spese in conto capitale;2;Investimenti fissi lordi e acquisto di terreni;1;Beni materiali;9;Beni immobili;3;Fabbricati ad uso scolastico;05-07-2019;
905;1;0;"76,50";"76,50";BERTONCELLO PAOLA ECONOMO COMUNALE; ;Rimborso bolletta N.    12 del  20-05-19 Rimborso bolletta per acquisto rose e fiori vari in occasione di rappresentanza dell'Amministrazione Comunale nelle serate culturali e matrimonici civili.;08-07-2019;3;1;262;1;Spese correnti;3;Acquisto di beni e servizi;1;Acquisto di beni;2;Altri beni di consumo;9;Beni per attività di rappresentanza;08-07-2019;
906;1;0;"11,00";"11,00";BERTONCELLO PAOLA ECONOMO COMUNALE; ;"Rimborso bolletta N.    11 del  14-05-19 Acquisto n. 1 registro firme per la Gipsoteca Francesco Rebesco, inaugurata il giorno 11/05/2019.";08-07-2019;37;0;255;1;Spese correnti;3;Acquisto di beni e servizi;1;Acquisto di beni;2;Altri beni di consumo;1;"Carta, cancelleria e stampati";08-07-2019;
907;1;0;"36,60";"36,60";BERTONCELLO PAOLA ECONOMO COMUNALE; ;Rimborso bolletta N.    13 del  24-05-19 RIMBORSO BOLLETTA DI ECONOMATO: acquisto materiale di cancelleria per inaugurazione Museo Multimediale Antica Pieve in data 18/05/2019.;08-07-2019;37;0;271;1;Spese correnti;3;Acquisto di beni e servizi;1;Acquisto di beni;2;Altri beni di consumo;1;"Carta, cancelleria e stampati";08-07-2019;
908;1;0;"8,90";"8,90";BERTONCELLO PAOLA ECONOMO COMUNALE; ;Rimborso bolletta N.    16 del  18-06-19 Acquisto n. 2 buste e una chiavetta USB per la consegna del materiale previsto dal Premio Architettura citta' di Oderzo.;08-07-2019;37;0;304;1;Spese correnti;3;Acquisto di beni e servizi;1;Acquisto di beni;2;Altri beni di consumo;1;"Carta, cancelleria e stampati";08-07-2019;
909;1;0;"12,50";"12,50";BERTONCELLO PAOLA ECONOMO COMUNALE; ;Rimborso bolletta N.    15 del  11-06-19 Raccomandata per firma digitale del Sindaco di cui al prot. 7657 del 2019.;08-07-2019;39;2;292;1;Spese correnti;3;Acquisto di beni e servizi;2;Acquisto di servizi;19;Servizi informatici e di telecomunicazioni;999;Altri servizi informatici e di telecomunicazioni n.a.c.;08-07-2019;
910;1;0;"6,67";"6,67";BERTONCELLO PAOLA ECONOMO COMUNALE; ;Rimborso bolletta N.    14 del  31-05-19 Acquisto materiale farmaceutico necessario per borsa pronto soccorso per soggiorno climatici anziani.;08-07-2019;578;0;279;1;Spese correnti;3;Acquisto di beni e servizi;1;Acquisto di beni;2;Altri beni di consumo;999;Altri beni e materiali di consumo n.a.c.;08-07-2019;
911;1;0;"350,00";"350,00";O.D.V. PROTEZIONE CIVILE DI SAN ZENONE DEGLI EZZELINI; ;LIQUIDAZIONE DEL SESTO ACCONTO DEL CONTRIBUTO AL GRUPPO COMUNALE DI PROTEZIONE CIVILE DI SAN ZENONE DEGLI EZZELINI - ANNO 2019 -;09-07-2019;382;1;139;1;Spese correnti;4;Trasferimenti correnti;1;Trasferimenti correnti a Amministrazioni Pubbliche;4;Trasferimenti correnti a organismi interni e/o unità locali della amministrazione;1;Trasferimenti correnti a organismi interni e/o unità locali della amministrazione;09-07-2019;
912;1;0;"117,00";"117,00";OMESSO NOMINATIVO NEL RISPETTO DELLA NORMATIVA SULLA PROTEZIONE DATI PERSONALI; ;FATTURA CASA DI RIPOSO AITA N. 292/B DEL 30/06/2019 PASTI GIUGNO.;10-07-2019;576;0;110;1;Spese correnti;4;Trasferimenti correnti;2;Trasferimenti correnti a Famiglie;2;Interventi assistenziali;999;Altri assegni e sussidi assistenziali;10-07-2019;
913;1;0;"316,50";"316,50";OMESSO NOMINATIVO NEL RISPETTO DELLA NORMATIVA SULLA PROTEZIONE DATI PERSONALI; ;FATTURA CASA DI RIPOSO AITA N. 297/B DEL 30/06/2019 PASTI GIUGNO.;10-07-2019;576;0;239;1;Spese correnti;4;Trasferimenti correnti;2;Trasferimenti correnti a Famiglie;2;Interventi assistenziali;999;Altri assegni e sussidi assistenziali;10-07-2019;
916;1;0;"6.700,00";"6.700,00";OMESSO NOMINATIVO NEL RISPETTO DELLA NORMATIVA SULLA PROTEZIONE DATI PERSONALI; ;"LIQUIDAZIONE SPESA A FAVORE DELL'ISTITUTO COMPRENSIVO STATALE DI SAN ZENONE DEGLI EZZELINI PER LA GESTIONE DEI SERVIZI AUSILIARI DEL PERSONALE A.T.A. PRESSO LE SCUOLE PRIMARIE DEL CAPOLUOGO, CA' RAINATI E LIEDOLO E LA SCUOLA SECONDARIA DI PRIMO GRADO";11-07-2019;254;1;357;1;Spese correnti;4;Trasferimenti correnti;1;Trasferimenti correnti a Amministrazioni Pubbliche;4;Trasferimenti correnti a organismi interni e/o unità locali della amministrazione;1;Trasferimenti correnti a organismi interni e/o unità locali della amministrazione;11-07-2019;
919;1;0;"21,16";"21,16";PERSONALE DIPENDENTE - SEDE; ;STIPENDI MESE DI: LUGLIO 19;12-07-2019;20;0;29;1;Spese correnti;3;Acquisto di beni e servizi;2;Acquisto di servizi;2;"Organizzazione eventi, pubblicita` e servizi per trasferta";1;Rimborso per viaggio e trasloco;12-07-2019;
946;1;0;"2.500,00";"2.500,00";F.C.D. UNION EZZELINA; ;"LIQUIDAZIONE CONTRIBUTO  PER IL SERVIZIO DI GESTIONE, SORVEGLIANZA E PULIZIA DELL'IMPIANTO SPORTIVO DEL CAPOLUOGO E DEGLI SPOGLIATOI CALCIO DELLA PALESTRA DI VIA DON M. CANCIAN - INTEGRAZIONE PRIMO SEMESTRE 2019.";15-07-2019;533;0;49;1;Spese correnti;4;Trasferimenti correnti;1;Trasferimenti correnti a Amministrazioni Pubbliche;4;Trasferimenti correnti a organismi interni e/o unità locali della amministrazione;1;Trasferimenti correnti a organismi interni e/o unità locali della amministrazione;15-07-2019;
947;1;0;"5.100,00";"5.100,00";OMESSO NOMINATIVO NEL RISPETTO DELLA NORMATIVA SULLA PROTEZIONE DATI PERSONALI; ;EROGAZIONE CONTRIBUTO STRAORDINARIO A FAVORE DI F.C.D. UNION EZZELINA DI SAN ZENONE DEGLI EZZELINI (TV)PER LAVORI URGENTI PRESSO LO STADIO COMUNALE DI VIA VIVALDI.;15-07-2019;574;0;260;1;Spese correnti;4;Trasferimenti correnti;1;Trasferimenti correnti a Amministrazioni Pubbliche;4;Trasferimenti correnti a organismi interni e/o unità locali della amministrazione;1;Trasferimenti correnti a organismi interni e/o unità locali della amministrazione;15-07-2019;
948;1;0;"171.748,50";"171.748,50";AZIENDA U.L.S.S. N.2  MARCA TREVIGIANA; ;IMPEGNO E LIQUIDAZIONE ALL'AZIENDA ULSS2 MARCA TREVIGIANA: QUOTA CAPITARIA ANNO 2019 - DISTRETTO ASOLO.;15-07-2019;580;0;366;1;Spese correnti;4;Trasferimenti correnti;1;Trasferimenti correnti a Amministrazioni Pubbliche;2;Trasferimenti correnti a Amministrazioni Locali;20;Trasferimenti correnti a Aziende sanitarie locali  a titolo di finanziamento del servizio sanitario nazionale;15-07-2019;
949;1;0;"85.542,26";"85.542,26";FAGGION ANTONIO S.R.L.;76351125BD;ACCONTO Fatt.n. 66  del 10/06/2019 LAVORI DI EFFICIENTAMENTO ENERGETICO SCUOLE - 2 SAL DEI LAVORI;16-07-2019;775;3;404;2;Spese in conto capitale;2;Investimenti fissi lordi e acquisto di terreni;1;Beni materiali;9;Beni immobili;3;Fabbricati ad uso scolastico;16-07-2019;
950;1;0;"115.977,74";"115.977,74";FAGGION ANTONIO S.R.L.;76351125BD;SALDO Fatt.n. 66  del 10/06/2019 LAVORI DI EFFICIENTAMENTO ENERGETICO SCUOLE - 2 SAL DEI LAVORI;16-07-2019;775;3;472;2;Spese in conto capitale;2;Investimenti fissi lordi e acquisto di terreni;1;Beni materiali;9;Beni immobili;3;Fabbricati ad uso scolastico;16-07-2019;
951;1;0;"3.498,00";"3.498,00";ANTONELLO FINITURE S.R.L.;Z9B27BCD46;SALDO Fatt.n. 2P.A.  del 25/06/2019 FORNITURA E POSA IN OPERA DI PARETI DIVISORIE AL CASTELLARO;16-07-2019;745;0;158;2;Spese in conto capitale;2;Investimenti fissi lordi e acquisto di terreni;1;Beni materiali;9;Beni immobili;999;Beni immobili n.a.c.;16-07-2019;
952;1;0;"1.276,00";"1.276,00";ANTONELLO FINITURE S.R.L.;Z9B27BCD46;SALDO Fatt.n. 3P.A.  del 25/06/2019 POSA IN OPERA DI OPERE IN GESSO C/O IL CASTELLARO;16-07-2019;785;0;267;2;Spese in conto capitale;2;Investimenti fissi lordi e acquisto di terreni;1;Beni materiali;10;"Beni immobili di valore culturale, storico ed artistico";8;"Musei, teatri e biblioteche di valore culturale, storico ed artistico";16-07-2019;
953;1;0;"2.973,60";"2.973,60";KIRIKU' SOCIETA' COOPERATIVA SOCIALE ONLUS;ZC12810421;SALDO Fatt.n. 136  del 26/06/2019 SPESE PER PRESTAZIONI SOCIALI: APRILE-GIUGNO 2019;16-07-2019;559;0;184;1;Spese correnti;3;Acquisto di beni e servizi;2;Acquisto di servizi;99;Altri servizi;999;Altri servizi diversi n.a.c.;16-07-2019;
954;1;0;"4.651,62";"4.651,62";TEC.SE. SRL;Z0627A9E59;SALDO Fatt.n. 353  del 27/06/2019 SEGNALETICA STRADALE;16-07-2019;1030;0;144;2;Spese in conto capitale;2;Investimenti fissi lordi e acquisto di terreni;1;Beni materiali;9;Beni immobili;12;Infrastrutture stradali;16-07-2019;
955;1;0;"13,86";"13,86";ASCOTRADE S.P.A.;ZBA27A07D4;SALDO Fatt.n. 818445  del 24/06/2019 FORNITURA GAS MAGAZZINO COMUNALE: APRILE -GIUGNO 2019;16-07-2019;530;0;138;1;Spese correnti;3;Acquisto di beni e servizi;2;Acquisto di servizi;5;Utenze e canoni;6;Gas;16-07-2019;
956;1;0;"7.027,02";"7.027,02";ELA SISTEMI ELETTRONICI S.R.L.;ZA7283F20B;SALDO Fatt.n. 3/PA  del 28/06/2019 MODIFICHE IMP. ANTINTRUSIONE E VIDEOCONTROLLO PRESSO LA TORRE;16-07-2019;785;0;236;2;Spese in conto capitale;2;Investimenti fissi lordi e acquisto di terreni;1;Beni materiali;10;"Beni immobili di valore culturale, storico ed artistico";8;"Musei, teatri e biblioteche di valore culturale, storico ed artistico";16-07-2019;
958;1;0;"71,36";"71,36";LA IDROFERRAMENTA SRL;Z192700D74;SALDO Fatt.n. 59/PA  del 29/06/2019 ACQUISTO BENI PER MANUTENZIONE STRADE;16-07-2019;591;0;58;1;Spese correnti;3;Acquisto di beni e servizi;1;Acquisto di beni;2;Altri beni di consumo;999;Altri beni e materiali di consumo n.a.c.;16-07-2019;
959;1;0;"77,00";"192,14";KUWAIT PETROLEUM ITALIA S.P.A.;Z4E197F01F;SALDO Fatt.n. PJ01345545  del 30/06/2019 CARBURANTE AUTO OPERAI - GIUGNO 2019;16-07-2019;590;0;156;1;Spese correnti;3;Acquisto di beni e servizi;1;Acquisto di beni;2;Altri beni di consumo;2;"Carburanti, combustibili e lubrificanti";16-07-2019;
959;2;0;"115,14";"192,14";KUWAIT PETROLEUM ITALIA S.P.A.;Z4E197F01F;SALDO Fatt.n. PJ01345546  del 30/06/2019 CARBURANTE AUTO OPERAI - GIUGNO 2019;16-07-2019;590;0;156;1;Spese correnti;3;Acquisto di beni e servizi;1;Acquisto di beni;2;Altri beni di consumo;2;"Carburanti, combustibili e lubrificanti";16-07-2019;
960;1;0;"120,00";"120,00";KUWAIT PETROLEUM ITALIA S.P.A.;Z4E197F01F;SALDO Fatt.n. PJ01345548  del 30/06/2019 CARBURANTE AUTO VIGILI - GIUGNO 2019;16-07-2019;179;0;154;1;Spese correnti;3;Acquisto di beni e servizi;1;Acquisto di beni;2;Altri beni di consumo;2;"Carburanti, combustibili e lubrificanti";16-07-2019;
961;1;0;"49,00";"116,72";KUWAIT PETROLEUM ITALIA S.P.A.;Z4E197F01F;SALDO Fatt.n. PJ01345547  del 30/06/2019 CARBURANTE AUTO UFFICI SOCIALE - GIUGNO 2019;16-07-2019;571;0;155;1;Spese correnti;3;Acquisto di beni e servizi;1;Acquisto di beni;2;Altri beni di consumo;2;"Carburanti, combustibili e lubrificanti";16-07-2019;
961;2;0;"67,72";"116,72";KUWAIT PETROLEUM ITALIA S.P.A.;Z4E197F01F;SALDO Fatt.n. PJ01345544  del 30/06/2019 CARBURANTE AUTO UFFICI SOCIALE;16-07-2019;571;0;155;1;Spese correnti;3;Acquisto di beni e servizi;1;Acquisto di beni;2;Altri beni di consumo;2;"Carburanti, combustibili e lubrificanti";16-07-2019;
962;1;0;"1.962,42";"1.962,42";OLIVETTI S.P.A.;ZC92648F71;SALDO Fatt.n. A20020191000025832  del 30/06/2019 UTENZE E CANONI SCUOLE ELEMENTARI;16-07-2019;235;0;510;1;Spese correnti;3;Acquisto di beni e servizi;2;Acquisto di servizi;5;Utenze e canoni;999;Utenze e canoni per altri servizi n.a.c.;16-07-2019;
963;1;0;"1.809,00";"1.809,00";OPERE PIE D'ONIGO; ;SALDO Fatt.n. 199/2  del 30/06/2019 SPESE PER PRESTAZIONI SOCIALI;16-07-2019;560;0;32;1;Spese correnti;3;Acquisto di beni e servizi;2;Acquisto di servizi;15;Contratti di servizio pubblico;8;Contratti di servizio di assistenza sociale residenziale e semiresidenziale;16-07-2019;
964;1;0;"24,40";"671,00";ASCO TLC S.P.A.;ZCD271B191;SALDO Fatt.n. 09022284  del 30/06/2019 UTENZE E CANONI SCUOLE MEDIE;16-07-2019;252;0;79;1;Spese correnti;3;Acquisto di beni e servizi;2;Acquisto di servizi;5;Utenze e canoni;999;Utenze e canoni per altri servizi n.a.c.;16-07-2019;
964;2;0;"176,90";"671,00";ASCO TLC S.P.A.;ZCD271B191;SALDO Fatt.n. 09022286  del 30/06/2019 UTENZE E CANONI;16-07-2019;252;0;79;1;Spese correnti;3;Acquisto di beni e servizi;2;Acquisto di servizi;5;Utenze e canoni;999;Utenze e canoni per altri servizi n.a.c.;16-07-2019;
964;3;0;"469,70";"671,00";ASCO TLC S.P.A.;ZCD271B191;SALDO Fatt.n. 09022285  del 30/06/2019 UTENZE E CANONI;16-07-2019;252;0;79;1;Spese correnti;3;Acquisto di beni e servizi;2;Acquisto di servizi;5;Utenze e canoni;999;Utenze e canoni per altri servizi n.a.c.;16-07-2019;
965;1;0;"1.268,80";"1.268,80";ZANINOTTO LUCIO;Z0E28FD84D;SALDO Fatt.n. FATTPA 2_19  del 09/07/2019 INCARICO PROFESSIONALE PER TUTELA SICUREZZA E SALUTE;16-07-2019;152;0;325;1;Spese correnti;3;Acquisto di beni e servizi;2;Acquisto di servizi;11;Prestazioni professionali e specialistiche;999;Altre prestazioni professionali e specialistiche n.a.c.;16-07-2019;
966;1;0;"6.124,91";"6.124,91";STUDIO SMANIOTTO & MOROSIN;Z4A217235A;ACCONTO Fatt.n. 31  del 04/07/2019 SALDO PER INCARICO LAVORI PLESSO SCOLASTICO;16-07-2019;775;5;564;2;Spese in conto capitale;2;Investimenti fissi lordi e acquisto di terreni;3;Beni immateriali;5;Incarichi professionali per la realizzazione di investimenti;1;Incarichi professionali per la realizzazione di investimenti;16-07-2019;
967;1;0;"2.623,47";"2.623,47";STUDIO SMANIOTTO & MOROSIN;Z3F26AD96F;SALDO Fatt.n. 31  del 04/07/2019 SALDO PER INCARICO LAVORI PLESSO SCOLASTICO;16-07-2019;775;5;614;2;Spese in conto capitale;2;Investimenti fissi lordi e acquisto di terreni;3;Beni immateriali;5;Incarichi professionali per la realizzazione di investimenti;1;Incarichi professionali per la realizzazione di investimenti;16-07-2019;
968;1;0;"669,62";"669,62";ANDI - PORT SNC DI ANDRIOLLO GIACOMO & C.;ZDE2853A9E;SALDO Fatt.n. 0000002/E  del 27/06/2019 FORNITURA TENDE PER PLESSO SCOLASTICO;16-07-2019;235;1;251;1;Spese correnti;3;Acquisto di beni e servizi;2;Acquisto di servizi;9;Manutenzione ordinaria e riparazioni;11;Manutenzione ordinaria e riparazioni di altri beni materiali;16-07-2019;
969;1;0;"515,55";"515,55";UNA CASA PER L'UOMO - SOCIETA' COOPERATIVA SOCIALE;ZA32468D08;SALDO Fatt.n. FE/0000205  del 30/06/2019 SPESE PER PRESTAZIONI SOCIALI;16-07-2019;559;0;334;1;Spese correnti;3;Acquisto di beni e servizi;2;Acquisto di servizi;99;Altri servizi;999;Altri servizi diversi n.a.c.;16-07-2019;
970;1;0;"1.630,00";"1.630,00";CASA DI RIPOSO 'AITA'; ;SALDO Fatt.n. 313/B  del 09/07/2019 RETTE ISTITUTI PER ANZIANI;16-07-2019;560;0;31;1;Spese correnti;3;Acquisto di beni e servizi;2;Acquisto di servizi;15;Contratti di servizio pubblico;8;Contratti di servizio di assistenza sociale residenziale e semiresidenziale;16-07-2019;
971;1;0;"1.800,00";"1.800,00";UNICOOPER SERVIZI S.C.R.L.;Z0128215E5;ACCONTO Fatt.n. 1064  del 30/06/2019 PULIZIA CENTRO LA ROGGIA - 1 SEMESTRE;16-07-2019;561;4;194;1;Spese correnti;3;Acquisto di beni e servizi;2;Acquisto di servizi;9;Manutenzione ordinaria e riparazioni;3;Manutenzione ordinaria e riparazioni di mobili e arredi;16-07-2019;
972;1;0;"867,42";"15.945,95";UNICOOPER SERVIZI S.C.R.L.;Z0128215E5;SALDO Fatt.n. 1063  del 30/06/2019 PULIZIE CENTRO POLIVALENTE - DICEMBRE 2018;16-07-2019;34;2;191;1;Spese correnti;3;Acquisto di beni e servizi;2;Acquisto di servizi;13;Servizi ausiliari per il funzionamento dell'ente;2;Servizi di pulizia e lavanderia;16-07-2019;
972;2;0;"4.387,60";"15.945,95";UNICOOPER SERVIZI S.C.R.L.;Z0128215E5;SALDO Fatt.n. 1064  del 30/06/2019 PULIZIA CENTRO LA ROGGIA - 1 SEMESTRE;16-07-2019;34;2;191;1;Spese correnti;3;Acquisto di beni e servizi;2;Acquisto di servizi;13;Servizi ausiliari per il funzionamento dell'ente;2;Servizi di pulizia e lavanderia;16-07-2019;
972;3;0;"10.690,93";"15.945,95";UNICOOPER SERVIZI S.C.R.L.;Z0128215E5;SALDO Fatt.n. 1062  del 30/06/2019 PULIZIE COMUNALI EDIFICI COMUNALI;16-07-2019;34;2;191;1;Spese correnti;3;Acquisto di beni e servizi;2;Acquisto di servizi;13;Servizi ausiliari per il funzionamento dell'ente;2;Servizi di pulizia e lavanderia;16-07-2019;
973;1;0;"12.127,06";"12.127,06";GIACOBBO S.R.L.;ZD82693FA8;SALDO Fatt.n. 52  del 05/07/2019 MANUTENZIONE STRADE;16-07-2019;1007;0;573;2;Spese in conto capitale;2;Investimenti fissi lordi e acquisto di terreni;1;Beni materiali;9;Beni immobili;12;Infrastrutture stradali;16-07-2019;
974;1;0;"-206,14";"206,14";ZONTA LUIGI & F.LLI S.N.C.;Z1C271BFA1;SALDO Fatt.n. 1/1323  del 11/07/2019 NOTA DI CREDITO PER STORNO FATTURA;17-07-2019;179;1;72;1;Spese correnti;3;Acquisto di beni e servizi;2;Acquisto di servizi;9;Manutenzione ordinaria e riparazioni;1;"Manutenzione ordinaria e riparazioni di mezzi di trasporto ad uso civile, di sicurezza e ordine pubblico";17-07-2019;
974;2;0;"206,14";"206,14";ZONTA LUIGI & F.LLI S.N.C.;Z1C271BFA1;SALDO Fatt.n. 1/860  del 22/05/2019 MANUTENZIONE AUTO POLIZIA LOCALE;17-07-2019;179;1;72;1;Spese correnti;3;Acquisto di beni e servizi;2;Acquisto di servizi;9;Manutenzione ordinaria e riparazioni;1;"Manutenzione ordinaria e riparazioni di mezzi di trasporto ad uso civile, di sicurezza e ordine pubblico";17-07-2019;
974;3;0;"206,14";"206,14";ZONTA LUIGI & F.LLI S.N.C.;Z1C271BFA1;SALDO Fatt.n. 1/1324  del 11/07/2019 SPESE PER MANUTENZIONE AUTO;17-07-2019;179;1;72;1;Spese correnti;3;Acquisto di beni e servizi;2;Acquisto di servizi;9;Manutenzione ordinaria e riparazioni;1;"Manutenzione ordinaria e riparazioni di mezzi di trasporto ad uso civile, di sicurezza e ordine pubblico";17-07-2019;
975;1;0;"300,10";"300,10";SERVIZIO ELETTRICO NAZIONALE SpA;7134285639;SALDO Fatt.n. 263556805005521  del 10/06/2019 ENEL: MAGGIO 2019;17-07-2019;310;0;338;1;Spese correnti;3;Acquisto di beni e servizi;2;Acquisto di servizi;5;Utenze e canoni;4;Energia elettrica;17-07-2019;
976;1;0;"21,09";"1.247,78";SERVIZIO ELETTRICO NAZIONALE SpA;7134285639;SALDO Fatt.n. 263556405046121  del 10/06/2019 ENEL: MAGGIO-LUGLIO 2019;17-07-2019;600;0;342;1;Spese correnti;3;Acquisto di beni e servizi;2;Acquisto di servizi;5;Utenze e canoni;4;Energia elettrica;17-07-2019;
976;2;0;"21,68";"1.247,78";SERVIZIO ELETTRICO NAZIONALE SpA;7134285639;SALDO Fatt.n. 263552355070021  del 04/07/2019 ENEL: MAGGIO-LUGLIO 2019;17-07-2019;600;0;342;1;Spese correnti;3;Acquisto di beni e servizi;2;Acquisto di servizi;5;Utenze e canoni;4;Energia elettrica;17-07-2019;
976;3;0;"21,68";"1.247,78";SERVIZIO ELETTRICO NAZIONALE SpA;7134285639;SALDO Fatt.n. 263552355071021  del 04/07/2019 ENEL: MAGGIO-LUGLIO 2019;17-07-2019;600;0;342;1;Spese correnti;3;Acquisto di beni e servizi;2;Acquisto di servizi;5;Utenze e canoni;4;Energia elettrica;17-07-2019;
976;4;0;"43,97";"1.247,78";SERVIZIO ELETTRICO NAZIONALE SpA;7134285639;SALDO Fatt.n. 263552955086021  del 04/07/2019 ENEL: MAGGIO-LUGLIO 2019;17-07-2019;600;0;342;1;Spese correnti;3;Acquisto di beni e servizi;2;Acquisto di servizi;5;Utenze e canoni;4;Energia elettrica;17-07-2019;
976;5;0;"53,14";"1.247,78";SERVIZIO ELETTRICO NAZIONALE SpA;7134285639;SALDO Fatt.n. 263558005001021  del 04/07/2019 ENEL: MAGGIO-LUGLIO 2019;17-07-2019;600;0;342;1;Spese correnti;3;Acquisto di beni e servizi;2;Acquisto di servizi;5;Utenze e canoni;4;Energia elettrica;17-07-2019;
976;6;0;"65,66";"1.247,78";SERVIZIO ELETTRICO NAZIONALE SpA;7134285639;SALDO Fatt.n. 263551302001021  del 04/07/2019 ENEL MAGGIO-LUGLIO 2019;17-07-2019;600;0;342;1;Spese correnti;3;Acquisto di beni e servizi;2;Acquisto di servizi;5;Utenze e canoni;4;Energia elettrica;17-07-2019;
976;7;0;"456,19";"1.247,78";SERVIZIO ELETTRICO NAZIONALE SpA;7134285639;SALDO Fatt.n. 263552205013412  del 10/06/2019 ENEL CENTRO CULTURALE: MAGGIO 2019;17-07-2019;600;0;342;1;Spese correnti;3;Acquisto di beni e servizi;2;Acquisto di servizi;5;Utenze e canoni;4;Energia elettrica;17-07-2019;
976;8;0;"564,37";"1.247,78";SERVIZIO ELETTRICO NAZIONALE SpA;7134285639;SALDO Fatt.n. 263556206005821  del 04/07/2019 ENEL: MAGGIO -LUGLIO 2019;17-07-2019;600;0;342;1;Spese correnti;3;Acquisto di beni e servizi;2;Acquisto di servizi;5;Utenze e canoni;4;Energia elettrica;17-07-2019;
977;1;0;"307,32";"732,78";SERVIZIO ELETTRICO NAZIONALE SpA;7134285639;SALDO Fatt.n. 263558703001121  del 10/06/2019 ENEL: MAGGIO 2019;17-07-2019;530;0;340;1;Spese correnti;3;Acquisto di beni e servizi;2;Acquisto di servizi;5;Utenze e canoni;4;Energia elettrica;17-07-2019;
977;2;0;"425,46";"732,78";SERVIZIO ELETTRICO NAZIONALE SpA;7134285639;SALDO Fatt.n. 263557855000531  del 10/06/2019 ENEL: MAGGIO 2019;17-07-2019;530;0;340;1;Spese correnti;3;Acquisto di beni e servizi;2;Acquisto di servizi;5;Utenze e canoni;4;Energia elettrica;17-07-2019;
978;1;0;"114,72";"1.549,68";SERVIZIO ELETTRICO NAZIONALE SpA;7134285639;SALDO Fatt.n. 263551155002021  del 10/06/2019 ENEL SCUOLA PRIMARIA: MAGGIO 2019;17-07-2019;235;0;335;1;Spese correnti;3;Acquisto di beni e servizi;2;Acquisto di servizi;5;Utenze e canoni;4;Energia elettrica;17-07-2019;
978;2;0;"198,18";"1.549,68";SERVIZIO ELETTRICO NAZIONALE SpA;7134285639;SALDO Fatt.n. 263555226004531  del 10/06/2019 ENEL CIMITERO: MAGGIO -GIUGNO 2019;17-07-2019;235;0;335;1;Spese correnti;3;Acquisto di beni e servizi;2;Acquisto di servizi;5;Utenze e canoni;4;Energia elettrica;17-07-2019;
978;3;0;"1.236,78";"1.549,68";SERVIZIO ELETTRICO NAZIONALE SpA;7134285639;SALDO Fatt.n. 263554302002021  del 10/06/2019 ENEL: MAGGIO  2019;17-07-2019;235;0;335;1;Spese correnti;3;Acquisto di beni e servizi;2;Acquisto di servizi;5;Utenze e canoni;4;Energia elettrica;17-07-2019;
979;1;0;"17,73";"17,73";SERVIZIO ELETTRICO NAZIONALE SpA;7134285639;SALDO Fatt.n. 263556202002921  del 10/06/2019 ENEL: MAGGIO 2019;17-07-2019;34;0;333;1;Spese correnti;3;Acquisto di beni e servizi;2;Acquisto di servizi;5;Utenze e canoni;4;Energia elettrica;17-07-2019;
980;1;0;"98.230,00";"98.230,00";C.S.M. ACCIAIO SRL;6867174B3F;ACCONTO Fatt.n. 128  del 28/06/2019 SALDO PER RISTRUTTURAZIONE PLESSO SCOLASTICO;17-07-2019;775;0;614;2;Spese in conto capitale;2;Investimenti fissi lordi e acquisto di terreni;1;Beni materiali;9;Beni immobili;3;Fabbricati ad uso scolastico;17-07-2019;
981;1;0;"19.219,26";"19.219,26";C.S.M. ACCIAIO SRL;6867174B3F;ACCONTO Fatt.n. 128  del 28/06/2019 SALDO PER RISTRUTTURAZIONE PLESSO SCOLASTICO;17-07-2019;775;0;368;2;Spese in conto capitale;2;Investimenti fissi lordi e acquisto di terreni;1;Beni materiali;9;Beni immobili;3;Fabbricati ad uso scolastico;17-07-2019;
982;1;0;"17.617,49";"17.617,49";C.S.M. ACCIAIO SRL;6867174B3F;SALDO Fatt.n. 128  del 28/06/2019 SALDO PER RISTRUTTURAZIONE PLESSO SCOLASTICO;17-07-2019;775;3;547;2;Spese in conto capitale;2;Investimenti fissi lordi e acquisto di terreni;1;Beni materiali;9;Beni immobili;3;Fabbricati ad uso scolastico;17-07-2019;
983;1;0;"3.670,00";"3.670,00";O.D.V. PROTEZIONE CIVILE DI SAN ZENONE DEGLI EZZELINI; ;LIQUIDAZIONE DEL QUINTO ACCONTO DEL CONTRIBUTO AL GRUPPO DI PROTEZIONE CIVILE DI SAN ZENONE DEGLI EZZELINI - ANNO 2019.;17-07-2019;382;1;139;1;Spese correnti;4;Trasferimenti correnti;1;Trasferimenti correnti a Amministrazioni Pubbliche;4;Trasferimenti correnti a organismi interni e/o unità locali della amministrazione;1;Trasferimenti correnti a organismi interni e/o unità locali della amministrazione;17-07-2019;
984;1;0;"150,00";"150,00";ASSOCIAZIONE CITTA' MURATE DEL VENETO; ;IMPEGNO E LIQUIDAZIONE QUOTA ASSOCIATIVA 2019 ALL'ASSOCIAZIONE "CITTA' MURATE DEL VENETO".;18-07-2019;51;1;374;1;Spese correnti;3;Acquisto di beni e servizi;2;Acquisto di servizi;99;Altri servizi;3;Quote di associazioni;18-07-2019;
985;1;0;"7.244,49";"7.244,49";AZIENDA U.L.S.S. N.2  MARCA TREVIGIANA; ;"TUTELA SOCIALE MINORILE, ONERI PER LE FUNZIONI DELEGATE. IMPEGNO E LIQUIDAZIONE SALDO 2018 E PRIMO QUADRIMESTRE 2019 A FAVORE DELL'AZIENDA U.L.S.S. N. 2 MARCA TREVIGIANA (EX U.L.S.S. N. 8).";18-07-2019;566;1;373;1;Spese correnti;3;Acquisto di beni e servizi;2;Acquisto di servizi;15;Contratti di servizio pubblico;8;Contratti di servizio di assistenza sociale residenziale e semiresidenziale;18-07-2019;
986;1;0;"408,70";"408,70";ELIOCARTOTECNICA S.R.L.;Z6028F2954;SALDO Fatt.n. 2460/G  del 25/06/2019 ACQUISTO STAMPANTE PER UFFICI COMUNALI;23-07-2019;785;0;314;2;Spese in conto capitale;2;Investimenti fissi lordi e acquisto di terreni;1;Beni materiali;10;"Beni immobili di valore culturale, storico ed artistico";8;"Musei, teatri e biblioteche di valore culturale, storico ed artistico";23-07-2019;
987;1;0;"234,85";"234,85";NEULIFT SERVICE TRIVENETO SRL;ZC7269A3FC;SALDO Fatt.n. 100098  del 04/07/2019 MANUTENZIONE ASCENSORE SCUOLE ELEMENTARI;23-07-2019;235;0;11;1;Spese correnti;3;Acquisto di beni e servizi;2;Acquisto di servizi;5;Utenze e canoni;999;Utenze e canoni per altri servizi n.a.c.;23-07-2019;
988;1;0;"3.339,00";"3.339,00";KIRIKU' SOCIETA' COOPERATIVA SOCIALE ONLUS;Z6D274937A;SALDO Fatt.n. 154  del 28/06/2019 SPESE PER PRESTAZIONI SOCIALI: APRILE-MAGGIO 2019;23-07-2019;559;0;106;1;Spese correnti;3;Acquisto di beni e servizi;2;Acquisto di servizi;99;Altri servizi;999;Altri servizi diversi n.a.c.;23-07-2019;
989;1;0;"1.134,00";"1.134,00";KIRIKU' SOCIETA' COOPERATIVA SOCIALE ONLUS; ;SALDO Fatt.n. 158  del 28/06/2019 SPESES PER PRESTAZIONI SOCIALI;23-07-2019;559;0;95;1;Spese correnti;3;Acquisto di beni e servizi;2;Acquisto di servizi;99;Altri servizi;999;Altri servizi diversi n.a.c.;23-07-2019;
990;1;0;"2.897,50";"2.897,50";OKCS - OVER KANT CONCEPTION STUDIO S.N.C.;Z71239E8C1;SALDO Fatt.n. 2/PA  del 09/07/2019 INTERVENTI ALLA TORRE;23-07-2019;785;0;595;2;Spese in conto capitale;2;Investimenti fissi lordi e acquisto di terreni;1;Beni materiali;10;"Beni immobili di valore culturale, storico ed artistico";8;"Musei, teatri e biblioteche di valore culturale, storico ed artistico";23-07-2019;
991;1;0;"2.318,00";"2.318,00";OKCS - OVER KANT CONCEPTION STUDIO S.N.C.;Z12278E85F;SALDO Fatt.n. 1/PA  del 01/07/2019 INCARICHI PROFESSIONALI PER MUSEO;23-07-2019;333;2;134;1;Spese correnti;3;Acquisto di beni e servizi;2;Acquisto di servizi;11;Prestazioni professionali e specialistiche;999;Altre prestazioni professionali e specialistiche n.a.c.;23-07-2019;
992;1;0;"244,00";"244,00";TRENTIN ASFALTI S.R.L.;Z6128A778B;SALDO Fatt.n. 5EL  del 29/06/2019 ASFALTO A FREDDO SFUSO;23-07-2019;591;0;282;1;Spese correnti;3;Acquisto di beni e servizi;1;Acquisto di beni;2;Altri beni di consumo;999;Altri beni e materiali di consumo n.a.c.;23-07-2019;
993;1;0;"155,86";"4.069,63";SERVIZIO ELETTRICO NAZIONALE SpA;7134285639;SALDO Fatt.n. 263555226006521  del 10/07/2019 ENEL: MAGGIO-LUGLIO 2019;24-07-2019;600;0;342;1;Spese correnti;3;Acquisto di beni e servizi;2;Acquisto di servizi;5;Utenze e canoni;4;Energia elettrica;24-07-2019;
993;2;0;"156,60";"4.069,63";SERVIZIO ELETTRICO NAZIONALE SpA;7134285639;SALDO Fatt.n. 263551755011421  del 10/07/2019 ENEL - MAGGIO -LUGLIO 2019;24-07-2019;600;0;342;1;Spese correnti;3;Acquisto di beni e servizi;2;Acquisto di servizi;5;Utenze e canoni;4;Energia elettrica;24-07-2019;
993;3;0;"218,90";"4.069,63";SERVIZIO ELETTRICO NAZIONALE SpA;7134285639;SALDO Fatt.n. 263556423052021  del 10/07/2019 ENEL: MAGGIO-LUGLIO 2019;24-07-2019;600;0;342;1;Spese correnti;3;Acquisto di beni e servizi;2;Acquisto di servizi;5;Utenze e canoni;4;Energia elettrica;24-07-2019;
993;4;0;"278,38";"4.069,63";SERVIZIO ELETTRICO NAZIONALE SpA;7134285639;SALDO Fatt.n. 263558706024521  del 10/07/2019 ENEL: MAGGIO-LUGLIO 2019;24-07-2019;600;0;342;1;Spese correnti;3;Acquisto di beni e servizi;2;Acquisto di servizi;5;Utenze e canoni;4;Energia elettrica;24-07-2019;
993;5;0;"509,69";"4.069,63";SERVIZIO ELETTRICO NAZIONALE SpA;7134285639;SALDO Fatt.n. 263552955069521  del 10/07/2019 ENEL: MAGGIO-LUGLIO 2019;24-07-2019;600;0;342;1;Spese correnti;3;Acquisto di beni e servizi;2;Acquisto di servizi;5;Utenze e canoni;4;Energia elettrica;24-07-2019;
993;6;0;"988,03";"4.069,63";SERVIZIO ELETTRICO NAZIONALE SpA;7134285639;SALDO Fatt.n. 263553556070021  del 10/07/2019 ENEL: MAGGIO-LUGLIO 2019;24-07-2019;600;0;342;1;Spese correnti;3;Acquisto di beni e servizi;2;Acquisto di servizi;5;Utenze e canoni;4;Energia elettrica;24-07-2019;
993;7;0;"1.762,17";"4.069,63";SERVIZIO ELETTRICO NAZIONALE SpA;7134285639;SALDO Fatt.n. 263554753017521  del 10/07/2019 ENEL - MAGGIO-LUGLIO 2019;24-07-2019;600;0;342;1;Spese correnti;3;Acquisto di beni e servizi;2;Acquisto di servizi;5;Utenze e canoni;4;Energia elettrica;24-07-2019;
994;1;0;"51,63";"2.188,26";SERVIZIO ELETTRICO NAZIONALE SpA;7134285639;SALDO Fatt.n. 263556202001021  del 10/07/2019 ENEL: MAGGIO-LUGLIO 2019;24-07-2019;600;0;342;1;Spese correnti;3;Acquisto di beni e servizi;2;Acquisto di servizi;5;Utenze e canoni;4;Energia elettrica;24-07-2019;
994;2;0;"72,74";"2.188,26";SERVIZIO ELETTRICO NAZIONALE SpA;7134285639;SALDO Fatt.n. 263556405000511  del 10/07/2019 ENEL: MAGGIO-LUGLIO 2019;24-07-2019;600;0;342;1;Spese correnti;3;Acquisto di beni e servizi;2;Acquisto di servizi;5;Utenze e canoni;4;Energia elettrica;24-07-2019;
994;3;0;"199,18";"2.188,26";SERVIZIO ELETTRICO NAZIONALE SpA;7134285639;SALDO Fatt.n. 263557855013521  del 10/07/2019 ENEL: MAGGIO-LUGLIO 2019;24-07-2019;600;0;342;1;Spese correnti;3;Acquisto di beni e servizi;2;Acquisto di servizi;5;Utenze e canoni;4;Energia elettrica;24-07-2019;
994;4;0;"246,64";"2.188,26";SERVIZIO ELETTRICO NAZIONALE SpA;7134285639;SALDO Fatt.n. 263555806046321  del 10/07/2019 ENEL: MAGGIO-LUGLIO 2019;24-07-2019;600;0;342;1;Spese correnti;3;Acquisto di beni e servizi;2;Acquisto di servizi;5;Utenze e canoni;4;Energia elettrica;24-07-2019;
994;5;0;"259,68";"2.188,26";SERVIZIO ELETTRICO NAZIONALE SpA;7134285639;SALDO Fatt.n. 263557405021021  del 10/07/2019 ENEL: MAGGIO-LUGLIO 2019;24-07-2019;600;0;342;1;Spese correnti;3;Acquisto di beni e servizi;2;Acquisto di servizi;5;Utenze e canoni;4;Energia elettrica;24-07-2019;
994;6;0;"363,57";"2.188,26";SERVIZIO ELETTRICO NAZIONALE SpA;7134285639;SALDO Fatt.n. 263554306019021  del 10/07/2019 ENEL: MAGGIO-LUGLIO 2019;24-07-2019;600;0;342;1;Spese correnti;3;Acquisto di beni e servizi;2;Acquisto di servizi;5;Utenze e canoni;4;Energia elettrica;24-07-2019;
994;7;0;"374,44";"2.188,26";SERVIZIO ELETTRICO NAZIONALE SpA;7134285639;SALDO Fatt.n. 263553075001821  del 10/07/2019 ENEL: MAGGIO-LUGLIO 2019;24-07-2019;600;0;342;1;Spese correnti;3;Acquisto di beni e servizi;2;Acquisto di servizi;5;Utenze e canoni;4;Energia elettrica;24-07-2019;
994;8;0;"620,38";"2.188,26";SERVIZIO ELETTRICO NAZIONALE SpA;7134285639;SALDO Fatt.n. 263552505054221  del 10/07/2019 ENEL: MAGGIO-LUGLIO 2019;24-07-2019;600;0;342;1;Spese correnti;3;Acquisto di beni e servizi;2;Acquisto di servizi;5;Utenze e canoni;4;Energia elettrica;24-07-2019;
995;1;0;"78,49";"2.166,28";SERVIZIO ELETTRICO NAZIONALE SpA;7134285639;SALDO Fatt.n. 263553705034521  del 10/07/2019 ENEL: MAGGIO-LUGLIO 2019;24-07-2019;600;0;342;1;Spese correnti;3;Acquisto di beni e servizi;2;Acquisto di servizi;5;Utenze e canoni;4;Energia elettrica;24-07-2019;
995;2;0;"85,12";"2.166,28";SERVIZIO ELETTRICO NAZIONALE SpA;7134285639;SALDO Fatt.n. 263554005004011  del 10/07/2019 ENEL: MAGGIO-LUGLIO 2019;24-07-2019;600;0;342;1;Spese correnti;3;Acquisto di beni e servizi;2;Acquisto di servizi;5;Utenze e canoni;4;Energia elettrica;24-07-2019;
995;3;0;"102,42";"2.166,28";SERVIZIO ELETTRICO NAZIONALE SpA;7134285639;SALDO Fatt.n. 263553105005021  del 10/07/2019 ENEL: MAGGIO-LUGLIO 2019;24-07-2019;600;0;342;1;Spese correnti;3;Acquisto di beni e servizi;2;Acquisto di servizi;5;Utenze e canoni;4;Energia elettrica;24-07-2019;
995;4;0;"149,56";"2.166,28";SERVIZIO ELETTRICO NAZIONALE SpA;7134285639;SALDO Fatt.n. 263553255013521  del 10/07/2019 ENEL: MAGGIO-LUGLIO 2019;24-07-2019;600;0;342;1;Spese correnti;3;Acquisto di beni e servizi;2;Acquisto di servizi;5;Utenze e canoni;4;Energia elettrica;24-07-2019;
995;5;0;"153,73";"2.166,28";SERVIZIO ELETTRICO NAZIONALE SpA;7134285639;SALDO Fatt.n. 263558205009521  del 10/07/2019 ENEL: MAGGIO-LUGLIO 2019;24-07-2019;600;0;342;1;Spese correnti;3;Acquisto di beni e servizi;2;Acquisto di servizi;5;Utenze e canoni;4;Energia elettrica;24-07-2019;
995;6;0;"153,89";"2.166,28";SERVIZIO ELETTRICO NAZIONALE SpA;7134285639;SALDO Fatt.n. 263555505042021  del 10/07/2019 ENEL: MAGGIO-LUGLIO 2019;24-07-2019;600;0;342;1;Spese correnti;3;Acquisto di beni e servizi;2;Acquisto di servizi;5;Utenze e canoni;4;Energia elettrica;24-07-2019;
995;7;0;"483,63";"2.166,28";SERVIZIO ELETTRICO NAZIONALE SpA;7134285639;SALDO Fatt.n. 263552103001021  del 10/07/2019 ENEL: MAGGIO-LUGLIO 2019;24-07-2019;600;0;342;1;Spese correnti;3;Acquisto di beni e servizi;2;Acquisto di servizi;5;Utenze e canoni;4;Energia elettrica;24-07-2019;
995;8;0;"959,44";"2.166,28";SERVIZIO ELETTRICO NAZIONALE SpA;7134285639;SALDO Fatt.n. 263552823001121  del 10/07/2019 ENEL: MAGGIO-LUGLIO 2019;24-07-2019;600;0;342;1;Spese correnti;3;Acquisto di beni e servizi;2;Acquisto di servizi;5;Utenze e canoni;4;Energia elettrica;24-07-2019;
996;1;0;"44,16";"3.160,65";SERVIZIO ELETTRICO NAZIONALE SpA;7134285639;SALDO Fatt.n. 263553405085021  del 10/07/2019 ENEL: MAGGIO-LUGLIO 2019;24-07-2019;600;0;342;1;Spese correnti;3;Acquisto di beni e servizi;2;Acquisto di servizi;5;Utenze e canoni;4;Energia elettrica;24-07-2019;
996;2;0;"127,97";"3.160,65";SERVIZIO ELETTRICO NAZIONALE SpA;7134285639;SALDO Fatt.n. 263553356000521  del 10/07/2019 ENEL: MAGGIO-LUGLIO 2019;24-07-2019;600;0;342;1;Spese correnti;3;Acquisto di beni e servizi;2;Acquisto di servizi;5;Utenze e canoni;4;Energia elettrica;24-07-2019;
996;3;0;"225,46";"3.160,65";SERVIZIO ELETTRICO NAZIONALE SpA;7134285639;SALDO Fatt.n. 263553056001021  del 10/07/2019 ENEL: MAGGIO-LUGLIO 2019;24-07-2019;600;0;342;1;Spese correnti;3;Acquisto di beni e servizi;2;Acquisto di servizi;5;Utenze e canoni;4;Energia elettrica;24-07-2019;
996;4;0;"317,26";"3.160,65";SERVIZIO ELETTRICO NAZIONALE SpA;7134285639;SALDO Fatt.n. 263552355001021  del 10/07/2019 ENEL: MAGGIO-LUGLIO 2019;24-07-2019;600;0;342;1;Spese correnti;3;Acquisto di beni e servizi;2;Acquisto di servizi;5;Utenze e canoni;4;Energia elettrica;24-07-2019;
996;5;0;"434,59";"3.160,65";SERVIZIO ELETTRICO NAZIONALE SpA;7134285639;SALDO Fatt.n. 263551603001521  del 10/07/2019 ENEL: MAGGIO-LUGLIO 2019;24-07-2019;600;0;342;1;Spese correnti;3;Acquisto di beni e servizi;2;Acquisto di servizi;5;Utenze e canoni;4;Energia elettrica;24-07-2019;
996;6;0;"925,07";"3.160,65";SERVIZIO ELETTRICO NAZIONALE SpA;7134285639;SALDO Fatt.n. 263557205052021  del 10/07/2019 ENEL: MAGGIO-LUGLIO 2019;24-07-2019;600;0;342;1;Spese correnti;3;Acquisto di beni e servizi;2;Acquisto di servizi;5;Utenze e canoni;4;Energia elettrica;24-07-2019;
996;7;0;"1.086,14";"3.160,65";SERVIZIO ELETTRICO NAZIONALE SpA;7134285639;SALDO Fatt.n. 263554153015521  del 10/07/2019 ENEL: MAGGIO-LUGLIO 2019;24-07-2019;600;0;342;1;Spese correnti;3;Acquisto di beni e servizi;2;Acquisto di servizi;5;Utenze e canoni;4;Energia elettrica;24-07-2019;
997;1;0;"73,81";"2.371,10";SERVIZIO ELETTRICO NAZIONALE SpA;7134285639;SALDO Fatt.n. 263554455040021  del 10/07/2019 ENEL: MAGGIO-LUGLIO 2019;24-07-2019;600;0;342;1;Spese correnti;3;Acquisto di beni e servizi;2;Acquisto di servizi;5;Utenze e canoni;4;Energia elettrica;24-07-2019;
997;2;0;"105,18";"2.371,10";SERVIZIO ELETTRICO NAZIONALE SpA;7134285639;SALDO Fatt.n. 263552655019121  del 10/07/2019 ENEL: MAGGIO-LUGLIO 2019;24-07-2019;600;0;342;1;Spese correnti;3;Acquisto di beni e servizi;2;Acquisto di servizi;5;Utenze e canoni;4;Energia elettrica;24-07-2019;
997;3;0;"170,19";"2.371,10";SERVIZIO ELETTRICO NAZIONALE SpA;7134285639;SALDO Fatt.n. 263558505000211  del 10/07/2019 ENEL: MAGGIO-LUGLIO 2019;24-07-2019;600;0;342;1;Spese correnti;3;Acquisto di beni e servizi;2;Acquisto di servizi;5;Utenze e canoni;4;Energia elettrica;24-07-2019;
997;4;0;"229,02";"2.371,10";SERVIZIO ELETTRICO NAZIONALE SpA;7134285639;SALDO Fatt.n. 263558005001241  del 10/07/2019 ENEL: MAGGIO-LUGLIO 2019;24-07-2019;600;0;342;1;Spese correnti;3;Acquisto di beni e servizi;2;Acquisto di servizi;5;Utenze e canoni;4;Energia elettrica;24-07-2019;
997;5;0;"248,45";"2.371,10";SERVIZIO ELETTRICO NAZIONALE SpA;7134285639;SALDO Fatt.n. 263554605018521  del 10/07/2019 ENEL: MAGGIO-LUGLIO 2019;24-07-2019;600;0;342;1;Spese correnti;3;Acquisto di beni e servizi;2;Acquisto di servizi;5;Utenze e canoni;4;Energia elettrica;24-07-2019;
997;6;0;"374,22";"2.371,10";SERVIZIO ELETTRICO NAZIONALE SpA;7134285639;SALDO Fatt.n. 263552205014421  del 10/07/2019 ENEL: MAGGIO-LUGLIO 2019;24-07-2019;600;0;342;1;Spese correnti;3;Acquisto di beni e servizi;2;Acquisto di servizi;5;Utenze e canoni;4;Energia elettrica;24-07-2019;
997;7;0;"454,44";"2.371,10";SERVIZIO ELETTRICO NAZIONALE SpA;7134285639;SALDO Fatt.n. 263557855000721  del 10/07/2019 ENEL: MAGGIO-LUGLIO 2019;24-07-2019;600;0;342;1;Spese correnti;3;Acquisto di beni e servizi;2;Acquisto di servizi;5;Utenze e canoni;4;Energia elettrica;24-07-2019;
997;8;0;"715,79";"2.371,10";SERVIZIO ELETTRICO NAZIONALE SpA;7134285639;SALDO Fatt.n. 263555802001021  del 10/07/2019 ENEL: MAGGIO-LUGLIO 2019;24-07-2019;600;0;342;1;Spese correnti;3;Acquisto di beni e servizi;2;Acquisto di servizi;5;Utenze e canoni;4;Energia elettrica;24-07-2019;
998;1;0;"39,60";"1.890,23";SERVIZIO ELETTRICO NAZIONALE SpA;7134285639;SALDO Fatt.n. 263551155002022  del 10/07/2019 ENEL: MAGGIO-LUGLIO 2019;24-07-2019;235;0;335;1;Spese correnti;3;Acquisto di beni e servizi;2;Acquisto di servizi;5;Utenze e canoni;4;Energia elettrica;24-07-2019;
998;2;0;"774,74";"1.890,23";SERVIZIO ELETTRICO NAZIONALE SpA;7134285639;SALDO Fatt.n. 263555804069041  del 10/07/2019 ENEL: MAGGIO-LUGLIO 2019;24-07-2019;235;0;335;1;Spese correnti;3;Acquisto di beni e servizi;2;Acquisto di servizi;5;Utenze e canoni;4;Energia elettrica;24-07-2019;
998;3;0;"1.075,89";"1.890,23";SERVIZIO ELETTRICO NAZIONALE SpA;7134285639;SALDO Fatt.n. 263554302002022  del 10/07/2019 ENEL: MAGGIO-LUGLIO 2019;24-07-2019;235;0;335;1;Spese correnti;3;Acquisto di beni e servizi;2;Acquisto di servizi;5;Utenze e canoni;4;Energia elettrica;24-07-2019;
999;1;0;"290,10";"290,10";SERVIZIO ELETTRICO NAZIONALE SpA;7134285639;SALDO Fatt.n. 263558703010011  del 10/07/2019 ENEL: MAGGIO-LUGLIO 2019;24-07-2019;71;0;334;1;Spese correnti;3;Acquisto di beni e servizi;2;Acquisto di servizi;5;Utenze e canoni;4;Energia elettrica;24-07-2019;
1000;1;0;"545,61";"545,61";SERVIZIO ELETTRICO NAZIONALE SpA;7134285639;SALDO Fatt.n. 263552205013413  del 10/07/2019 ENEL: MAGGIO-LUGLIO 2019;24-07-2019;561;2;341;1;Spese correnti;3;Acquisto di beni e servizi;2;Acquisto di servizi;5;Utenze e canoni;4;Energia elettrica;24-07-2019;
1001;1;0;"392,91";"787,38";SERVIZIO ELETTRICO NAZIONALE SpA;7134285639;SALDO Fatt.n. 263557855000532  del 10/07/2019 ENEL: MAGGIO-LUGLIO 2019;24-07-2019;530;0;340;1;Spese correnti;3;Acquisto di beni e servizi;2;Acquisto di servizi;5;Utenze e canoni;4;Energia elettrica;24-07-2019;
1001;2;0;"394,47";"787,38";SERVIZIO ELETTRICO NAZIONALE SpA;7134285639;SALDO Fatt.n. 263558703001122  del 10/07/2019 ENEL: MAGGIO-LUGLIO 2019;24-07-2019;530;0;340;1;Spese correnti;3;Acquisto di beni e servizi;2;Acquisto di servizi;5;Utenze e canoni;4;Energia elettrica;24-07-2019;
1002;1;0;"17,73";"17,73";SERVIZIO ELETTRICO NAZIONALE SpA;7134285639;SALDO Fatt.n. 263556202002922  del 10/07/2019 ENEL: MAGGIO-LUGLIO 2019;24-07-2019;34;0;333;1;Spese correnti;3;Acquisto di beni e servizi;2;Acquisto di servizi;5;Utenze e canoni;4;Energia elettrica;24-07-2019;
1003;1;0;"206,88";"206,88";SERVIZIO ELETTRICO NAZIONALE SpA;7134285639;SALDO Fatt.n. 263556805005522  del 10/07/2019 ENEL: MAGGIO-LUGLIO 2019;24-07-2019;310;0;338;1;Spese correnti;3;Acquisto di beni e servizi;2;Acquisto di servizi;5;Utenze e canoni;4;Energia elettrica;24-07-2019;
1004;1;0;"346,95";"346,95";KONE SPA;Z65272A039;ACCONTO Fatt.n. 0094052235  del 28/06/2019 Fornitura Servizi di Manutenzione;24-07-2019;252;1;370;1;Spese correnti;3;Acquisto di beni e servizi;2;Acquisto di servizi;9;Manutenzione ordinaria e riparazioni;4;Manutenzione ordinaria e riparazioni di impianti e macchinari;24-07-2019;
1005;1;0;"347,50";"347,50";KONE SPA;Z65272A039;SALDO Fatt.n. 0094052235  del 28/06/2019 Fornitura Servizi di Manutenzione;24-07-2019;256;0;371;1;Spese correnti;3;Acquisto di beni e servizi;1;Acquisto di beni;2;Altri beni di consumo;999;Altri beni e materiali di consumo n.a.c.;24-07-2019;
1006;1;0;"24,40";"109,75";CARROZZERIA CARRON S.R.L.;Z7028FD25C;SALDO Fatt.n. 266  del 11/07/2019 MANUTENZIONE AUTO UFFICIO SOCIALE;24-07-2019;571;1;363;1;Spese correnti;3;Acquisto di beni e servizi;2;Acquisto di servizi;9;Manutenzione ordinaria e riparazioni;1;"Manutenzione ordinaria e riparazioni di mezzi di trasporto ad uso civile, di sicurezza e ordine pubblico";24-07-2019;
1006;2;0;"85,35";"109,75";CARROZZERIA CARRON S.R.L.;Z7028FD25C;SALDO Fatt.n. 264  del 11/07/2019 MANUTENZIONE AUTO UFFICIO SOCIALE;24-07-2019;571;1;363;1;Spese correnti;3;Acquisto di beni e servizi;2;Acquisto di servizi;9;Manutenzione ordinaria e riparazioni;1;"Manutenzione ordinaria e riparazioni di mezzi di trasporto ad uso civile, di sicurezza e ordine pubblico";24-07-2019;
1007;1;0;"43,08";"161,88";CARROZZERIA CARRON S.R.L.;Z7028FD25C;SALDO Fatt.n. 265  del 11/07/2019 MANUTENZIONE AUTO OPERAI;25-07-2019;571;1;363;1;Spese correnti;3;Acquisto di beni e servizi;2;Acquisto di servizi;9;Manutenzione ordinaria e riparazioni;1;"Manutenzione ordinaria e riparazioni di mezzi di trasporto ad uso civile, di sicurezza e ordine pubblico";25-07-2019;
1007;2;0;"118,80";"161,88";CARROZZERIA CARRON S.R.L.;Z7028FD25C;SALDO Fatt.n. 267  del 11/07/2019 MANUTENZIONE AUTO VIGILI;25-07-2019;571;1;363;1;Spese correnti;3;Acquisto di beni e servizi;2;Acquisto di servizi;9;Manutenzione ordinaria e riparazioni;1;"Manutenzione ordinaria e riparazioni di mezzi di trasporto ad uso civile, di sicurezza e ordine pubblico";25-07-2019;
1008;1;0;"37,22";"37,22";IL GONFALONE DI FAGGIONATO ROBERTO;Z6828EB1E8;ACCONTO Fatt.n. FPA 612/19  del 11/07/2019 FORNITURA DI BANDIERE;25-07-2019;37;0;316;1;Spese correnti;3;Acquisto di beni e servizi;1;Acquisto di beni;2;Altri beni di consumo;9;Beni per attività di rappresentanza;25-07-2019;
1009;1;0;"121,38";"121,38";IL GONFALONE DI FAGGIONATO ROBERTO;Z6828EB1E8;SALDO Fatt.n. FPA 612/19  del 11/07/2019 FORNITURA DI BANDIERE;25-07-2019;234;0;315;1;Spese correnti;3;Acquisto di beni e servizi;1;Acquisto di beni;2;Altri beni di consumo;9;Beni per attività di rappresentanza;25-07-2019;
1010;1;0;"138,52";"438,93";GREEN TELECOMUNICAZIONI S.P.A.;Z40279DD24;SALDO Fatt.n. E12556  del 12/07/2019 Traffico Telefonico Periodo: giugno 2019;25-07-2019;34;0;136;1;Spese correnti;3;Acquisto di beni e servizi;2;Acquisto di servizi;5;Utenze e canoni;1;Telefonia fissa;25-07-2019;
1010;2;0;"300,41";"438,93";GREEN TELECOMUNICAZIONI S.P.A.;Z40279DD24;SALDO Fatt.n. E13816  del 12/07/2019 Traffico Telefonico Periodo: giugno 2019;25-07-2019;34;0;136;1;Spese correnti;3;Acquisto di beni e servizi;2;Acquisto di servizi;5;Utenze e canoni;1;Telefonia fissa;25-07-2019;
1011;1;0;"2.855,53";"2.855,53";TEC.SE. SRL;Z0627A9E59;SALDO Fatt.n. 394  del 12/07/2019 SEGNALETICA STRADALE;25-07-2019;1030;0;144;2;Spese in conto capitale;2;Investimenti fissi lordi e acquisto di terreni;1;Beni materiali;9;Beni immobili;12;Infrastrutture stradali;25-07-2019;
1012;1;0;"1.644,39";"1.644,39";OMESSO NOMINATIVO NEL RISPETTO DELLA NORMATIVA SULLA PROTEZIONE DATI PERSONALI; ;LIQUIDAZIONE SPESA A FAVORE DELL'ASSOCIAZIONE INTERPARROCHIALE VOLONTARI ASSISTENZA AMMALATI BISOGNOSI DI SAN ZENONE DEGLI EZZELINI PER IL SERVIZIO DI CONSEGNA PASTI A DOMICILIO: PRIMO SEMESTRE 2019.;30-07-2019;574;0;36;1;Spese correnti;4;Trasferimenti correnti;1;Trasferimenti correnti a Amministrazioni Pubbliche;4;Trasferimenti correnti a organismi interni e/o unità locali della amministrazione;1;Trasferimenti correnti a organismi interni e/o unità locali della amministrazione;30-07-2019;
1013;1;0;"50,27";"50,27";OMESSO NOMINATIVO NEL RISPETTO DELLA NORMATIVA SULLA PROTEZIONE DATI PERSONALI; ;FATTURA N. 1123  DEL 14/09/19 CONTARINA S.P.A.;30-07-2019;576;0;110;1;Spese correnti;4;Trasferimenti correnti;2;Trasferimenti correnti a Famiglie;2;Interventi assistenziali;999;Altri assegni e sussidi assistenziali;30-07-2019;
1016;1;0;"634,03";"634,03";TESORERIA PROVINCIALE DELLO STATO; ;VERSAMENTO I.V.A. A DEBITO COMMERCIALE RELATIVA AL SECONDO TRIMESTRE 2019 - COD. IVA 615E.;05-08-2019;660;0;0;1;Spese correnti;10;Altre spese correnti;3;Versamenti IVA a debito;1;Versamenti IVA a debito per le gestioni commerciali;1;Versamenti IVA a debito per le gestioni commerciali;05-08-2019;
1017;1;0;"488,00";"488,00";DOTART PRINTING DI FAVARETTO ENRICO;ZDA28E2FD6;SALDO Fatt.n. 80  del 28/06/2019 SPESE PER MANIFESTAZIONI CULTURALI;05-08-2019;331;0;309;1;Spese correnti;3;Acquisto di beni e servizi;1;Acquisto di beni;2;Altri beni di consumo;999;Altri beni e materiali di consumo n.a.c.;05-08-2019;
1018;1;0;"1.189,47";"1.189,47";CASA DI RIPOSO 'AITA'; ;SALDO Fatt.n. 373/C  del 30/06/2019 MENSA SCOLASTICA - GIUGNO 2019;05-08-2019;274;1;54;1;Spese correnti;3;Acquisto di beni e servizi;2;Acquisto di servizi;15;Contratti di servizio pubblico;6;Contratti di servizio per le mense scolastiche;05-08-2019;
1019;1;0;"12.410,70";"12.410,70";Mobilità di Marca S.P.A.;7168087C82;SALDO Fatt.n. 000606  del 30/06/2019 TRASPORTO SCOLASTICO: GIUGNO 2019;05-08-2019;275;1;301;1;Spese correnti;3;Acquisto di beni e servizi;2;Acquisto di servizi;15;Contratti di servizio pubblico;2;Contratti di servizio di trasporto scolastico;05-08-2019;
1020;1;0;"1.440,00";"1.440,00";NOIGROUP Coop. Soc. a R.L.;Z5F268727B;SALDO Fatt.n. 466  del 30/06/2019 SERVIZIO GESTIONE DELLA BIBLIOTECA ATTIVITA'GIUGNO  2019;05-08-2019;302;1;553;1;Spese correnti;3;Acquisto di beni e servizi;2;Acquisto di servizi;16;Servizi amministrativi;999;Altre spese per servizi amministrativi;05-08-2019;
1021;1;0;"298,90";"298,90";IL GONFALONE DI FAGGIONATO ROBERTO;Z5E28F969A;SALDO Fatt.n. FPA 613/19  del 11/07/2019 FORNITURA DI N. 2 FASCE DA SINDACO RICAMATE;05-08-2019;3;1;318;1;Spese correnti;3;Acquisto di beni e servizi;1;Acquisto di beni;2;Altri beni di consumo;9;Beni per attività di rappresentanza;05-08-2019;
1022;1;0;"2.562,00";"2.562,00";FRATERNITA' CRISTIANA DI SAN ZENONE SOCIETA' COOP.VA;Z7E2912960;SALDO Fatt.n. FATTPA 2_19  del 11/07/2019 SALDO CONVENZIONE TRASMISSIONE RADIO LUCE;05-08-2019;330;0;356;1;Spese correnti;3;Acquisto di beni e servizi;2;Acquisto di servizi;99;Altri servizi;999;Altri servizi diversi n.a.c.;05-08-2019;
1023;1;0;"210,00";"210,00";SONDA COOPERATIVA SOCIALE ONLUS; ;SALDO Fatt.n. 237/PA/2019  del 08/07/2019 INSERIMENTO IN CASA FAMIGLIA PERSONA BISOGNOSA;05-08-2019;560;0;274;1;Spese correnti;3;Acquisto di beni e servizi;2;Acquisto di servizi;15;Contratti di servizio pubblico;8;Contratti di servizio di assistenza sociale residenziale e semiresidenziale;05-08-2019;
1024;1;0;"305,00";"305,00";MOBILI TONIOLO S.A.S. DI TONIOLO MAURO & C.;Z97290C057;SALDO Fatt.n. 62  del 16/07/2019 FORNITURA IN LEGNO DI PROFILI IN LEGNO;05-08-2019;235;1;364;1;Spese correnti;3;Acquisto di beni e servizi;2;Acquisto di servizi;9;Manutenzione ordinaria e riparazioni;3;Manutenzione ordinaria e riparazioni di mobili e arredi;05-08-2019;
1025;1;0;"336,72";"336,72";SICURITALIA S.P.A.;Z3827208DE;ACCONTO Fatt.n. 9117005735  del 01/07/2019 SERVIZIO DI PRONTO INTERVENTO ED. COMUNALI;05-08-2019;561;2;90;1;Spese correnti;3;Acquisto di beni e servizi;2;Acquisto di servizi;5;Utenze e canoni;999;Utenze e canoni per altri servizi n.a.c.;05-08-2019;
1026;1;0;"187,88";"187,88";SICURITALIA S.P.A.;Z3827208DE;SALDO Fatt.n. 9117005735  del 01/07/2019 SERVIZIO DI PRONTO INTERVENTO ED. COMUNALI;05-08-2019;71;0;89;1;Spese correnti;3;Acquisto di beni e servizi;2;Acquisto di servizi;5;Utenze e canoni;999;Utenze e canoni per altri servizi n.a.c.;05-08-2019;
1027;1;0;"5,62";"8.238,55";BIM PIAVE NUOVE ENERGIE S.R.L.;Z2327C1EAA;SALDO Fatt.n. 9001301  del 17/07/2019 Anno termico 2018/2019- acqua calda 01/03/2019-30/04/2019 - Scuola Primaria CÃ  Rainati 65.33;05-08-2019;561;2;203;1;Spese correnti;3;Acquisto di beni e servizi;2;Acquisto di servizi;5;Utenze e canoni;6;Gas;05-08-2019;
1027;2;0;"899,85";"8.238,55";BIM PIAVE NUOVE ENERGIE S.R.L.;Z2327C1EAA;SALDO Fatt.n. 9001296  del 17/07/2019 Anno termico 2018/2019 - acqua calda 01/03/2019-30/04/2019 - Ex Scuola Primaria Sopracastello;05-08-2019;561;2;203;1;Spese correnti;3;Acquisto di beni e servizi;2;Acquisto di servizi;5;Utenze e canoni;6;Gas;05-08-2019;
1027;3;0;"3.057,41";"8.238,55";BIM PIAVE NUOVE ENERGIE S.R.L.;Z2327C1EAA;SALDO Fatt.n. 9001298  del 17/07/2019 Anno termico 2018/2019 -acqua calda 01/03/2019-30/04/2019 - Polivalente "La Roggia";05-08-2019;561;2;203;1;Spese correnti;3;Acquisto di beni e servizi;2;Acquisto di servizi;5;Utenze e canoni;6;Gas;05-08-2019;
1027;4;0;"4.275,67";"8.238,55";BIM PIAVE NUOVE ENERGIE S.R.L.;Z2327C1EAA;SALDO Fatt.n. 9001295  del 17/07/2019 Anno termico 2018/2019-acqua calda 01/03/2019-30/04/2019 - Sede Municipale;05-08-2019;561;2;203;1;Spese correnti;3;Acquisto di beni e servizi;2;Acquisto di servizi;5;Utenze e canoni;6;Gas;05-08-2019;
1028;1;0;"819,87";"819,87";BIM PIAVE NUOVE ENERGIE S.R.L.;Z2327C1EAA;ACCONTO Fatt.n. 9001297  del 17/07/2019 Anno termico 2018/2019 -acqua calda 01/03/2019-30/04/2019 - Villa Rubelli;05-08-2019;310;0;201;1;Spese correnti;3;Acquisto di beni e servizi;2;Acquisto di servizi;5;Utenze e canoni;6;Gas;05-08-2019;
1029;1;0;"462,40";"2.833,87";BIM PIAVE NUOVE ENERGIE S.R.L.;Z2327C1EAA;ACCONTO Fatt.n. 9001300  del 17/07/2019 Anno termico 2018/2019 - acqua calda01/03/2019-30/04/2019 - Scuola Primaria Liedolo;05-08-2019;530;0;200;1;Spese correnti;3;Acquisto di beni e servizi;2;Acquisto di servizi;5;Utenze e canoni;6;Gas;05-08-2019;
1029;2;0;"2.371,47";"2.833,87";BIM PIAVE NUOVE ENERGIE S.R.L.;Z2327C1EAA;SALDO Fatt.n. 9001297  del 17/07/2019 Anno termico 2018/2019 -acqua calda 01/03/2019-30/04/2019 - Villa Rubelli;05-08-2019;530;0;200;1;Spese correnti;3;Acquisto di beni e servizi;2;Acquisto di servizi;5;Utenze e canoni;6;Gas;05-08-2019;
1030;1;0;"250,68";"250,68";BIM PIAVE NUOVE ENERGIE S.R.L.;Z2327C1EAA;ACCONTO Fatt.n. 9001294  del 17/07/2019 Anno termico 2018/2019 - Saldo manutenzione e controllo dell'impianto termico - Impianti Comunali;05-08-2019;775;5;160;2;Spese in conto capitale;2;Investimenti fissi lordi e acquisto di terreni;3;Beni immateriali;5;Incarichi professionali per la realizzazione di investimenti;1;Incarichi professionali per la realizzazione di investimenti;05-08-2019;
1031;1;0;"1.056,65";"1.056,65";BIM PIAVE NUOVE ENERGIE S.R.L.;Z2327C1EAA;SALDO Fatt.n. 9001300  del 17/07/2019 Anno termico 2018/2019 - acqua calda01/03/2019-30/04/2019 - Scuola Primaria Liedolo;05-08-2019;34;0;197;1;Spese correnti;3;Acquisto di beni e servizi;2;Acquisto di servizi;5;Utenze e canoni;6;Gas;05-08-2019;
1032;1;0;"209,26";"209,26";BIM PIAVE NUOVE ENERGIE S.R.L.;Z2327C1EAA;SALDO Fatt.n. 9001294  del 17/07/2019 Anno termico 2018/2019 - Saldo manutenzione e controllo dell'impianto termico - Impianti Comunali;05-08-2019;530;0;200;1;Spese correnti;3;Acquisto di beni e servizi;2;Acquisto di servizi;5;Utenze e canoni;6;Gas;05-08-2019;
1033;1;0;"3.762,36";"3.762,36";BIM PIAVE NUOVE ENERGIE S.R.L.;Z2327C1EAA;SALDO Fatt.n. 9001301  del 17/07/2019 Anno termico 2018/2019- acqua calda 01/03/2019-30/04/2019 - Scuola Primaria CÃ  Rainati 65.33;05-08-2019;252;0;199;1;Spese correnti;3;Acquisto di beni e servizi;2;Acquisto di servizi;5;Utenze e canoni;6;Gas;05-08-2019;
1034;1;0;"1.500,00";"1.500,00";SQUILLANTE FELICE ABBIGLIAMENTO;ZA225381B0;ACCONTO Fatt.n. E2019073  del 15/07/2019 FORNITURA VESTIARIO ED ACCESSORI PER POLIZIA LOCALE;05-08-2019;175;0;646;1;Spese correnti;3;Acquisto di beni e servizi;1;Acquisto di beni;2;Altri beni di consumo;4;Vestiario;05-08-2019;
1035;1;0;"565,09";"565,09";SQUILLANTE FELICE ABBIGLIAMENTO;ZA225381B0;ACCONTO Fatt.n. E2019073  del 15/07/2019 FORNITURA VESTIARIO ED ACCESSORI PER POLIZIA LOCALE;05-08-2019;178;0;74;1;Spese correnti;3;Acquisto di beni e servizi;1;Acquisto di beni;2;Altri beni di consumo;4;Vestiario;05-08-2019;
1036;1;0;"1.000,00";"1.000,00";SQUILLANTE FELICE ABBIGLIAMENTO;ZA225381B0;SALDO Fatt.n. E2019073  del 15/07/2019 FORNITURA VESTIARIO ED ACCESSORI PER POLIZIA LOCALE;05-08-2019;175;0;73;1;Spese correnti;3;Acquisto di beni e servizi;1;Acquisto di beni;2;Altri beni di consumo;4;Vestiario;05-08-2019;
1037;1;0;"413,69";"413,69";E.N.P.A. ENTE NAZIONALE PROTEZIONE ANIMALI ONLUS;Z7A23C5DB3;SALDO Fatt.n. 1213/PA  del 22/07/2019 CUSTODIA E MANTENIMENTO CANI APRILE-GIUGNO 2019;05-08-2019;180;0;286;1;Spese correnti;3;Acquisto di beni e servizi;2;Acquisto di servizi;15;Contratti di servizio pubblico;11;Contratti di servizio per la lotta al randagismo;05-08-2019;
1038;1;0;"152,26";"152,26";ACCATRE-STP S.R.L.;Z4F28B7589;SALDO Fatt.n. 190604/1  del 24/07/2019 VARIAZIONE DEL LEGALE RAPPRESENTANTE;05-08-2019;39;2;291;1;Spese correnti;3;Acquisto di beni e servizi;2;Acquisto di servizi;19;Servizi informatici e di telecomunicazioni;10;Servizi di consulenza e prestazioni professionali ICT;05-08-2019;
1039;1;0;"-7.248,75";"7.248,75";PA SISTEMI S.R.L.;Z0C28FC813;SALDO Fatt.n. 68  del 16/07/2019 NOTA DI CREDITO;06-08-2019;746;0;327;2;Spese in conto capitale;2;Investimenti fissi lordi e acquisto di terreni;1;Beni materiali;7;Hardware;999;Hardware n.a.c.;06-08-2019;
1039;2;0;"7.248,75";"7.248,75";PA SISTEMI S.R.L.;Z0C28FC813;SALDO Fatt.n. 67  del 15/07/2019 FT ERRATA;06-08-2019;746;0;327;2;Spese in conto capitale;2;Investimenti fissi lordi e acquisto di terreni;1;Beni materiali;7;Hardware;999;Hardware n.a.c.;06-08-2019;
1039;3;0;"7.248,75";"7.248,75";PA SISTEMI S.R.L.;Z0C28FC813;SALDO Fatt.n. 69  del 16/07/2019 LAVORI PER NUOVO CENTRALINO;06-08-2019;746;0;327;2;Spese in conto capitale;2;Investimenti fissi lordi e acquisto di terreni;1;Beni materiali;7;Hardware;999;Hardware n.a.c.;06-08-2019;
1040;1;0;"1.600,00";"1.600,00";OMESSO NOMINATIVO NEL RISPETTO DELLA NORMATIVA SULLA PROTEZIONE DATI PERSONALI; ;CONTRIBUTO ECONOMICO STRAORDINARIO PER GARANTIRE FORNITURE DI PRIMA NECESSITA'.;06-08-2019;576;0;390;1;Spese correnti;4;Trasferimenti correnti;2;Trasferimenti correnti a Famiglie;2;Interventi assistenziali;999;Altri assegni e sussidi assistenziali;06-08-2019;
1041;1;0;"237,90";"512,40";ELA SISTEMI ELETTRONICI S.R.L.;Z4A269D4A7;ACCONTO Fatt.n. 6/PA  del 25/07/2019 MANUTENZIONE IMPIANTO DI ALLARME;06-08-2019;310;1;13;1;Spese correnti;3;Acquisto di beni e servizi;2;Acquisto di servizi;9;Manutenzione ordinaria e riparazioni;9;"Manutenzione ordinaria e riparazioni di beni immobili di valore culturale, storico ed artistico";06-08-2019;
1041;2;0;"274,50";"512,40";ELA SISTEMI ELETTRONICI S.R.L.;Z4A269D4A7;SALDO Fatt.n. 5/PA  del 25/07/2019 MANUTENZIONE IMPIANTO DI ALLARME;06-08-2019;310;1;13;1;Spese correnti;3;Acquisto di beni e servizi;2;Acquisto di servizi;9;Manutenzione ordinaria e riparazioni;9;"Manutenzione ordinaria e riparazioni di beni immobili di valore culturale, storico ed artistico";06-08-2019;
1042;1;0;"18,30";"18,30";ELA SISTEMI ELETTRONICI S.R.L.;Z4A269D4A7;SALDO Fatt.n. 6/PA  del 25/07/2019 MANUTENZIONE IMPIANTO DI ALLARME;06-08-2019;313;1;12;1;Spese correnti;3;Acquisto di beni e servizi;2;Acquisto di servizi;9;Manutenzione ordinaria e riparazioni;9;"Manutenzione ordinaria e riparazioni di beni immobili di valore culturale, storico ed artistico";06-08-2019;
1043;1;0;"3.425,76";"3.425,76";I.S. TESSAROLO E ASSOCIATI;ZCD1D66876;SALDO Fatt.n. 123  del 22/07/2019 Competenze per il collaudo statico in corso d'opera lavori di adeguamento sismico plesso scolastico Capoluogo;06-08-2019;775;0;617;2;Spese in conto capitale;2;Investimenti fissi lordi e acquisto di terreni;1;Beni materiali;9;Beni immobili;3;Fabbricati ad uso scolastico;06-08-2019;
1044;1;0;"56,12";"56,12";SICURITALIA S.P.A.;Z3827208DE;SALDO Fatt.n. 9117006189  del 31/07/2019 SERVIZI ISPETTIVI EDIFICI COMUNALI;06-08-2019;71;0;89;1;Spese correnti;3;Acquisto di beni e servizi;2;Acquisto di servizi;5;Utenze e canoni;999;Utenze e canoni per altri servizi n.a.c.;06-08-2019;
1045;1;0;"2.400,45";"2.400,45";CASA DI RIPOSO 'AITA'; ;SALDO Fatt.n. 333/B  del 31/07/2019 SERVIZIO DI ASS. DOMICILIARE - MAGGIO 2019;06-08-2019;562;1;240;1;Spese correnti;3;Acquisto di beni e servizi;2;Acquisto di servizi;15;Contratti di servizio pubblico;9;Contratti di servizio di assistenza sociale domiciliare;06-08-2019;
1046;1;0;"991,20";"991,20";KIRIKU' SOCIETA' COOPERATIVA SOCIALE ONLUS;ZC12810421;SALDO Fatt.n. 189  del 31/07/2019 EDUCATIVA DOMICILIARE -LUGLIO 2019;06-08-2019;559;0;184;1;Spese correnti;3;Acquisto di beni e servizi;2;Acquisto di servizi;99;Altri servizi;999;Altri servizi diversi n.a.c.;06-08-2019;
1047;1;0;"1.869,30";"1.869,30";OPERE PIE D'ONIGO; ;SALDO Fatt.n. 239/2  del 31/07/2019 PRESTAZIONI SOCIALI B.P. - LUGLIO 2019;06-08-2019;560;0;32;1;Spese correnti;3;Acquisto di beni e servizi;2;Acquisto di servizi;15;Contratti di servizio pubblico;8;Contratti di servizio di assistenza sociale residenziale e semiresidenziale;06-08-2019;
1048;1;0;"1.056,09";"1.056,09";LA FONTESE DI GIANNI BROLESE & C. S.A.S.;Z2F293CD32;SALDO Fatt.n. 101/F  del 31/07/2019 FORNITURA CARTA PER FOTOCOPIATORI COMUNALI;06-08-2019;37;0;375;1;Spese correnti;3;Acquisto di beni e servizi;1;Acquisto di beni;2;Altri beni di consumo;1;"Carta, cancelleria e stampati";06-08-2019;
1049;1;0;"156,68";"156,68";POSTE ITALIANE SPA - PROVENTI POLO LOGISTICO;Z6F2648DBC;SALDO Fatt.n. 8719234608  del 22/07/2019 PRODOTTI PROSTALI - GIUGNO 2019;06-08-2019;34;3;539;1;Spese correnti;3;Acquisto di beni e servizi;2;Acquisto di servizi;16;Servizi amministrativi;2;Spese postali;06-08-2019;
1050;1;0;"390,40";"390,40";A & D DI MIELE ANTONIO;Z88291DF7F;SALDO Fatt.n. 18/FE  del 10/07/2019 ACCONTO ANALISI COSTI RETE FISSA E MOBILE;06-08-2019;746;0;360;2;Spese in conto capitale;2;Investimenti fissi lordi e acquisto di terreni;1;Beni materiali;7;Hardware;999;Hardware n.a.c.;06-08-2019;
1051;1;0;"198,97";"198,97";CARROZZERIA CARRON S.R.L.;Z7028FD25C;SALDO Fatt.n. 263  del 11/07/2019 MANUTENZIONE AUTO UFFICIO SOCIALE;06-08-2019;571;1;363;1;Spese correnti;3;Acquisto di beni e servizi;2;Acquisto di servizi;9;Manutenzione ordinaria e riparazioni;1;"Manutenzione ordinaria e riparazioni di mezzi di trasporto ad uso civile, di sicurezza e ordine pubblico";06-08-2019;
1052;1;0;"1.209,00";"1.209,00";OMESSO NOMINATIVO NEL RISPETTO DELLA NORMATIVA SULLA PROTEZIONE DATI PERSONALI; ;IMPEGNO E LIQUIDAZIONE DI UN CONTRIBUTO ECONOMICO PER IL RINNOVO DEL PREMIO ASSICURATIVO -POLIZZE INFORTUNI E KASKO DEI VOLONTARI. PERIODO DAL 07.02.2019 al 07.02.2020.;07-08-2019;574;0;385;1;Spese correnti;4;Trasferimenti correnti;1;Trasferimenti correnti a Amministrazioni Pubbliche;4;Trasferimenti correnti a organismi interni e/o unità locali della amministrazione;1;Trasferimenti correnti a organismi interni e/o unità locali della amministrazione;07-08-2019;
1053;1;0;"490,56";"6.290,56";ZEN GIORGIO; ;INCARICO DI COLLABORAZIONE OCCASIONALE PER SUPPORTO AL RESPONSABILE DELL'AREA ECONOMICO FINANZIARIA AL DOTT. ZEN GIORGIO - PERIODO: MARZO (SALDO MESE)/LUGLIO 2019: RIMBORSO N. 73 ACCESSI.;07-08-2019;48;0;51;1;Spese correnti;3;Acquisto di beni e servizi;2;Acquisto di servizi;11;Prestazioni professionali e specialistiche;999;Altre prestazioni professionali e specialistiche n.a.c.;07-08-2019;
1053;2;0;"5.800,00";"6.290,56";ZEN GIORGIO; ;LIQUIDAZIONE INCARICO DI COLLABORAZIONE OCCASIONALE PER SUPPORTO AL RESPONSABILE DELL'AREA ECONOMICO FINANZIARIA AL DOTT. ZEN GIORGIO - DIPENDENTE DEL COMUNE DI CASTELLO DI GODEGO - PERIODO: MARZO (SALDO MESE)/LUGLIO 2019.;07-08-2019;48;0;51;1;Spese correnti;3;Acquisto di beni e servizi;2;Acquisto di servizi;11;Prestazioni professionali e specialistiche;999;Altre prestazioni professionali e specialistiche n.a.c.;07-08-2019;
1054;1;0;"245,00";"245,00";AGENZIA DELLE ENTRATE - UFFICIO TERRIT. DI MONTEBELLUNA; ;AGENZIA DELLE ENTRATE F24EP DEL 06/02/2019 - SPESE DI REGISTRAZIONE E BOLLATURA TELEMATICA SU CONTRATTO FAGGION ANTONIO S.R.L. (P.       7 -R.     188);08-08-2019;34;3;0;1;Spese correnti;3;Acquisto di beni e servizi;2;Acquisto di servizi;16;Servizi amministrativi;999;Altre spese per servizi amministrativi;08-08-2019;
1055;1;0;"677,63";"677,63";CASA DI RIPOSO 'AITA'; ;SALDO Fatt.n. 359/B  del 02/08/2019 SERVIZIO DI A.D. - GIUGNO 2019;08-08-2019;562;1;240;1;Spese correnti;3;Acquisto di beni e servizi;2;Acquisto di servizi;15;Contratti di servizio pubblico;9;Contratti di servizio di assistenza sociale domiciliare;08-08-2019;
1056;1;0;"356,24";"356,24";TIPOGRAFIA BATTAGIN SRL;Z62268EAE8;SALDO Fatt.n. 3/P  del 31/07/2019 PANNELLO IN ALUCOBEST PER IL MUSEO;08-08-2019;785;0;577;2;Spese in conto capitale;2;Investimenti fissi lordi e acquisto di terreni;1;Beni materiali;10;"Beni immobili di valore culturale, storico ed artistico";8;"Musei, teatri e biblioteche di valore culturale, storico ed artistico";08-08-2019;
1057;1;0;"210,00";"210,00";SONDA COOPERATIVA SOCIALE ONLUS; ;SALDO Fatt.n. 268/PA/2019  del 05/08/2019 RETTE PER ANZIANI - LUGLIO 2019;08-08-2019;560;0;274;1;Spese correnti;3;Acquisto di beni e servizi;2;Acquisto di servizi;15;Contratti di servizio pubblico;8;Contratti di servizio di assistenza sociale residenziale e semiresidenziale;08-08-2019;
1058;1;0;"8.462,74";"8.462,74";BATTAGIN IMPIANTI SRL;Z8928393AD;SALDO Fatt.n. 196/19  del 31/07/2019 ADEGUAMENTO IMPIANTO ELETTRICO AL CASTELLARO;08-08-2019;785;0;234;2;Spese in conto capitale;2;Investimenti fissi lordi e acquisto di terreni;1;Beni materiali;10;"Beni immobili di valore culturale, storico ed artistico";8;"Musei, teatri e biblioteche di valore culturale, storico ed artistico";08-08-2019;
1059;1;0;"4,39";"56,04";ALTO TREVIGIANO SERVIZI S.R.L.;ZF9282AA1E;SALDO Fatt.n. O2201900004819  del 19/07/2019 SERVIZIO IDRICO STRADE: APRILE-GIUGNO 2019;08-08-2019;591;2;212;1;Spese correnti;3;Acquisto di beni e servizi;2;Acquisto di servizi;5;Utenze e canoni;5;Acqua;08-08-2019;
1059;2;0;"7,49";"56,04";ALTO TREVIGIANO SERVIZI S.R.L.;ZF9282AA1E;SALDO Fatt.n. O2201900004808  del 19/07/2019 SERVIZIO IDRICO STRADE: APRILE-GIUGNO 2019;08-08-2019;591;2;212;1;Spese correnti;3;Acquisto di beni e servizi;2;Acquisto di servizi;5;Utenze e canoni;5;Acqua;08-08-2019;
1059;3;0;"9,55";"56,04";ALTO TREVIGIANO SERVIZI S.R.L.;ZF9282AA1E;SALDO Fatt.n. O2201900004806  del 19/07/2019 SERVIZIO IDRICO STRADE: APRILE - GIUGNO 2019;08-08-2019;591;2;212;1;Spese correnti;3;Acquisto di beni e servizi;2;Acquisto di servizi;5;Utenze e canoni;5;Acqua;08-08-2019;
1059;4;0;"9,56";"56,04";ALTO TREVIGIANO SERVIZI S.R.L.;ZF9282AA1E;SALDO Fatt.n. O2201900004816  del 19/07/2019 SERVIZIO IDRICO STRADE: APRILE-GIUGNO 2019;08-08-2019;591;2;212;1;Spese correnti;3;Acquisto di beni e servizi;2;Acquisto di servizi;5;Utenze e canoni;5;Acqua;08-08-2019;
1059;5;0;"25,05";"56,04";ALTO TREVIGIANO SERVIZI S.R.L.;ZF9282AA1E;SALDO Fatt.n. O2201900004825  del 19/07/2019 SERVIZIO IDRICO STRADE: APRILE-GIUGNO 2019;08-08-2019;591;2;212;1;Spese correnti;3;Acquisto di beni e servizi;2;Acquisto di servizi;5;Utenze e canoni;5;Acqua;08-08-2019;
1060;1;0;"5,42";"661,67";ALTO TREVIGIANO SERVIZI S.R.L.;ZF9282AA1E;SALDO Fatt.n. O2201900004807  del 19/07/2019 SERVIZIO IDRICO STRADE: APRILE-GIUGNO 2019;08-08-2019;591;2;212;1;Spese correnti;3;Acquisto di beni e servizi;2;Acquisto di servizi;5;Utenze e canoni;5;Acqua;08-08-2019;
1060;2;0;"6,45";"661,67";ALTO TREVIGIANO SERVIZI S.R.L.;ZF9282AA1E;SALDO Fatt.n. O2201900004818  del 19/07/2019 SERVIZIO IDRICO STRADE: APRILE - GIUGNO 2019;08-08-2019;591;2;212;1;Spese correnti;3;Acquisto di beni e servizi;2;Acquisto di servizi;5;Utenze e canoni;5;Acqua;08-08-2019;
1060;3;0;"10,79";"661,67";ALTO TREVIGIANO SERVIZI S.R.L.;ZF9282AA1E;SALDO Fatt.n. O2201900004813  del 19/07/2019 SERVIZIO IDRICO STRADE: APRILE-GIUGNO 2019;08-08-2019;591;2;212;1;Spese correnti;3;Acquisto di beni e servizi;2;Acquisto di servizi;5;Utenze e canoni;5;Acqua;08-08-2019;
1060;4;0;"277,27";"661,67";ALTO TREVIGIANO SERVIZI S.R.L.;ZF9282AA1E;SALDO Fatt.n. O2201900004803  del 19/07/2019 SERVIZIO IDRICO STRADE: APRILE-GIUGNO 2019;08-08-2019;591;2;212;1;Spese correnti;3;Acquisto di beni e servizi;2;Acquisto di servizi;5;Utenze e canoni;5;Acqua;08-08-2019;
1060;5;0;"361,74";"661,67";ALTO TREVIGIANO SERVIZI S.R.L.;ZF9282AA1E;SALDO Fatt.n. O2201900004817  del 19/07/2019 SERVIZIO IDRICO STRADE: APRILE - GIUGNO 2019;08-08-2019;591;2;212;1;Spese correnti;3;Acquisto di beni e servizi;2;Acquisto di servizi;5;Utenze e canoni;5;Acqua;08-08-2019;
1061;1;0;"122,22";"122,22";ALTO TREVIGIANO SERVIZI S.R.L.;ZF9282AA1E;SALDO Fatt.n. O2201900004815  del 19/07/2019 SERVIZIO IDRICO MUNICIPIO: APRILE - GIUGNO 2019;08-08-2019;34;0;213;1;Spese correnti;3;Acquisto di beni e servizi;2;Acquisto di servizi;5;Utenze e canoni;5;Acqua;08-08-2019;
1062;1;0;"34,55";"220,86";ALTO TREVIGIANO SERVIZI S.R.L.;ZF9282AA1E;SALDO Fatt.n. O2201900004804  del 19/07/2019 SERVIZIO IDRICO LA ROGGIA: APRILE-GIUGNO 2019;08-08-2019;561;2;207;1;Spese correnti;3;Acquisto di beni e servizi;2;Acquisto di servizi;5;Utenze e canoni;5;Acqua;08-08-2019;
1062;2;0;"186,31";"220,86";ALTO TREVIGIANO SERVIZI S.R.L.;ZF9282AA1E;SALDO Fatt.n. O2201900004814  del 19/07/2019 SERVIZIO IDRICO LA ROGGIA: APRILE-GIUGNO 2019;08-08-2019;561;2;207;1;Spese correnti;3;Acquisto di beni e servizi;2;Acquisto di servizi;5;Utenze e canoni;5;Acqua;08-08-2019;
1063;1;0;"103,66";"503,92";ALTO TREVIGIANO SERVIZI S.R.L.;ZF9282AA1E;SALDO Fatt.n. O2201900004826  del 19/07/2019 SERVIZIO IDRICO SCUOLA CA' RAINATI: APRILE-GIUGNO 2019;08-08-2019;235;0;204;1;Spese correnti;3;Acquisto di beni e servizi;2;Acquisto di servizi;5;Utenze e canoni;5;Acqua;08-08-2019;
1063;2;0;"195,05";"503,92";ALTO TREVIGIANO SERVIZI S.R.L.;ZF9282AA1E;SALDO Fatt.n. O2201900004827  del 19/07/2019 SERVIZIO IDRICO SCUOLA PRIMARIA: APRILE-GIUGNO 2019;08-08-2019;235;0;204;1;Spese correnti;3;Acquisto di beni e servizi;2;Acquisto di servizi;5;Utenze e canoni;5;Acqua;08-08-2019;
1063;3;0;"205,21";"503,92";ALTO TREVIGIANO SERVIZI S.R.L.;ZF9282AA1E;SALDO Fatt.n. O2201900004805  del 19/07/2019 SERVIZIO IDRICO SCUOLA PRIMARIA: APRILE-GIUGNO 2019;08-08-2019;235;0;204;1;Spese correnti;3;Acquisto di beni e servizi;2;Acquisto di servizi;5;Utenze e canoni;5;Acqua;08-08-2019;
1064;1;0;"15,75";"95,80";ALTO TREVIGIANO SERVIZI S.R.L.;ZF9282AA1E;SALDO Fatt.n. O2201900004809  del 19/07/2019 SERVIZIO IDRICO CIMITERO: APRILE - GIUGNO 2019;08-08-2019;413;0;209;1;Spese correnti;3;Acquisto di beni e servizi;2;Acquisto di servizi;5;Utenze e canoni;5;Acqua;08-08-2019;
1064;2;0;"26,08";"95,80";ALTO TREVIGIANO SERVIZI S.R.L.;ZF9282AA1E;SALDO Fatt.n. O2201900004829  del 19/07/2019 SERVIZIO IDRICO CIMITERO: APRILE - GIUGNO 2019;08-08-2019;413;0;209;1;Spese correnti;3;Acquisto di beni e servizi;2;Acquisto di servizi;5;Utenze e canoni;5;Acqua;08-08-2019;
1064;3;0;"53,97";"95,80";ALTO TREVIGIANO SERVIZI S.R.L.;ZF9282AA1E;SALDO Fatt.n. O2201900004821  del 19/07/2019 SERVIZIO IDRICO CIMITERO: APRILE-GIUGNO 2019;08-08-2019;413;0;209;1;Spese correnti;3;Acquisto di beni e servizi;2;Acquisto di servizi;5;Utenze e canoni;5;Acqua;08-08-2019;
1065;1;0;"121,26";"753,68";ALTO TREVIGIANO SERVIZI S.R.L.;ZF9282AA1E;SALDO Fatt.n. O2201900004824  del 19/07/2019 SERVIZIO IDRICO SCUOLE: APRILE-GIUGNO 2019;08-08-2019;252;0;211;1;Spese correnti;3;Acquisto di beni e servizi;2;Acquisto di servizi;5;Utenze e canoni;5;Acqua;08-08-2019;
1065;2;0;"632,42";"753,68";ALTO TREVIGIANO SERVIZI S.R.L.;ZF9282AA1E;SALDO Fatt.n. O2201900004823  del 19/07/2019 SERVIZIO IDRICO SCUOLA SECINDARIA: APRILE-GIUGNO 2019;08-08-2019;252;0;211;1;Spese correnti;3;Acquisto di beni e servizi;2;Acquisto di servizi;5;Utenze e canoni;5;Acqua;08-08-2019;
1066;1;0;"27,02";"960,55";ALTO TREVIGIANO SERVIZI S.R.L.;ZF9282AA1E;SALDO Fatt.n. O2201900004822  del 19/07/2019 SERVIZIO IDRICO MAGAZZINO: APRILE-GIUGNO 2019;08-08-2019;530;0;210;1;Spese correnti;3;Acquisto di beni e servizi;2;Acquisto di servizi;5;Utenze e canoni;5;Acqua;08-08-2019;
1066;2;0;"142,41";"960,55";ALTO TREVIGIANO SERVIZI S.R.L.;ZF9282AA1E;SALDO Fatt.n. O2201900004820  del 19/07/2019 SERVIZIO IDRICO IMP. SPORTIVI: APRILE - GIUGNO 2019;08-08-2019;530;0;210;1;Spese correnti;3;Acquisto di beni e servizi;2;Acquisto di servizi;5;Utenze e canoni;5;Acqua;08-08-2019;
1066;3;0;"211,34";"960,55";ALTO TREVIGIANO SERVIZI S.R.L.;ZF9282AA1E;SALDO Fatt.n. O2201900004810  del 19/07/2019 SERVIZIO IDRICO CENTRO CULTURALE: APRILE-GIUGNO 2019;08-08-2019;530;0;210;1;Spese correnti;3;Acquisto di beni e servizi;2;Acquisto di servizi;5;Utenze e canoni;5;Acqua;08-08-2019;
1066;4;0;"579,78";"960,55";ALTO TREVIGIANO SERVIZI S.R.L.;ZF9282AA1E;SALDO Fatt.n. O2201900004828  del 19/07/2019 SERVIZIO IDRICO IMP. SPORTIVI: APRILE-GIUGNO 2019;08-08-2019;530;0;210;1;Spese correnti;3;Acquisto di beni e servizi;2;Acquisto di servizi;5;Utenze e canoni;5;Acqua;08-08-2019;
1067;1;0;"4,38";"4,38";ALTO TREVIGIANO SERVIZI S.R.L.;ZF9282AA1E;SALDO Fatt.n. O2201900004811  del 19/07/2019 SERVIZIO IDRICO TORRE EZZ.: APRILE - GIUGNO 2019;08-08-2019;313;2;208;1;Spese correnti;3;Acquisto di beni e servizi;2;Acquisto di servizi;5;Utenze e canoni;5;Acqua;08-08-2019;
1068;1;0;"43,19";"43,19";ALTO TREVIGIANO SERVIZI S.R.L.;ZF9282AA1E;SALDO Fatt.n. O2201900004812  del 19/07/2019 SERVIZIO IDRICO BARCHESSA: APRILE-GIUGNO 2019;08-08-2019;310;0;205;1;Spese correnti;3;Acquisto di beni e servizi;2;Acquisto di servizi;5;Utenze e canoni;5;Acqua;08-08-2019;
1069;1;0;"1.440,00";"1.440,00";NOIGROUP Coop. Soc. a R.L.;Z5F268727B;SALDO Fatt.n. 573  del 31/07/2019 SERVIZIO GESTIONE DELLA BIBLIOTECA ATTIVITA'LUGLIO  2019;08-08-2019;302;1;553;1;Spese correnti;3;Acquisto di beni e servizi;2;Acquisto di servizi;16;Servizi amministrativi;999;Altre spese per servizi amministrativi;08-08-2019;
1070;1;0;"132,01";"132,01";KUWAIT PETROLEUM ITALIA S.P.A.;Z4E197F01F;SALDO Fatt.n. PJ01466699  del 31/07/2019 CARBURANTE AUTO POLIZIA LOCALE;08-08-2019;179;0;154;1;Spese correnti;3;Acquisto di beni e servizi;1;Acquisto di beni;2;Altri beni di consumo;2;"Carburanti, combustibili e lubrificanti";08-08-2019;
1071;1;0;"66,33";"194,47";KUWAIT PETROLEUM ITALIA S.P.A.;Z4E197F01F;SALDO Fatt.n. PJ01466696  del 31/07/2019 CARBURANTE AUTO OPERAI;08-08-2019;590;0;156;1;Spese correnti;3;Acquisto di beni e servizi;1;Acquisto di beni;2;Altri beni di consumo;2;"Carburanti, combustibili e lubrificanti";08-08-2019;
1071;2;0;"128,14";"194,47";KUWAIT PETROLEUM ITALIA S.P.A.;Z4E197F01F;SALDO Fatt.n. PJ01466697  del 31/07/2019 CARBURANTE AUTO OPERAI;08-08-2019;590;0;156;1;Spese correnti;3;Acquisto di beni e servizi;1;Acquisto di beni;2;Altri beni di consumo;2;"Carburanti, combustibili e lubrificanti";08-08-2019;
1072;1;0;"106,01";"106,01";KUWAIT PETROLEUM ITALIA S.P.A.;Z4E197F01F;SALDO Fatt.n. PJ01466698  del 31/07/2019 CARBURANTE AUTO UFF. SOCIALE;08-08-2019;571;0;155;1;Spese correnti;3;Acquisto di beni e servizi;1;Acquisto di beni;2;Altri beni di consumo;2;"Carburanti, combustibili e lubrificanti";08-08-2019;
1073;1;0;"1.119,96";"1.119,96";SAMI PROJECT di SAMI PROJECT;Z3F26AD96F;ACCONTO Fatt.n. 23/2019  del 29/07/2019 CONNESSIONE IMPIANTO FOTOVOLTAICO ISTITUTO COMPRENSIVO DEL CAPOLUOGO;08-08-2019;775;5;648;2;Spese in conto capitale;2;Investimenti fissi lordi e acquisto di terreni;3;Beni immateriali;5;Incarichi professionali per la realizzazione di investimenti;1;Incarichi professionali per la realizzazione di investimenti;08-08-2019;
1074;1;0;"417,24";"417,24";SAMI PROJECT di SAMI PROJECT;Z3F26AD96F;SALDO Fatt.n. 23/2019  del 29/07/2019 CONNESSIONE IMPIANTO FOTOVOLTAICO ISTITUTO COMPRENSIVO DEL CAPOLUOGO;08-08-2019;775;5;650;2;Spese in conto capitale;2;Investimenti fissi lordi e acquisto di terreni;3;Beni immateriali;5;Incarichi professionali per la realizzazione di investimenti;1;Incarichi professionali per la realizzazione di investimenti;08-08-2019;
1075;1;0;"24,40";"598,40";ASCO TLC S.P.A.;ZCD271B191;SALDO Fatt.n. 09024188  del 31/07/2019 UTENZE E CANONI - LUGLIO 2019;08-08-2019;252;0;79;1;Spese correnti;3;Acquisto di beni e servizi;2;Acquisto di servizi;5;Utenze e canoni;999;Utenze e canoni per altri servizi n.a.c.;08-08-2019;
1075;2;0;"104,30";"598,40";ASCO TLC S.P.A.;ZCD271B191;ACCONTO Fatt.n. 09024190  del 31/07/2019 UTENZE E CANONI SCUOLE - LUGLIO 2019;08-08-2019;252;0;79;1;Spese correnti;3;Acquisto di beni e servizi;2;Acquisto di servizi;5;Utenze e canoni;999;Utenze e canoni per altri servizi n.a.c.;08-08-2019;
1075;3;0;"469,70";"598,40";ASCO TLC S.P.A.;ZCD271B191;SALDO Fatt.n. 09024189  del 31/07/2019 UTENZE E CANONI SCUOLE;08-08-2019;252;0;79;1;Spese correnti;3;Acquisto di beni e servizi;2;Acquisto di servizi;5;Utenze e canoni;999;Utenze e canoni per altri servizi n.a.c.;08-08-2019;
1076;1;0;"72,60";"72,60";ASCO TLC S.P.A.;ZCD271B191;SALDO Fatt.n. 09024190  del 31/07/2019 UTENZE E CANONI SCUOLE - LUGLIO 2019;08-08-2019;561;2;80;1;Spese correnti;3;Acquisto di beni e servizi;2;Acquisto di servizi;5;Utenze e canoni;999;Utenze e canoni per altri servizi n.a.c.;08-08-2019;
1078;1;0;"928,00";"928,00";I.N.P.S. SEDE DI TREVISO; ;INPS C/ENTE SU INCARICO DI COLLABORAZIONE OCCASIONALE PER SUPPORTO AL RESPONSABILE DELL'AREA ECONOMICO FINANZIARIA AL DOTT. ZEN GIORGIO - DIPENDENTE DEL COMUNE DI CASTELLO DI GODEGO - PERIODO: MARZO (SALDO MESE)/LUGLIO 2019.;08-08-2019;48;0;51;1;Spese correnti;3;Acquisto di beni e servizi;2;Acquisto di servizi;11;Prestazioni professionali e specialistiche;999;Altre prestazioni professionali e specialistiche n.a.c.;08-08-2019;
1081;1;0;"238,08";"238,08";PERSONALE DIPENDENTE - SEDE; ;IMPEGNO DI SPESA PER RIMBORSO SPESE E ACCESSI AL SEGRETARIO COMUNALE DR. ORSO PAOLO PER L'ANNO 2019.;19-08-2019;20;0;29;1;Spese correnti;3;Acquisto di beni e servizi;2;Acquisto di servizi;2;"Organizzazione eventi, pubblicita` e servizi per trasferta";1;Rimborso per viaggio e trasloco;19-08-2019;
1082;1;0;"26,45";"26,45";PERSONALE DIPENDENTE - SEDE; ;STIPENDI MESE DI: AGOSTO 19;19-08-2019;20;0;29;1;Spese correnti;3;Acquisto di beni e servizi;2;Acquisto di servizi;2;"Organizzazione eventi, pubblicita` e servizi per trasferta";1;Rimborso per viaggio e trasloco;19-08-2019;
1111;1;0;"17.956,83";"17.956,83";AMMINISTRATORI COMUNALI; ;INDENNITA' DI CARICA  CON ARRETRATI: MESE DI: AGOSTO 19;19-08-2019;2;0;377;1;Spese correnti;3;Acquisto di beni e servizi;2;Acquisto di servizi;1;Organi e incarichi istituzionali dell'amministrazione;1;Organi istituzionali dell'amministrazione - Indennità;19-08-2019;
1112;1;0;"12.549,84";"12.549,84";AMMINISTRATORI COMUNALI; ;T.F.M. EX SINDACO MAZZARO LUIGI EROGATO NEL MESE DI: AGOSTO 2019;19-08-2019;2;0;379;1;Spese correnti;3;Acquisto di beni e servizi;2;Acquisto di servizi;1;Organi e incarichi istituzionali dell'amministrazione;1;Organi istituzionali dell'amministrazione - Indennità;19-08-2019;
1116;1;0;"9.786,77";"9.786,77";CASSA DEPOSITI E PRESTITI S.P.A.; ;SOGGETTI DIVERSI-PAGAMENTO ADUE B2B   COD DISP 011906190VDWFJ MANDATO 292844000914499 PFM   RUOLO 06052 RATE AMMORTAMENTO PRESTITI - PRIMO SEMESTRE 2019. (P.      35 -R.     928);20-08-2019;604;0;324;1;Spese correnti;7;Interessi passivi;5;Interessi su Mutui e altri finanziamenti a medio lungo termine;4;Interessi passivi su finanziamenti a medio lungo termine a Imprese;3;Interessi passivi a Cassa Depositi e Prestiti SPA su mutui e altri finanziamenti a medio lungo termine;20-08-2019;
1118;1;0;"332,69";"332,69";CASSA DEPOSITI E PRESTITI S.P.A.; ;SOGGETTI DIVERSI-PAGAMENTO ADUE B2B  COD DISP 011906190VDWFE MANDATO 292844000914499 PFM   RUOLO 06052 RATE AMMORTAMENTO PRESTITI MUTUI - Primo semestre 2019. (P.      36 -R.     929);20-08-2019;238;0;321;1;Spese correnti;7;Interessi passivi;5;Interessi su Mutui e altri finanziamenti a medio lungo termine;4;Interessi passivi su finanziamenti a medio lungo termine a Imprese;4;Interessi passivi a Cassa Depositi e Prestiti - Gestione Tesoro su mutui e altri finanziamenti a medio lungo termine;20-08-2019;
1119;1;0;"326,61";"326,61";CASSA DEPOSITI E PRESTITI S.P.A.; ;SOGGETTI DIVERSI-PAGAMENTO ADUE B2B  COD DISP 011906190VDWFE MANDATO 292844000914499 PFM   RUOLO 06052 RATE AMMORTAMENTO PRESTITI MUTUI - Primo semestre 2019. (P.      36 -R.     929);20-08-2019;316;0;322;1;Spese correnti;7;Interessi passivi;5;Interessi su Mutui e altri finanziamenti a medio lungo termine;4;Interessi passivi su finanziamenti a medio lungo termine a Imprese;4;Interessi passivi a Cassa Depositi e Prestiti - Gestione Tesoro su mutui e altri finanziamenti a medio lungo termine;20-08-2019;
1120;1;0;"1.933,20";"1.933,20";CASSA DEPOSITI E PRESTITI S.P.A.; ;SOGGETTI DIVERSI-PAGAMENTO ADUE B2B  COD DISP 011906190VDWFE MANDATO 292844000914499 PFM   RUOLO 06052 RATE AMMORTAMENTO PRESTITI MUTUI - Primo semestre 2019. (P.      36 -R.     929);20-08-2019;421;0;323;1;Spese correnti;7;Interessi passivi;5;Interessi su Mutui e altri finanziamenti a medio lungo termine;4;Interessi passivi su finanziamenti a medio lungo termine a Imprese;4;Interessi passivi a Cassa Depositi e Prestiti - Gestione Tesoro su mutui e altri finanziamenti a medio lungo termine;20-08-2019;
1121;1;0;"6.275,84";"6.275,84";CASSA DEPOSITI E PRESTITI S.P.A.; ;SOGGETTI DIVERSI-PAGAMENTO ADUE B2B  COD DISP 011906190VDWFE MANDATO 292844000914499 PFM   RUOLO 06052 RATE AMMORTAMENTO PRESTITI MUTUI - Primo semestre 2019. (P.      36 -R.     929);20-08-2019;604;0;324;1;Spese correnti;7;Interessi passivi;5;Interessi su Mutui e altri finanziamenti a medio lungo termine;4;Interessi passivi su finanziamenti a medio lungo termine a Imprese;4;Interessi passivi a Cassa Depositi e Prestiti - Gestione Tesoro su mutui e altri finanziamenti a medio lungo termine;20-08-2019;
1123;1;0;"327,00";"327,00";OMESSO NOMINATIVO NEL RISPETTO DELLA NORMATIVA SULLA PROTEZIONE DATI PERSONALI; ;FATTURA CASA DI RIPOSO AITA N. 348/B DEL 31/07/2019 PER PASTI A DOMICILIO LUGLIO 2019.;20-08-2019;576;0;239;1;Spese correnti;4;Trasferimenti correnti;2;Trasferimenti correnti a Famiglie;2;Interventi assistenziali;999;Altri assegni e sussidi assistenziali;20-08-2019;
1124;1;0;"382,02";"382,02";OMESSO NOMINATIVO NEL RISPETTO DELLA NORMATIVA SULLA PROTEZIONE DATI PERSONALI; ;"FATTURE: ALTO TREVIGIANO SERVIZI, CASA DI RIPOSO AITA, SERV. ELETTRICO NAZIONALE E POLIZZA INCENDI.";20-08-2019;576;0;110;1;Spese correnti;4;Trasferimenti correnti;2;Trasferimenti correnti a Famiglie;2;Interventi assistenziali;999;Altri assegni e sussidi assistenziali;20-08-2019;
1125;1;0;"1.380,01";"1.380,01";ASSOCIAZIONE IL CICLAMINO; ;"GITA DELLA TERZA ETA' 2019 - LIQUIDAZIONE CONTRIBUTO A FAVORE DELL'ASSOCIAZIONE DI PROMOZIONE SOCIALE ""IL CICLAMINO"" DI SAN ZENONE DEGLI EZZZELINI, A SEGUITO RENDICONTAZIONE.";21-08-2019;575;0;273;1;Spese correnti;4;Trasferimenti correnti;4;Trasferimenti correnti a Istituzioni Sociali Private;1;Trasferimenti correnti a Istituzioni Sociali Private;1;Trasferimenti correnti a Istituzioni Sociali Private;21-08-2019;
1126;1;0;"840,00";"7.960,00";BORDIGNON RACHELE; ;CENTRO ESTIVO COMUNALE 2019 - LIQUIDAZIONE COMPENSO INCARICO ANIMATORI.;21-08-2019;296;0;306;1;Spese correnti;3;Acquisto di beni e servizi;2;Acquisto di servizi;11;Prestazioni professionali e specialistiche;999;Altre prestazioni professionali e specialistiche n.a.c.;21-08-2019;
1126;2;0;"2.920,00";"7.960,00";BORTOLLON SONIA CARLA; ;CENTRO ESTIVO COMUNALE 2019 - LIQUIDAZIONE COMPENSO INCARICO COORDINAMENTO.;21-08-2019;296;0;306;1;Spese correnti;3;Acquisto di beni e servizi;2;Acquisto di servizi;11;Prestazioni professionali e specialistiche;999;Altre prestazioni professionali e specialistiche n.a.c.;21-08-2019;
1126;3;0;"840,00";"7.960,00";CAPITANIO ELEONORA; ;CENTRO ESTIVO COMUNALE 2019 - LIQUIDAZIONE COMPENSO INCARICO ANIMATORI.;21-08-2019;296;0;306;1;Spese correnti;3;Acquisto di beni e servizi;2;Acquisto di servizi;11;Prestazioni professionali e specialistiche;999;Altre prestazioni professionali e specialistiche n.a.c.;21-08-2019;
1126;4;0;"840,00";"7.960,00";MAZZAROLO NICOLO'; ;CENTRO ESTIVO COMUNALE 2019 - LIQUIDAZIONE COMPENSO INCARICO ANIMATORI.;21-08-2019;296;0;306;1;Spese correnti;3;Acquisto di beni e servizi;2;Acquisto di servizi;11;Prestazioni professionali e specialistiche;999;Altre prestazioni professionali e specialistiche n.a.c.;21-08-2019;
1126;5;0;"840,00";"7.960,00";MAZZAROLO SIMON; ;CENTRO ESTIVO COMUNALE 2019 - LIQUIDAZIONE COMPENSO INCARICO ANIMATORI.;21-08-2019;296;0;306;1;Spese correnti;3;Acquisto di beni e servizi;2;Acquisto di servizi;11;Prestazioni professionali e specialistiche;999;Altre prestazioni professionali e specialistiche n.a.c.;21-08-2019;
1126;6;0;"840,00";"7.960,00";PELLIZZARI GIULIA; ;CENTRO ESTIVO COMUNALE 2019 - LIQUIDAZIONE COMPENSO INCARICO ANIMATORI.;21-08-2019;296;0;306;1;Spese correnti;3;Acquisto di beni e servizi;2;Acquisto di servizi;11;Prestazioni professionali e specialistiche;999;Altre prestazioni professionali e specialistiche n.a.c.;21-08-2019;
1126;7;0;"840,00";"7.960,00";ZARDO ILARIA; ;CENTRO ESTIVO COMUNALE 2019 - LIQUIDAZIONE COMPENSO INCARICO ANIMATORI.;21-08-2019;296;0;306;1;Spese correnti;3;Acquisto di beni e servizi;2;Acquisto di servizi;11;Prestazioni professionali e specialistiche;999;Altre prestazioni professionali e specialistiche n.a.c.;21-08-2019;
1128;1;0;"24.000,00";"78.968,10";OMESSO NOMINATIVO NEL RISPETTO DELLA NORMATIVA SULLA PROTEZIONE DATI PERSONALI; ;LIQUIDAZIONE CONTRIBUTO ORDINARO PER L'ANNO SCOLASTICO 2018/2019.;27-08-2019;221;0;407;1;Spese correnti;4;Trasferimenti correnti;4;Trasferimenti correnti a Istituzioni Sociali Private;1;Trasferimenti correnti a Istituzioni Sociali Private;1;Trasferimenti correnti a Istituzioni Sociali Private;27-08-2019;
1128;2;0;"11.318,10";"78.968,10";OMESSO NOMINATIVO NEL RISPETTO DELLA NORMATIVA SULLA PROTEZIONE DATI PERSONALI; ;LIQUIDAZIONE CONTRIBUTO ORDINARO PER L'ANNO SCOLASTICO 2018/2019.;27-08-2019;221;0;407;1;Spese correnti;4;Trasferimenti correnti;4;Trasferimenti correnti a Istituzioni Sociali Private;1;Trasferimenti correnti a Istituzioni Sociali Private;1;Trasferimenti correnti a Istituzioni Sociali Private;27-08-2019;
1128;3;0;"12.400,00";"78.968,10";OMESSO NOMINATIVO NEL RISPETTO DELLA NORMATIVA SULLA PROTEZIONE DATI PERSONALI; ;LIQUIDAZIONE CONTRIBUTO ORDINARO PER L'ANNO SCOLASTICO 2018/2019.;27-08-2019;221;0;407;1;Spese correnti;4;Trasferimenti correnti;4;Trasferimenti correnti a Istituzioni Sociali Private;1;Trasferimenti correnti a Istituzioni Sociali Private;1;Trasferimenti correnti a Istituzioni Sociali Private;27-08-2019;
1128;4;0;"27.200,00";"78.968,10";OMESSO NOMINATIVO NEL RISPETTO DELLA NORMATIVA SULLA PROTEZIONE DATI PERSONALI; ;LIQUIDAZIONE CONTRIBUTO ORDINARO PER L'ANNO SCOLASTICO 2018/2019.;27-08-2019;221;0;407;1;Spese correnti;4;Trasferimenti correnti;4;Trasferimenti correnti a Istituzioni Sociali Private;1;Trasferimenti correnti a Istituzioni Sociali Private;1;Trasferimenti correnti a Istituzioni Sociali Private;27-08-2019;
1128;5;0;"4.050,00";"78.968,10";OMESSO NOMINATIVO NEL RISPETTO DELLA NORMATIVA SULLA PROTEZIONE DATI PERSONALI; ;LIQUIDAZIONE CONTRIBUTO ORDINARO PER L'ANNO SCOLASTICO 2018/2019.;27-08-2019;221;0;407;1;Spese correnti;4;Trasferimenti correnti;4;Trasferimenti correnti a Istituzioni Sociali Private;1;Trasferimenti correnti a Istituzioni Sociali Private;1;Trasferimenti correnti a Istituzioni Sociali Private;27-08-2019;
1129;1;0;"155.927,05";"155.927,05";C.S.M. ACCIAIO SRL;6867174B3F;SALDO Fatt.n. 161  del 14/08/2019 ACCONTO SU LAVORI ADEGUAM. SISMICO SCUOLE;28-08-2019;775;0;386;2;Spese in conto capitale;2;Investimenti fissi lordi e acquisto di terreni;1;Beni materiali;9;Beni immobili;3;Fabbricati ad uso scolastico;28-08-2019;
1130;1;0;"1.342,44";"1.342,44";OMESSO NOMINATIVO NEL RISPETTO DELLA NORMATIVA SULLA PROTEZIONE DATI PERSONALI; ;LIQUIDAZIONE SOMME DEVOLUTE DA ALCUNI CONSIGLIERI COMUNALI RELATIVE AI GETTONI DI PRESENZA ANNI 2014-2015-2016-2017.;28-08-2019;221;0;416;1;Spese correnti;4;Trasferimenti correnti;4;Trasferimenti correnti a Istituzioni Sociali Private;1;Trasferimenti correnti a Istituzioni Sociali Private;1;Trasferimenti correnti a Istituzioni Sociali Private;28-08-2019;
1131;1;0;"1.781,82";"1.781,82";UNICOOPER SERVIZI S.C.R.L.;Z0128215E5;SALDO Fatt.n. 1294  del 31/07/2019 SERVIZIO DI PULIZIA UFFICI COMUNALI-LUGLIO 2019;28-08-2019;178;1;193;1;Spese correnti;3;Acquisto di beni e servizi;2;Acquisto di servizi;13;Servizi ausiliari per il funzionamento dell'ente;2;Servizi di pulizia e lavanderia;28-08-2019;
1132;1;0;"189,95";"418,64";GREEN TELECOMUNICAZIONI S.P.A.;Z40279DD24;SALDO Fatt.n. E14492  del 12/08/2019 Traffico Telefonico Periodo: luglio 2019;28-08-2019;34;0;136;1;Spese correnti;3;Acquisto di beni e servizi;2;Acquisto di servizi;5;Utenze e canoni;1;Telefonia fissa;28-08-2019;
1132;2;0;"228,69";"418,64";GREEN TELECOMUNICAZIONI S.P.A.;Z40279DD24;SALDO Fatt.n. E15727  del 12/08/2019 Traffico Telefonico Periodo: luglio 2019;28-08-2019;34;0;136;1;Spese correnti;3;Acquisto di beni e servizi;2;Acquisto di servizi;5;Utenze e canoni;1;Telefonia fissa;28-08-2019;
1133;1;0;"500,00";"500,00";SICURITALIA S.P.A.;Z3827208DE;ACCONTO Fatt.n. 9117006496  del 01/08/2019 SERVIZIO DI PRONTO INTERVENTO ED. COMUNALI-AGOSTO 2019;28-08-2019;561;2;169;1;Spese correnti;3;Acquisto di beni e servizi;2;Acquisto di servizi;5;Utenze e canoni;999;Utenze e canoni per altri servizi n.a.c.;28-08-2019;
1134;1;0;"24,60";"24,60";SICURITALIA S.P.A.;Z3827208DE;SALDO Fatt.n. 9117006496  del 01/08/2019 SERVIZIO DI PRONTO INTERVENTO ED. COMUNALI-AGOSTO 2019;28-08-2019;313;2;94;1;Spese correnti;3;Acquisto di beni e servizi;2;Acquisto di servizi;5;Utenze e canoni;999;Utenze e canoni per altri servizi n.a.c.;28-08-2019;
1135;1;0;"14.548,00";"14.548,00";BIM PIAVE NUOVE ENERGIE S.R.L.; ;ACCONTO Fatt.n. 9001299  del 17/07/2019 ACQUA CALDA 01/03/2019-30/04/2019 -SCUOLE;28-08-2019;235;0;400;1;Spese correnti;3;Acquisto di beni e servizi;2;Acquisto di servizi;5;Utenze e canoni;6;Gas;28-08-2019;
1136;1;0;"1.493,52";"1.493,52";BIM PIAVE NUOVE ENERGIE S.R.L.; ;SALDO Fatt.n. 9001299  del 17/07/2019 ACQUA CALDA 01/03/2019-30/04/2019 -SCUOLE;28-08-2019;34;0;399;1;Spese correnti;3;Acquisto di beni e servizi;2;Acquisto di servizi;5;Utenze e canoni;6;Gas;28-08-2019;
1137;1;0;"4.548,00";"4.548,00";BIM PIAVE NUOVE ENERGIE S.R.L.; ;ACCONTO Fatt.n. 9001302  del 17/07/2019 ACQUA CALDA 01/03/2019-30/04/2019 - Palestra;28-08-2019;252;0;401;1;Spese correnti;3;Acquisto di beni e servizi;2;Acquisto di servizi;5;Utenze e canoni;6;Gas;28-08-2019;
1138;1;0;"3.437,01";"3.437,01";BIM PIAVE NUOVE ENERGIE S.R.L.; ;SALDO Fatt.n. 9001302  del 17/07/2019 ACQUA CALDA 01/03/2019-30/04/2019 - Palestra;28-08-2019;311;0;404;1;Spese correnti;3;Acquisto di beni e servizi;2;Acquisto di servizi;5;Utenze e canoni;6;Gas;28-08-2019;
1139;1;0;"9.801,08";"9.801,08";BIM PIAVE NUOVE ENERGIE S.R.L.; ;SALDO Fatt.n. 9001701  del 19/08/2019 ACQUA CALDA 01/05/2019-30/06/2019 - Scuola Secondaria/Primaria;28-08-2019;530;0;402;1;Spese correnti;3;Acquisto di beni e servizi;2;Acquisto di servizi;5;Utenze e canoni;6;Gas;28-08-2019;
1140;1;0;"548,00";"548,00";BIM PIAVE NUOVE ENERGIE S.R.L.; ;ACCONTO Fatt.n. 9001704  del 19/08/2019 ACQUA CALDA 01/05/2019-30/06/2019 - Palestra;28-08-2019;310;0;403;1;Spese correnti;3;Acquisto di beni e servizi;2;Acquisto di servizi;5;Utenze e canoni;6;Gas;28-08-2019;
1141;1;0;"2.301,93";"2.301,93";BIM PIAVE NUOVE ENERGIE S.R.L.; ;ACCONTO Fatt.n. 9001704  del 19/08/2019 ACQUA CALDA 01/05/2019-30/06/2019 - Palestra;28-08-2019;561;2;203;1;Spese correnti;3;Acquisto di beni e servizi;2;Acquisto di servizi;5;Utenze e canoni;6;Gas;28-08-2019;
1142;1;0;"2.362,01";"2.362,01";BIM PIAVE NUOVE ENERGIE S.R.L.; ;SALDO Fatt.n. 9001704  del 19/08/2019 ACQUA CALDA 01/05/2019-30/06/2019 - Palestra;28-08-2019;530;0;200;1;Spese correnti;3;Acquisto di beni e servizi;2;Acquisto di servizi;5;Utenze e canoni;6;Gas;28-08-2019;
1145;1;0;"591,70";"591,70";TIPOGRAFIA BATTAGIN SRL;Z93290FA17;SALDO Fatt.n. 2/P  del 31/07/2019 FORNITURA TIMBRI PER UFFICI COMUNALI;02-09-2019;37;0;351;1;Spese correnti;3;Acquisto di beni e servizi;1;Acquisto di beni;2;Altri beni di consumo;999;Altri beni e materiali di consumo n.a.c.;02-09-2019;
1146;1;0;"1.684,00";"1.684,00";CASA DI RIPOSO 'AITA'; ;SALDO Fatt.n. 366/B  del 08/08/2019 RETTE PER ANZIANI - L.V. - LUGLIO 2019;02-09-2019;562;1;240;1;Spese correnti;3;Acquisto di beni e servizi;2;Acquisto di servizi;15;Contratti di servizio pubblico;9;Contratti di servizio di assistenza sociale domiciliare;02-09-2019;
1147;1;0;"193,98";"193,98";RED BOX SISTEMI S.R.L.;Z272906E30;SALDO Fatt.n. 268  del 31/07/2019 FORNITURA SWITCH HPE OFFICE PER UFFICI COMUNALI;02-09-2019;746;0;343;2;Spese in conto capitale;2;Investimenti fissi lordi e acquisto di terreni;1;Beni materiali;7;Hardware;999;Hardware n.a.c.;02-09-2019;
1148;1;0;"1.667,50";"1.667,50";RED BOX SISTEMI S.R.L.;ZE328FC732;ACCONTO Fatt.n. 269  del 31/07/2019 FORNITURA DI N. 2 LICENZE OFFICE PROFESSIONAL PER UFFICI COMUNALI;02-09-2019;746;0;326;2;Spese in conto capitale;2;Investimenti fissi lordi e acquisto di terreni;1;Beni materiali;7;Hardware;2;Postazioni di lavoro;02-09-2019;
1149;1;0;"10,00";"10,00";RED BOX SISTEMI S.R.L.;ZE328FC732;SALDO Fatt.n. 269  del 31/07/2019 FORNITURA DI N. 2 LICENZE OFFICE PROFESSIONAL PER UFFICI COMUNALI;02-09-2019;39;1;419;1;Spese correnti;3;Acquisto di beni e servizi;2;Acquisto di servizi;7;Utilizzo di beni di terzi;6;Licenze d'uso per software;02-09-2019;
1150;1;0;"2.444,88";"2.444,88";IT AUCTION SRL;ZAB298E358;SALDO Fatt.n. 422/R  del 26/07/2019 COMMISSIONI DI CASA D'ASTE PER AGGIUDICAZIONE IMMOBILE OGGETTO DELL'ASTA;02-09-2019;962;0;411;2;Spese in conto capitale;2;Investimenti fissi lordi e acquisto di terreni;1;Beni materiali;9;Beni immobili;999;Beni immobili n.a.c.;02-09-2019;
1151;1;0;"49,97";"652,06";SERVIZIO ELETTRICO NAZIONALE SpA;7134285639;SALDO Fatt.n. 263551155002023  del 10/08/2019 ENEL SCUOLA PRIMARIA: LUGLIO 2019;02-09-2019;235;0;335;1;Spese correnti;3;Acquisto di beni e servizi;2;Acquisto di servizi;5;Utenze e canoni;4;Energia elettrica;02-09-2019;
1151;2;0;"602,09";"652,06";SERVIZIO ELETTRICO NAZIONALE SpA;7134285639;SALDO Fatt.n. 263554302002023  del 10/08/2019 ENEL: SCUOLA PRIMARIA - LUGLIO 2019;02-09-2019;235;0;335;1;Spese correnti;3;Acquisto di beni e servizi;2;Acquisto di servizi;5;Utenze e canoni;4;Energia elettrica;02-09-2019;
1156;1;0;"46,24";"453,61";SERVIZIO ELETTRICO NAZIONALE SpA;7134285639;SALDO Fatt.n. 263556405046122  del 10/08/2019 ENEL: LUGLIO-AGOSTO 2019;02-09-2019;600;0;342;1;Spese correnti;3;Acquisto di beni e servizi;2;Acquisto di servizi;5;Utenze e canoni;4;Energia elettrica;02-09-2019;
1156;2;0;"407,37";"453,61";SERVIZIO ELETTRICO NAZIONALE SpA;7134285639;SALDO Fatt.n. 263555226004532  del 10/08/2019 ENEL: CIMITERO LUGLIO-AGOSTO 2019;02-09-2019;600;0;342;1;Spese correnti;3;Acquisto di beni e servizi;2;Acquisto di servizi;5;Utenze e canoni;4;Energia elettrica;02-09-2019;
1157;1;0;"339,87";"952,24";SERVIZIO ELETTRICO NAZIONALE SpA;7134285639;SALDO Fatt.n. 263557855000533  del 10/08/2019 ENEL: IMPIANTI SPORTIVI LUGLIO 2019;02-09-2019;530;0;340;1;Spese correnti;3;Acquisto di beni e servizi;2;Acquisto di servizi;5;Utenze e canoni;4;Energia elettrica;02-09-2019;
1157;2;0;"612,37";"952,24";SERVIZIO ELETTRICO NAZIONALE SpA;7134285639;SALDO Fatt.n. 263558703001123  del 10/08/2019 ENEL IMPIANTI SPORTIVI: LUGLIO-AGOSTO 2019;02-09-2019;530;0;340;1;Spese correnti;3;Acquisto di beni e servizi;2;Acquisto di servizi;5;Utenze e canoni;4;Energia elettrica;02-09-2019;
1158;1;0;"1.733,29";"1.733,29";SERVIZIO ELETTRICO NAZIONALE SpA;7134285639;SALDO Fatt.n. 263556202002923  del 10/08/2019 ENEL MUNICIPIO: MAGGIO-LUGLIO 2019;02-09-2019;34;0;333;1;Spese correnti;3;Acquisto di beni e servizi;2;Acquisto di servizi;5;Utenze e canoni;4;Energia elettrica;02-09-2019;
1159;1;0;"604,03";"604,03";SERVIZIO ELETTRICO NAZIONALE SpA;7134285639;SALDO Fatt.n. 263552205013414  del 10/08/2019 ENEL CENTRO POLIVAL.-LUGLIO 2019;02-09-2019;561;2;341;1;Spese correnti;3;Acquisto di beni e servizi;2;Acquisto di servizi;5;Utenze e canoni;4;Energia elettrica;02-09-2019;
1160;1;0;"232,30";"232,30";SERVIZIO ELETTRICO NAZIONALE SpA;7134285639;SALDO Fatt.n. 263556805005523  del 10/08/2019 ENEL VILLA RUBELLI: LUGLIO 2019;02-09-2019;310;0;338;1;Spese correnti;3;Acquisto di beni e servizi;2;Acquisto di servizi;5;Utenze e canoni;4;Energia elettrica;02-09-2019;
1161;1;0;"26,21";"265,20";TIM S.P.A.;ZE429271DF;SALDO Fatt.n. 8E00617742  del 06/08/2019 UTENZE TELEFONICHE: GIUGNO-LUGLIO 2019;02-09-2019;34;0;392;1;Spese correnti;3;Acquisto di beni e servizi;2;Acquisto di servizi;5;Utenze e canoni;999;Utenze e canoni per altri servizi n.a.c.;02-09-2019;
1161;2;0;"26,30";"265,20";TIM S.P.A.;ZE429271DF;SALDO Fatt.n. 8E00617491  del 06/08/2019 UTENZE TELEFONICHE :GIUGNO-LUGLIO 2019;02-09-2019;34;0;392;1;Spese correnti;3;Acquisto di beni e servizi;2;Acquisto di servizi;5;Utenze e canoni;999;Utenze e canoni per altri servizi n.a.c.;02-09-2019;
1161;3;0;"26,30";"265,20";TIM S.P.A.;ZE429271DF;SALDO Fatt.n. 8E00618364  del 06/08/2019 UTENZE TELEFONICHE: GIUGNO-LUGLIO 2019;02-09-2019;34;0;392;1;Spese correnti;3;Acquisto di beni e servizi;2;Acquisto di servizi;5;Utenze e canoni;999;Utenze e canoni per altri servizi n.a.c.;02-09-2019;
1161;4;0;"28,54";"265,20";TIM S.P.A.;ZE429271DF;SALDO Fatt.n. 8E00618212  del 06/08/2019 UTENZE TELEFONICHE: GIUGNO-LUGLIO 2019;02-09-2019;34;0;392;1;Spese correnti;3;Acquisto di beni e servizi;2;Acquisto di servizi;5;Utenze e canoni;999;Utenze e canoni per altri servizi n.a.c.;02-09-2019;
1161;5;0;"52,43";"265,20";TIM S.P.A.;ZE429271DF;SALDO Fatt.n. 8E00620440  del 06/08/2019 UTENZE TELEFONICHE: GIUGNO-LUGLIO 2019;02-09-2019;34;0;392;1;Spese correnti;3;Acquisto di beni e servizi;2;Acquisto di servizi;5;Utenze e canoni;999;Utenze e canoni per altri servizi n.a.c.;02-09-2019;
1161;6;0;"52,43";"265,20";TIM S.P.A.;ZE429271DF;SALDO Fatt.n. 8E00620418  del 06/08/2019 UTENZE TELEFONICHE: GIUGNO-LUGLIO 2019;02-09-2019;34;0;392;1;Spese correnti;3;Acquisto di beni e servizi;2;Acquisto di servizi;5;Utenze e canoni;999;Utenze e canoni per altri servizi n.a.c.;02-09-2019;
1161;7;0;"52,99";"265,20";TIM S.P.A.;ZE429271DF;SALDO Fatt.n. 8E00620948  del 06/08/2019 UTENZE TELEFONICHE: GIUGNO-LUGLIO 2019;02-09-2019;34;0;392;1;Spese correnti;3;Acquisto di beni e servizi;2;Acquisto di servizi;5;Utenze e canoni;999;Utenze e canoni per altri servizi n.a.c.;02-09-2019;
1162;1;0;"26,21";"317,94";TIM S.P.A.;ZE429271DF;SALDO Fatt.n. 8E00617738  del 06/08/2019 UTENZE TELEFONICHE: GIUGNO-LUGLIO 2019;02-09-2019;34;0;392;1;Spese correnti;3;Acquisto di beni e servizi;2;Acquisto di servizi;5;Utenze e canoni;999;Utenze e canoni per altri servizi n.a.c.;02-09-2019;
1162;2;0;"26,21";"317,94";TIM S.P.A.;ZE429271DF;SALDO Fatt.n. 8E00620367  del 06/08/2019 UTENZE TELEFONICHE: GIUGNO - LUGLIO 2019;02-09-2019;34;0;392;1;Spese correnti;3;Acquisto di beni e servizi;2;Acquisto di servizi;5;Utenze e canoni;999;Utenze e canoni per altri servizi n.a.c.;02-09-2019;
1162;3;0;"26,30";"317,94";TIM S.P.A.;ZE429271DF;SALDO Fatt.n. 8E00620423  del 06/08/2019 UTENZE TELEFONICHE: GIUGNO-LUGLIO 2019;02-09-2019;34;0;392;1;Spese correnti;3;Acquisto di beni e servizi;2;Acquisto di servizi;5;Utenze e canoni;999;Utenze e canoni per altri servizi n.a.c.;02-09-2019;
1162;4;0;"26,89";"317,94";TIM S.P.A.;ZE429271DF;SALDO Fatt.n. 8E00620532  del 06/08/2019 UTENZE TELEFONICHE: GIUGNO-LUGLIO 2019;02-09-2019;34;0;392;1;Spese correnti;3;Acquisto di beni e servizi;2;Acquisto di servizi;5;Utenze e canoni;999;Utenze e canoni per altri servizi n.a.c.;02-09-2019;
1162;5;0;"52,43";"317,94";TIM S.P.A.;ZE429271DF;SALDO Fatt.n. 8E00617741  del 06/08/2019 UTENZE TELEFONICHE: GIUGNO-LUGLIO 2019;02-09-2019;34;0;392;1;Spese correnti;3;Acquisto di beni e servizi;2;Acquisto di servizi;5;Utenze e canoni;999;Utenze e canoni per altri servizi n.a.c.;02-09-2019;
1162;6;0;"70,92";"317,94";TIM S.P.A.;ZE429271DF;SALDO Fatt.n. 8E00617765  del 06/08/2019 UTENZE TELEFONICHE: GIUGNO-LUGLIO 2019;02-09-2019;34;0;392;1;Spese correnti;3;Acquisto di beni e servizi;2;Acquisto di servizi;5;Utenze e canoni;999;Utenze e canoni per altri servizi n.a.c.;02-09-2019;
1162;7;0;"88,98";"317,94";TIM S.P.A.;ZE429271DF;SALDO Fatt.n. 8E00620251  del 06/08/2019 UTENZE TELEFONICHE: GIUGNO-LUGLIO 2019;02-09-2019;34;0;392;1;Spese correnti;3;Acquisto di beni e servizi;2;Acquisto di servizi;5;Utenze e canoni;999;Utenze e canoni per altri servizi n.a.c.;02-09-2019;
1163;1;0;"2.488,80";"2.488,80";TEC.SE. SRL;Z0627A9E59;SALDO Fatt.n. 495  del 27/08/2019 SEGNALETICA STRADALE;02-09-2019;1030;0;144;2;Spese in conto capitale;2;Investimenti fissi lordi e acquisto di terreni;1;Beni materiali;9;Beni immobili;12;Infrastrutture stradali;02-09-2019;
1164;1;0;"20,46";"20,46";ASCOTRADE S.P.A.;ZBA27A07D4;SALDO Fatt.n. 1122217  del 26/08/2019 UTENZE E CANONI IMPIANTI SPORTIVI-DAL 16/06 AL 15/08/2019;02-09-2019;530;0;138;1;Spese correnti;3;Acquisto di beni e servizi;2;Acquisto di servizi;5;Utenze e canoni;6;Gas;02-09-2019;
1165;1;0;"291,91";"291,91";KYOCERA DOCUMENT SOLUTIONS ITALIA S.P.A.;7238702DD9;ACCONTO Fatt.n. 1010562831  del 27/08/2019 FOTOCOPIATRICI;02-09-2019;252;0;520;1;Spese correnti;3;Acquisto di beni e servizi;2;Acquisto di servizi;5;Utenze e canoni;999;Utenze e canoni per altri servizi n.a.c.;02-09-2019;
1166;1;0;"1.062,55";"1.062,55";KYOCERA DOCUMENT SOLUTIONS ITALIA S.P.A.;7238702DD9;SALDO Fatt.n. 1010562831  del 27/08/2019 FOTOCOPIATRICI;02-09-2019;34;0;519;1;Spese correnti;3;Acquisto di beni e servizi;2;Acquisto di servizi;5;Utenze e canoni;999;Utenze e canoni per altri servizi n.a.c.;02-09-2019;
1167;1;0;"515,55";"515,55";UNA CASA PER L'UOMO - SOCIETA' COOPERATIVA SOCIALE;ZA32468D08;SALDO Fatt.n. FE/0000264  del 26/08/2019 PROGETTO DI ACCOGLIENZA PERSONA DISAGIATA-LUGLIO 2019;02-09-2019;559;0;334;1;Spese correnti;3;Acquisto di beni e servizi;2;Acquisto di servizi;99;Altri servizi;999;Altri servizi diversi n.a.c.;02-09-2019;
1168;1;0;"2.681,25";"2.681,25";CASA DI RIPOSO 'AITA'; ;SALDO Fatt.n. 375/B  del 27/08/2019 SERVIZIO DI AD - LUGLIO 2019;02-09-2019;562;1;240;1;Spese correnti;3;Acquisto di beni e servizi;2;Acquisto di servizi;15;Contratti di servizio pubblico;9;Contratti di servizio di assistenza sociale domiciliare;02-09-2019;
1169;1;0;"1.410,00";"1.410,00";O.D.V. PROTEZIONE CIVILE DI SAN ZENONE DEGLI EZZELINI; ;LIQUIDAZIONE DEL SETTIMO ACCONTO DEL CONTRIBUTO - ANNO 2019;02-09-2019;382;1;139;1;Spese correnti;4;Trasferimenti correnti;1;Trasferimenti correnti a Amministrazioni Pubbliche;4;Trasferimenti correnti a organismi interni e/o unità locali della amministrazione;1;Trasferimenti correnti a organismi interni e/o unità locali della amministrazione;02-09-2019;
1173;1;0;"3.416,00";"3.416,00";CLIMASERVICE S.R.L.;ZBE242E519;SALDO Fatt.n. FPA 2/19  del 08/07/2019 ACQUISTO DI N. 2 CLIMATTIZZATORI PER UFFICI COMUNALI;12-09-2019;744;1;369;2;Spese in conto capitale;2;Investimenti fissi lordi e acquisto di terreni;1;Beni materiali;9;Beni immobili;999;Beni immobili n.a.c.;12-09-2019;
1174;1;0;"511,24";"511,24";MAZZAROLO S.R.L.;Z4F24B333B;ACCONTO Fatt.n. 2019_3_28  del 31/07/2019 MANUTENZIONE AUTOMEZZI VIABILITA';12-09-2019;590;1;383;1;Spese correnti;3;Acquisto di beni e servizi;2;Acquisto di servizi;9;Manutenzione ordinaria e riparazioni;1;"Manutenzione ordinaria e riparazioni di mezzi di trasporto ad uso civile, di sicurezza e ordine pubblico";12-09-2019;
1175;1;0;"605,89";"605,89";MAZZAROLO S.R.L.;Z4F24B333B;SALDO Fatt.n. 2019_3_28  del 31/07/2019 MANUTENZIONE AUTOMEZZI VIABILITA';12-09-2019;590;1;603;1;Spese correnti;3;Acquisto di beni e servizi;2;Acquisto di servizi;9;Manutenzione ordinaria e riparazioni;1;"Manutenzione ordinaria e riparazioni di mezzi di trasporto ad uso civile, di sicurezza e ordine pubblico";12-09-2019;
1176;1;0;"89,00";"89,00";FERRONATO S.R.L.;Z7C26AD935;SALDO Fatt.n. P3  del 31/07/2019 FORNITURA MATERIALE;12-09-2019;531;0;61;1;Spese correnti;3;Acquisto di beni e servizi;1;Acquisto di beni;2;Altri beni di consumo;999;Altri beni e materiali di consumo n.a.c.;12-09-2019;
1177;1;0;"10.873,13";"10.873,13";PA SISTEMI S.R.L.;Z0C28FC813;SALDO Fatt.n. 87  del 29/08/2019 INSTALLAZIONE NUOVO CENTRALINO TELEFONICO;12-09-2019;746;0;327;2;Spese in conto capitale;2;Investimenti fissi lordi e acquisto di terreni;1;Beni materiali;7;Hardware;999;Hardware n.a.c.;12-09-2019;
1178;1;0;"20,76";"923,78";SERVIZIO ELETTRICO NAZIONALE SpA;7134285639;SALDO Fatt.n. 263552355070022  del 04/09/2019 ENEL - AGOSTO 2019;12-09-2019;600;0;342;1;Spese correnti;3;Acquisto di beni e servizi;2;Acquisto di servizi;5;Utenze e canoni;4;Energia elettrica;12-09-2019;
1178;2;0;"20,76";"923,78";SERVIZIO ELETTRICO NAZIONALE SpA;7134285639;SALDO Fatt.n. 263552355071022  del 04/09/2019 ENEL - AGOSTO 2019;12-09-2019;600;0;342;1;Spese correnti;3;Acquisto di beni e servizi;2;Acquisto di servizi;5;Utenze e canoni;4;Energia elettrica;12-09-2019;
1178;3;0;"42,15";"923,78";SERVIZIO ELETTRICO NAZIONALE SpA;7134285639;SALDO Fatt.n. 263552955086022  del 04/09/2019 ENEL - AGOSTO 2019;12-09-2019;600;0;342;1;Spese correnti;3;Acquisto di beni e servizi;2;Acquisto di servizi;5;Utenze e canoni;4;Energia elettrica;12-09-2019;
1178;4;0;"50,95";"923,78";SERVIZIO ELETTRICO NAZIONALE SpA;7134285639;SALDO Fatt.n. 263558005001022  del 04/09/2019 ENEL - AGOSTO 2019;12-09-2019;600;0;342;1;Spese correnti;3;Acquisto di beni e servizi;2;Acquisto di servizi;5;Utenze e canoni;4;Energia elettrica;12-09-2019;
1178;5;0;"63,14";"923,78";SERVIZIO ELETTRICO NAZIONALE SpA;7134285639;SALDO Fatt.n. 263551302001022  del 04/09/2019 ENEL - AGOSTO 2019;12-09-2019;600;0;342;1;Spese correnti;3;Acquisto di beni e servizi;2;Acquisto di servizi;5;Utenze e canoni;4;Energia elettrica;12-09-2019;
1178;6;0;"184,11";"923,78";SERVIZIO ELETTRICO NAZIONALE SpA;7134285639;SALDO Fatt.n. 263558706024522  del 06/09/2019 ENEL - AGOOSTO 2019;12-09-2019;600;0;342;1;Spese correnti;3;Acquisto di beni e servizi;2;Acquisto di servizi;5;Utenze e canoni;4;Energia elettrica;12-09-2019;
1178;7;0;"541,91";"923,78";SERVIZIO ELETTRICO NAZIONALE SpA;7134285639;SALDO Fatt.n. 263556206005822  del 04/09/2019 ENEL - AGOSTO 2019;12-09-2019;600;0;342;1;Spese correnti;3;Acquisto di beni e servizi;2;Acquisto di servizi;5;Utenze e canoni;4;Energia elettrica;12-09-2019;
1180;1;0;"514,18";"514,18";AS.COM SERVIZI DEL MANDAMENTO S.R.L.; ;SALDO Fatt.n. 00049/02  del 02/09/2019 CENTRO PER L'IMPIEGO;12-09-2019;516;0;135;1;Spese correnti;3;Acquisto di beni e servizi;2;Acquisto di servizi;7;Utilizzo di beni di terzi;1;Locazione di beni immobili;12-09-2019;
1181;1;0;"56,12";"56,12";SICURITALIA S.P.A.;Z3827208DE;SALDO Fatt.n. 9117006784  del 31/08/2019 SERVIZI ISPETTIVI LOCALI COMUNALI;12-09-2019;313;2;94;1;Spese correnti;3;Acquisto di beni e servizi;2;Acquisto di servizi;5;Utenze e canoni;999;Utenze e canoni per altri servizi n.a.c.;12-09-2019;
1182;1;0;"64,00";"64,00";KUWAIT PETROLEUM ITALIA S.P.A.;Z4E197F01F;SALDO Fatt.n. PJ01583589  del 31/08/2019 CARBURANTE AUTO VIGILI - AGOSTO 2019;12-09-2019;179;0;154;1;Spese correnti;3;Acquisto di beni e servizi;1;Acquisto di beni;2;Altri beni di consumo;2;"Carburanti, combustibili e lubrificanti";12-09-2019;
1183;1;0;"1.220,00";"1.220,00";IDEA GIARDINO SNC;ZD1298F182;SALDO Fatt.n. 49  del 31/08/2019 RIFACIMENTO AIUOLE PIAZZA;12-09-2019;593;0;421;1;Spese correnti;3;Acquisto di beni e servizi;2;Acquisto di servizi;9;Manutenzione ordinaria e riparazioni;12;Manutenzione ordinaria e riparazioni di terreni e beni materiali non prodotti;12-09-2019;
1184;1;0;"991,20";"991,20";KIRIKU' SOCIETA' COOPERATIVA SOCIALE ONLUS;ZC12810421;SALDO Fatt.n. 207  del 30/08/2019 EDUCATIVA DOMICILIARE - AGOSTO 2019;12-09-2019;559;0;184;1;Spese correnti;3;Acquisto di beni e servizi;2;Acquisto di servizi;99;Altri servizi;999;Altri servizi diversi n.a.c.;12-09-2019;
1185;1;0;"515,55";"515,55";UNA CASA PER L'UOMO - SOCIETA' COOPERATIVA SOCIALE;ZA32468D08;SALDO Fatt.n. FE/0000291  del 31/08/2019 PROGETTO DI ACCOGLIENZA PERSONA DISAGIATA-AGOSTO 2019;12-09-2019;559;0;334;1;Spese correnti;3;Acquisto di beni e servizi;2;Acquisto di servizi;99;Altri servizi;999;Altri servizi diversi n.a.c.;12-09-2019;
1186;1;0;"835,70";"835,70";SCHINDLER S.P.A.;Z9126B2380;SALDO Fatt.n. 349431640  del 30/08/2019 Canone di manutenzione per impianti elevatori;12-09-2019;311;0;20;1;Spese correnti;3;Acquisto di beni e servizi;2;Acquisto di servizi;5;Utenze e canoni;999;Utenze e canoni per altri servizi n.a.c.;12-09-2019;
1187;1;0;"1.152,90";"1.152,90";INFOTEAM SRL;Z5A2951F48;SALDO Fatt.n. 00000002075  del 31/08/2019 FT. DI VENDITA P.A.;12-09-2019;39;1;391;1;Spese correnti;3;Acquisto di beni e servizi;2;Acquisto di servizi;7;Utilizzo di beni di terzi;6;Licenze d'uso per software;12-09-2019;
1188;1;0;"550,00";"550,00";RESINGROUP S.R.L.;ZE228D14AD;ACCONTO Fatt.n. 01  del 31/08/2019 PAVIMENTO IN RESINA PER COMPLESSO SCOLASTICO;12-09-2019;745;0;409;2;Spese in conto capitale;2;Investimenti fissi lordi e acquisto di terreni;1;Beni materiali;9;Beni immobili;3;Fabbricati ad uso scolastico;12-09-2019;
1189;1;0;"2.750,00";"2.750,00";RESINGROUP S.R.L.;ZE228D14AD;SALDO Fatt.n. 01  del 31/08/2019 PAVIMENTO IN RESINA PER COMPLESSO SCOLASTICO;12-09-2019;775;0;303;2;Spese in conto capitale;2;Investimenti fissi lordi e acquisto di terreni;1;Beni materiali;9;Beni immobili;3;Fabbricati ad uso scolastico;12-09-2019;
1190;1;0;"3.162,61";"3.162,61";VERDE IDEA DI BOTTER MICHELE;Z14294CFA0;SALDO Fatt.n. 1P  del 31/08/2019 STACCIONATA PER L'OASI DI SAN DANIELE;12-09-2019;850;0;382;2;Spese in conto capitale;2;Investimenti fissi lordi e acquisto di terreni;3;Beni immateriali;5;Incarichi professionali per la realizzazione di investimenti;1;Incarichi professionali per la realizzazione di investimenti;12-09-2019;
1191;1;0;"1.869,30";"1.869,30";OPERE PIE D'ONIGO; ;SALDO Fatt.n. 287/2  del 31/08/2019 RETTE PER ANZIANI;12-09-2019;560;0;32;1;Spese correnti;3;Acquisto di beni e servizi;2;Acquisto di servizi;15;Contratti di servizio pubblico;8;Contratti di servizio di assistenza sociale residenziale e semiresidenziale;12-09-2019;
1192;1;0;"24,40";"671,00";ASCO TLC S.P.A.;ZCD271B191;SALDO Fatt.n. 09028695  del 31/08/2019 UTENZE E CANONI;12-09-2019;561;2;80;1;Spese correnti;3;Acquisto di beni e servizi;2;Acquisto di servizi;5;Utenze e canoni;999;Utenze e canoni per altri servizi n.a.c.;12-09-2019;
1192;2;0;"176,90";"671,00";ASCO TLC S.P.A.;ZCD271B191;SALDO Fatt.n. 09028697  del 31/08/2019 UTENZE E CANONI;12-09-2019;561;2;80;1;Spese correnti;3;Acquisto di beni e servizi;2;Acquisto di servizi;5;Utenze e canoni;999;Utenze e canoni per altri servizi n.a.c.;12-09-2019;
1192;3;0;"469,70";"671,00";ASCO TLC S.P.A.;ZCD271B191;SALDO Fatt.n. 09028696  del 31/08/2019 UTENZE E CANONI;12-09-2019;561;2;80;1;Spese correnti;3;Acquisto di beni e servizi;2;Acquisto di servizi;5;Utenze e canoni;999;Utenze e canoni per altri servizi n.a.c.;12-09-2019;
1193;1;0;"210,00";"210,00";SONDA COOPERATIVA SOCIALE ONLUS; ;SALDO Fatt.n. 285/PA/2019  del 03/09/2019 INSERIMENTO IN CASA FAMIGLIA;12-09-2019;560;0;274;1;Spese correnti;3;Acquisto di beni e servizi;2;Acquisto di servizi;15;Contratti di servizio pubblico;8;Contratti di servizio di assistenza sociale residenziale e semiresidenziale;12-09-2019;
1194;1;0;"1.674,00";"1.674,00";CASA DI RIPOSO 'AITA'; ;SALDO Fatt.n. 415/B  del 09/09/2019 RETTE PER ANZIANI;12-09-2019;560;0;31;1;Spese correnti;3;Acquisto di beni e servizi;2;Acquisto di servizi;15;Contratti di servizio pubblico;8;Contratti di servizio di assistenza sociale residenziale e semiresidenziale;12-09-2019;
1195;1;0;"300,00";"300,00";A.S. DI ANDREATTA GIUSEPPE & C. S.R.L.;ZB1282AB4D;ACCONTO Fatt.n. 0651  del 31/08/2019 MANUTENZIONE IMP. ELETTRICI;12-09-2019;561;4;214;1;Spese correnti;3;Acquisto di beni e servizi;2;Acquisto di servizi;9;Manutenzione ordinaria e riparazioni;9;"Manutenzione ordinaria e riparazioni di beni immobili di valore culturale, storico ed artistico";12-09-2019;
1196;1;0;"600,00";"600,00";A.S. DI ANDREATTA GIUSEPPE & C. S.R.L.;ZB1282AB4D;ACCONTO Fatt.n. 0651  del 31/08/2019 MANUTENZIONE IMP. ELETTRICI;12-09-2019;530;1;215;1;Spese correnti;3;Acquisto di beni e servizi;2;Acquisto di servizi;9;Manutenzione ordinaria e riparazioni;8;Manutenzione ordinaria e riparazioni di beni immobili;12-09-2019;
1197;1;0;"400,00";"400,00";A.S. DI ANDREATTA GIUSEPPE & C. S.R.L.;ZB1282AB4D;ACCONTO Fatt.n. 0651  del 31/08/2019 MANUTENZIONE IMP. ELETTRICI;12-09-2019;413;1;216;1;Spese correnti;3;Acquisto di beni e servizi;2;Acquisto di servizi;9;Manutenzione ordinaria e riparazioni;4;Manutenzione ordinaria e riparazioni di impianti e macchinari;12-09-2019;
1198;1;0;"300,00";"300,00";A.S. DI ANDREATTA GIUSEPPE & C. S.R.L.;ZB1282AB4D;ACCONTO Fatt.n. 0651  del 31/08/2019 MANUTENZIONE IMP. ELETTRICI;12-09-2019;255;0;217;1;Spese correnti;3;Acquisto di beni e servizi;2;Acquisto di servizi;9;Manutenzione ordinaria e riparazioni;8;Manutenzione ordinaria e riparazioni di beni immobili;12-09-2019;
1199;1;0;"600,00";"600,00";A.S. DI ANDREATTA GIUSEPPE & C. S.R.L.;ZB1282AB4D;ACCONTO Fatt.n. 0651  del 31/08/2019 MANUTENZIONE IMP. ELETTRICI;12-09-2019;235;1;218;1;Spese correnti;3;Acquisto di beni e servizi;2;Acquisto di servizi;9;Manutenzione ordinaria e riparazioni;8;Manutenzione ordinaria e riparazioni di beni immobili;12-09-2019;
1200;1;0;"300,00";"300,00";A.S. DI ANDREATTA GIUSEPPE & C. S.R.L.;ZB1282AB4D;ACCONTO Fatt.n. 0651  del 31/08/2019 MANUTENZIONE IMP. ELETTRICI;12-09-2019;252;1;219;1;Spese correnti;3;Acquisto di beni e servizi;2;Acquisto di servizi;9;Manutenzione ordinaria e riparazioni;8;Manutenzione ordinaria e riparazioni di beni immobili;12-09-2019;
1201;1;0;"122,41";"122,41";A.S. DI ANDREATTA GIUSEPPE & C. S.R.L.;ZB1282AB4D;SALDO Fatt.n. 0651  del 31/08/2019 MANUTENZIONE IMP. ELETTRICI;12-09-2019;601;0;220;1;Spese correnti;3;Acquisto di beni e servizi;2;Acquisto di servizi;15;Contratti di servizio pubblico;15;Contratti di servizio per l'illuminazione pubblica;12-09-2019;
1202;1;0;"1.440,00";"1.440,00";NOIGROUP Coop. Soc. a R.L.;Z5F268727B;SALDO Fatt.n. 639  del 31/08/2019 SERVIZIO GESTIONE DELLA BIBLIOTECA ATTIVITA' AGOSTO 2019;12-09-2019;302;1;553;1;Spese correnti;3;Acquisto di beni e servizi;2;Acquisto di servizi;16;Servizi amministrativi;999;Altre spese per servizi amministrativi;12-09-2019;
1203;1;0;"54.642,61";"54.642,61";TECNO METAL S.R.L.;7833722FE2;SALDO Fatt.n. 00004/R3  del 31/08/2019 SERRAMENTI - INTERVENTO DI EFFICIENTAMENTO ENERGETICO EX EDIFICIO SCOLASTICO;16-09-2019;775;0;222;2;Spese in conto capitale;2;Investimenti fissi lordi e acquisto di terreni;1;Beni materiali;9;Beni immobili;3;Fabbricati ad uso scolastico;16-09-2019;
1204;1;0;"962,49";"962,49";A.S. DI ANDREATTA GIUSEPPE & C. S.R.L.;Z572272F19;ACCONTO Fatt.n. 0652  del 31/08/2019 MANUTENZIONE IMP. ELETTRICI ED. COMUNALI;16-09-2019;601;0;529;1;Spese correnti;3;Acquisto di beni e servizi;2;Acquisto di servizi;15;Contratti di servizio pubblico;15;Contratti di servizio per l'illuminazione pubblica;16-09-2019;
1205;1;0;"4.414,14";"4.414,14";A.S. DI ANDREATTA GIUSEPPE & C. S.R.L.;Z572272F19;SALDO Fatt.n. 0652  del 31/08/2019 MANUTENZIONE IMP. ELETTRICI ED. COMUNALI;16-09-2019;1030;0;563;2;Spese in conto capitale;2;Investimenti fissi lordi e acquisto di terreni;1;Beni materiali;9;Beni immobili;12;Infrastrutture stradali;16-09-2019;
1206;1;0;"10.000,00";"10.000,00";A.S. DI ANDREATTA GIUSEPPE & C. S.R.L.;Z8A29AA93B;SALDO Fatt.n. 0653  del 31/08/2019 INTERVENTI DI RIPRISTINO PUBBLICA ILLUMINAZIONE;16-09-2019;1008;3;435;2;Spese in conto capitale;2;Investimenti fissi lordi e acquisto di terreni;1;Beni materiali;9;Beni immobili;12;Infrastrutture stradali;16-09-2019;
1207;1;0;"10.024,30";"10.024,30";ANAUNIA S.R.L.;ZF528D0C12;SALDO Fatt.n. VPA19-0016  del 04/09/2019 PARETE MANOVRABILE INSONORIZZATA PER PLESSO SCOLASTICO;16-09-2019;775;0;302;2;Spese in conto capitale;2;Investimenti fissi lordi e acquisto di terreni;1;Beni materiali;9;Beni immobili;3;Fabbricati ad uso scolastico;16-09-2019;
1210;1;0;"21,16";"21,16";PERSONALE DIPENDENTE - SEDE; ;STIPENDI MESE DI: SETTEMBRE 19;17-09-2019;20;0;29;1;Spese correnti;3;Acquisto di beni e servizi;2;Acquisto di servizi;2;"Organizzazione eventi, pubblicita` e servizi per trasferta";1;Rimborso per viaggio e trasloco;17-09-2019;
1238;1;0;"5.961,21";"5.961,21";AMMINISTRATORI COMUNALI; ;STIPENDI MESE DI: SETTEMBRE 19;17-09-2019;2;0;377;1;Spese correnti;3;Acquisto di beni e servizi;2;Acquisto di servizi;1;Organi e incarichi istituzionali dell'amministrazione;1;Organi istituzionali dell'amministrazione - Indennità;17-09-2019;
1242;1;0;"45.090,00";"45.090,00";FALLIMENTO FENICE S.R.L.; ;IMPEGNO DI SPESA E LIQUIDAZIONE SALDO DELL'AGGIUDICAZIONE ALL'ASTA IMMOBILIARE DEI TERRENI COSTITUENTI L'OASI NATURALISTICA DI SAN DANIELE DI LIEDOLO.;23-09-2019;962;0;452;2;Spese in conto capitale;2;Investimenti fissi lordi e acquisto di terreni;1;Beni materiali;9;Beni immobili;999;Beni immobili n.a.c.;23-09-2019;
1243;1;0;"89,00";"89,00";KUWAIT PETROLEUM ITALIA S.P.A.;Z4E197F01F;SALDO Fatt.n. PJ01583588  del 31/08/2019 CARBURANTE AUTO UFF. SOCIALE - AGOSTO 2019;23-09-2019;571;0;155;1;Spese correnti;3;Acquisto di beni e servizi;1;Acquisto di beni;2;Altri beni di consumo;2;"Carburanti, combustibili e lubrificanti";23-09-2019;
1244;1;0;"1.822,00";"1.822,00";ILONA MARZYNSKA;Z8822A9637;SALDO Fatt.n. FPA 4/19  del 01/09/2019 ACCONTO ONORARIO;23-09-2019;780;0;134;2;Spese in conto capitale;2;Investimenti fissi lordi e acquisto di terreni;1;Beni materiali;9;Beni immobili;999;Beni immobili n.a.c.;23-09-2019;
1245;1;0;"131,88";"2.870,64";SERVIZIO ELETTRICO NAZIONALE SpA;7134285639;SALDO Fatt.n. 263558205009522  del 10/09/2019 ENEL: AGO-SETT.2019;23-09-2019;600;0;342;1;Spese correnti;3;Acquisto di beni e servizi;2;Acquisto di servizi;5;Utenze e canoni;4;Energia elettrica;23-09-2019;
1245;2;0;"148,95";"2.870,64";SERVIZIO ELETTRICO NAZIONALE SpA;7134285639;SALDO Fatt.n. 263553255013522  del 10/09/2019 ENEL: AGO-SETT. 2019;23-09-2019;600;0;342;1;Spese correnti;3;Acquisto di beni e servizi;2;Acquisto di servizi;5;Utenze e canoni;4;Energia elettrica;23-09-2019;
1245;3;0;"338,68";"2.870,64";SERVIZIO ELETTRICO NAZIONALE SpA;7134285639;SALDO Fatt.n. 263553075001822  del 10/09/2019 ENEL: AGOSTO-SETTEMBRE 2019;23-09-2019;600;0;342;1;Spese correnti;3;Acquisto di beni e servizi;2;Acquisto di servizi;5;Utenze e canoni;4;Energia elettrica;23-09-2019;
1245;4;0;"414,03";"2.870,64";SERVIZIO ELETTRICO NAZIONALE SpA;7134285639;SALDO Fatt.n. 263557855000722  del 10/09/2019 ENEL: AGO-SETT. 2019;23-09-2019;600;0;342;1;Spese correnti;3;Acquisto di beni e servizi;2;Acquisto di servizi;5;Utenze e canoni;4;Energia elettrica;23-09-2019;
1245;5;0;"463,64";"2.870,64";SERVIZIO ELETTRICO NAZIONALE SpA;7134285639;SALDO Fatt.n. 263552955069522  del 10/09/2019 ENEL: AGO-SETT. 2019;23-09-2019;600;0;342;1;Spese correnti;3;Acquisto di beni e servizi;2;Acquisto di servizi;5;Utenze e canoni;4;Energia elettrica;23-09-2019;
1245;6;0;"482,95";"2.870,64";SERVIZIO ELETTRICO NAZIONALE SpA;7134285639;SALDO Fatt.n. 263552505054222  del 10/09/2019 ENEL: AGO-SETT. 2019;23-09-2019;600;0;342;1;Spese correnti;3;Acquisto di beni e servizi;2;Acquisto di servizi;5;Utenze e canoni;4;Energia elettrica;23-09-2019;
1245;7;0;"890,51";"2.870,64";SERVIZIO ELETTRICO NAZIONALE SpA;7134285639;SALDO Fatt.n. 263553556070022  del 10/09/2019 ENEL: AGO-SETT.2019;23-09-2019;600;0;342;1;Spese correnti;3;Acquisto di beni e servizi;2;Acquisto di servizi;5;Utenze e canoni;4;Energia elettrica;23-09-2019;
1246;1;0;"87,39";"1.272,62";SERVIZIO ELETTRICO NAZIONALE SpA;7134285639;SALDO Fatt.n. 263553356000522  del 10/09/2019 ENEL: AGO-SETT. 2019;23-09-2019;600;0;342;1;Spese correnti;3;Acquisto di beni e servizi;2;Acquisto di servizi;5;Utenze e canoni;4;Energia elettrica;23-09-2019;
1246;2;0;"92,51";"1.272,62";SERVIZIO ELETTRICO NAZIONALE SpA;7134285639;SALDO Fatt.n. 263552655019122  del 10/09/2019 ENEL: AGO-SETT. 2019;23-09-2019;600;0;342;1;Spese correnti;3;Acquisto di beni e servizi;2;Acquisto di servizi;5;Utenze e canoni;4;Energia elettrica;23-09-2019;
1246;3;0;"110,56";"1.272,62";SERVIZIO ELETTRICO NAZIONALE SpA;7134285639;SALDO Fatt.n. 263555226006522  del 10/09/2019 ENEL: AGO-SETT. 2019;23-09-2019;600;0;342;1;Spese correnti;3;Acquisto di beni e servizi;2;Acquisto di servizi;5;Utenze e canoni;4;Energia elettrica;23-09-2019;
1246;4;0;"121,89";"1.272,62";SERVIZIO ELETTRICO NAZIONALE SpA;7134285639;SALDO Fatt.n. 263558505000212  del 10/09/2019 ENEL: AGO-SETT. 2019;23-09-2019;600;0;342;1;Spese correnti;3;Acquisto di beni e servizi;2;Acquisto di servizi;5;Utenze e canoni;4;Energia elettrica;23-09-2019;
1246;5;0;"220,00";"1.272,62";SERVIZIO ELETTRICO NAZIONALE SpA;7134285639;SALDO Fatt.n. 263554605018522  del 10/09/2019 ENEL: AGO-SETT. 2019;23-09-2019;600;0;342;1;Spese correnti;3;Acquisto di beni e servizi;2;Acquisto di servizi;5;Utenze e canoni;4;Energia elettrica;23-09-2019;
1246;6;0;"280,54";"1.272,62";SERVIZIO ELETTRICO NAZIONALE SpA;7134285639;SALDO Fatt.n. 263552355001022  del 10/09/2019 ENEL: AGO-SETT. 2019;23-09-2019;600;0;342;1;Spese correnti;3;Acquisto di beni e servizi;2;Acquisto di servizi;5;Utenze e canoni;4;Energia elettrica;23-09-2019;
1246;7;0;"359,73";"1.272,62";SERVIZIO ELETTRICO NAZIONALE SpA;7134285639;SALDO Fatt.n. 263552103001022  del 10/09/2019 ENEL: AGO-SETT. 2019;23-09-2019;600;0;342;1;Spese correnti;3;Acquisto di beni e servizi;2;Acquisto di servizi;5;Utenze e canoni;4;Energia elettrica;23-09-2019;
1247;1;0;"38,03";"3.025,60";SERVIZIO ELETTRICO NAZIONALE SpA;7134285639;SALDO Fatt.n. 263553405085022  del 10/09/2019 ENEL: AGO-SETT. 2019;23-09-2019;600;0;342;1;Spese correnti;3;Acquisto di beni e servizi;2;Acquisto di servizi;5;Utenze e canoni;4;Energia elettrica;23-09-2019;
1247;2;0;"69,97";"3.025,60";SERVIZIO ELETTRICO NAZIONALE SpA;7134285639;SALDO Fatt.n. 263553705034522  del 10/09/2019 ENEL: AGO-SETT 2019;23-09-2019;600;0;342;1;Spese correnti;3;Acquisto di beni e servizi;2;Acquisto di servizi;5;Utenze e canoni;4;Energia elettrica;23-09-2019;
1247;3;0;"74,69";"3.025,60";SERVIZIO ELETTRICO NAZIONALE SpA;7134285639;SALDO Fatt.n. 263554005004012  del 10/09/2019 ENEL: AGO-SETT. 2019;23-09-2019;600;0;342;1;Spese correnti;3;Acquisto di beni e servizi;2;Acquisto di servizi;5;Utenze e canoni;4;Energia elettrica;23-09-2019;
1247;4;0;"92,12";"3.025,60";SERVIZIO ELETTRICO NAZIONALE SpA;7134285639;SALDO Fatt.n. 263553105005022  del 10/09/2019 ENEL: AGO-SETT. 2019;23-09-2019;600;0;342;1;Spese correnti;3;Acquisto di beni e servizi;2;Acquisto di servizi;5;Utenze e canoni;4;Energia elettrica;23-09-2019;
1247;5;0;"347,30";"3.025,60";SERVIZIO ELETTRICO NAZIONALE SpA;7134285639;SALDO Fatt.n. 263551603001522  del 10/09/2019 ENEL: AGO-SETT. 2019;23-09-2019;600;0;342;1;Spese correnti;3;Acquisto di beni e servizi;2;Acquisto di servizi;5;Utenze e canoni;4;Energia elettrica;23-09-2019;
1247;6;0;"861,75";"3.025,60";SERVIZIO ELETTRICO NAZIONALE SpA;7134285639;SALDO Fatt.n. 263557205052022  del 10/09/2019 ENEL: AGO - SETT. 2019;23-09-2019;600;0;342;1;Spese correnti;3;Acquisto di beni e servizi;2;Acquisto di servizi;5;Utenze e canoni;4;Energia elettrica;23-09-2019;
1247;7;0;"1.541,74";"3.025,60";SERVIZIO ELETTRICO NAZIONALE SpA;7134285639;SALDO Fatt.n. 263554753017522  del 10/09/2019 ENEL: AGO-SETT. 2019;23-09-2019;600;0;342;1;Spese correnti;3;Acquisto di beni e servizi;2;Acquisto di servizi;5;Utenze e canoni;4;Energia elettrica;23-09-2019;
1248;1;0;"63,96";"2.771,92";SERVIZIO ELETTRICO NAZIONALE SpA;7134285639;SALDO Fatt.n. 263556405000512  del 10/09/2019 ENEL: AGO-SETT. 2019;23-09-2019;600;0;342;1;Spese correnti;3;Acquisto di beni e servizi;2;Acquisto di servizi;5;Utenze e canoni;4;Energia elettrica;23-09-2019;
1248;2;0;"117,21";"2.771,92";SERVIZIO ELETTRICO NAZIONALE SpA;7134285639;SALDO Fatt.n. 263551755011422  del 10/09/2019 ENEL: AGO-SETT. 2019;23-09-2019;600;0;342;1;Spese correnti;3;Acquisto di beni e servizi;2;Acquisto di servizi;5;Utenze e canoni;4;Energia elettrica;23-09-2019;
1248;3;0;"177,72";"2.771,92";SERVIZIO ELETTRICO NAZIONALE SpA;7134285639;SALDO Fatt.n. 263557405021022  del 10/09/2019 ENEL: AGO. - SETT. 2019;23-09-2019;600;0;342;1;Spese correnti;3;Acquisto di beni e servizi;2;Acquisto di servizi;5;Utenze e canoni;4;Energia elettrica;23-09-2019;
1248;4;0;"212,50";"2.771,92";SERVIZIO ELETTRICO NAZIONALE SpA;7134285639;SALDO Fatt.n. 263555806046322  del 10/09/2019 ENEL: AGO-SETT. 2019;23-09-2019;600;0;342;1;Spese correnti;3;Acquisto di beni e servizi;2;Acquisto di servizi;5;Utenze e canoni;4;Energia elettrica;23-09-2019;
1248;5;0;"256,71";"2.771,92";SERVIZIO ELETTRICO NAZIONALE SpA;7134285639;SALDO Fatt.n. 263555005016521  del 10/09/2019 ENEL: AGO-SETT. 2019;23-09-2019;600;0;342;1;Spese correnti;3;Acquisto di beni e servizi;2;Acquisto di servizi;5;Utenze e canoni;4;Energia elettrica;23-09-2019;
1248;6;0;"814,84";"2.771,92";SERVIZIO ELETTRICO NAZIONALE SpA;7134285639;SALDO Fatt.n. 263553056001022  del 10/09/2019 ENEL: AGO-SETT. 2019;23-09-2019;600;0;342;1;Spese correnti;3;Acquisto di beni e servizi;2;Acquisto di servizi;5;Utenze e canoni;4;Energia elettrica;23-09-2019;
1248;7;0;"1.128,98";"2.771,92";SERVIZIO ELETTRICO NAZIONALE SpA;7134285639;SALDO Fatt.n. 263554153015522  del 10/09/2019 ENEL: AGO-SETT. 2019;23-09-2019;600;0;342;1;Spese correnti;3;Acquisto di beni e servizi;2;Acquisto di servizi;5;Utenze e canoni;4;Energia elettrica;23-09-2019;
1249;1;0;"45,26";"2.785,45";SERVIZIO ELETTRICO NAZIONALE SpA;7134285639;SALDO Fatt.n. 263556202001022  del 10/09/2019 ENEL: AGO-SETT. 2019;23-09-2019;600;0;342;1;Spese correnti;3;Acquisto di beni e servizi;2;Acquisto di servizi;5;Utenze e canoni;4;Energia elettrica;23-09-2019;
1249;2;0;"81,56";"2.785,45";SERVIZIO ELETTRICO NAZIONALE SpA;7134285639;SALDO Fatt.n. 263554455040022  del 10/09/2019 ENEL: AGO-SETT. 2019;23-09-2019;600;0;342;1;Spese correnti;3;Acquisto di beni e servizi;2;Acquisto di servizi;5;Utenze e canoni;4;Energia elettrica;23-09-2019;
1249;3;0;"132,27";"2.785,45";SERVIZIO ELETTRICO NAZIONALE SpA;7134285639;SALDO Fatt.n. 263555505042022  del 10/09/2019 ENEL: AGO -SETT. 2019;23-09-2019;600;0;342;1;Spese correnti;3;Acquisto di beni e servizi;2;Acquisto di servizi;5;Utenze e canoni;4;Energia elettrica;23-09-2019;
1249;4;0;"157,82";"2.785,45";SERVIZIO ELETTRICO NAZIONALE SpA;7134285639;SALDO Fatt.n. 263557855013522  del 10/09/2019 ENEL: AGO-SETT.2019;23-09-2019;600;0;342;1;Spese correnti;3;Acquisto di beni e servizi;2;Acquisto di servizi;5;Utenze e canoni;4;Energia elettrica;23-09-2019;
1249;5;0;"192,96";"2.785,45";SERVIZIO ELETTRICO NAZIONALE SpA;7134285639;SALDO Fatt.n. 263556423052022  del 10/09/2019 ENEL: AGO-SETT. 2019;23-09-2019;600;0;342;1;Spese correnti;3;Acquisto di beni e servizi;2;Acquisto di servizi;5;Utenze e canoni;4;Energia elettrica;23-09-2019;
1249;6;0;"333,76";"2.785,45";SERVIZIO ELETTRICO NAZIONALE SpA;7134285639;SALDO Fatt.n. 263552205014422  del 10/09/2019 ENEL: AGO-SETT. 2019;23-09-2019;600;0;342;1;Spese correnti;3;Acquisto di beni e servizi;2;Acquisto di servizi;5;Utenze e canoni;4;Energia elettrica;23-09-2019;
1249;7;0;"356,73";"2.785,45";SERVIZIO ELETTRICO NAZIONALE SpA;7134285639;SALDO Fatt.n. 263554306019022  del 10/09/2019 ENEL: AGO-SETT. 2019;23-09-2019;600;0;342;1;Spese correnti;3;Acquisto di beni e servizi;2;Acquisto di servizi;5;Utenze e canoni;4;Energia elettrica;23-09-2019;
1249;8;0;"605,30";"2.785,45";SERVIZIO ELETTRICO NAZIONALE SpA;7134285639;SALDO Fatt.n. 263555802001022  del 10/09/2019 ENEL: AGO-SETT. 2019;23-09-2019;600;0;342;1;Spese correnti;3;Acquisto di beni e servizi;2;Acquisto di servizi;5;Utenze e canoni;4;Energia elettrica;23-09-2019;
1249;9;0;"879,79";"2.785,45";SERVIZIO ELETTRICO NAZIONALE SpA;7134285639;SALDO Fatt.n. 263552823001122  del 10/09/2019 ENEL: AGO-SETT. 2019;23-09-2019;600;0;342;1;Spese correnti;3;Acquisto di beni e servizi;2;Acquisto di servizi;5;Utenze e canoni;4;Energia elettrica;23-09-2019;
1250;1;0;"286,87";"609,43";SERVIZIO ELETTRICO NAZIONALE SpA;7134285639;SALDO Fatt.n. 263558703001124  del 10/09/2019 ENEL: AGO-SETT. 2019;23-09-2019;530;0;340;1;Spese correnti;3;Acquisto di beni e servizi;2;Acquisto di servizi;5;Utenze e canoni;4;Energia elettrica;23-09-2019;
1250;2;0;"322,56";"609,43";SERVIZIO ELETTRICO NAZIONALE SpA;7134285639;SALDO Fatt.n. 263557855000534  del 10/09/2019 ENEL: AGO-SETT. 2019;23-09-2019;530;0;340;1;Spese correnti;3;Acquisto di beni e servizi;2;Acquisto di servizi;5;Utenze e canoni;4;Energia elettrica;23-09-2019;
1251;1;0;"17,73";"918,83";SERVIZIO ELETTRICO NAZIONALE SpA;7134285639;SALDO Fatt.n. 263552205013411  del 17/05/2019 ENEL LA ROGGIA: MAGGIO 2019;23-09-2019;561;2;341;1;Spese correnti;3;Acquisto di beni e servizi;2;Acquisto di servizi;5;Utenze e canoni;4;Energia elettrica;23-09-2019;
1251;2;0;"119,56";"918,83";SERVIZIO ELETTRICO NAZIONALE SpA;7134285639;SALDO Fatt.n. 263558005001242  del 10/09/2019 ENEL: AGO-SETT. 2019;23-09-2019;561;2;341;1;Spese correnti;3;Acquisto di beni e servizi;2;Acquisto di servizi;5;Utenze e canoni;4;Energia elettrica;23-09-2019;
1251;3;0;"781,54";"918,83";SERVIZIO ELETTRICO NAZIONALE SpA;7134285639;SALDO Fatt.n. 263552205013415  del 03/09/2019 ENEL - AGOSTO 2019;23-09-2019;561;2;341;1;Spese correnti;3;Acquisto di beni e servizi;2;Acquisto di servizi;5;Utenze e canoni;4;Energia elettrica;23-09-2019;
1252;1;0;"550,17";"550,17";SERVIZIO ELETTRICO NAZIONALE SpA;7134285639;SALDO Fatt.n. 263556202002924  del 10/09/2019 ENEL: AGO-SETT. 2019;23-09-2019;34;0;333;1;Spese correnti;3;Acquisto di beni e servizi;2;Acquisto di servizi;5;Utenze e canoni;4;Energia elettrica;23-09-2019;
1253;1;0;"184,17";"184,17";SERVIZIO ELETTRICO NAZIONALE SpA;7134285639;SALDO Fatt.n. 263558703010012  del 06/09/2019 ENEL - AGOSTO 2019;23-09-2019;71;0;334;1;Spese correnti;3;Acquisto di beni e servizi;2;Acquisto di servizi;5;Utenze e canoni;4;Energia elettrica;23-09-2019;
1254;1;0;"126,73";"126,73";SERVIZIO ELETTRICO NAZIONALE SpA;7134285639;SALDO Fatt.n. 263556805005524  del 10/09/2019 ENEL: AGO-SETT. 2019;23-09-2019;310;0;338;1;Spese correnti;3;Acquisto di beni e servizi;2;Acquisto di servizi;5;Utenze e canoni;4;Energia elettrica;23-09-2019;
1255;1;0;"36,54";"858,12";SERVIZIO ELETTRICO NAZIONALE SpA;7134285639;SALDO Fatt.n. 263551155002024  del 10/09/2019 ENEL: AGO-SETT. 2019;23-09-2019;235;0;335;1;Spese correnti;3;Acquisto di beni e servizi;2;Acquisto di servizi;5;Utenze e canoni;4;Energia elettrica;23-09-2019;
1255;2;0;"323,43";"858,12";SERVIZIO ELETTRICO NAZIONALE SpA;7134285639;SALDO Fatt.n. 263555804069042  del 10/09/2019 ENEL: AGO-SETT. 2019;23-09-2019;235;0;335;1;Spese correnti;3;Acquisto di beni e servizi;2;Acquisto di servizi;5;Utenze e canoni;4;Energia elettrica;23-09-2019;
1255;3;0;"498,15";"858,12";SERVIZIO ELETTRICO NAZIONALE SpA;7134285639;SALDO Fatt.n. 263554302002024  del 10/09/2019 ENEL: AGOSTO 2019;23-09-2019;235;0;335;1;Spese correnti;3;Acquisto di beni e servizi;2;Acquisto di servizi;5;Utenze e canoni;4;Energia elettrica;23-09-2019;
1256;1;0;"55,22";"55,22";LA IDROFERRAMENTA SRL;Z192700D74;SALDO Fatt.n. 69/PA  del 31/07/2019 CASSETTA PORTATTREZZI;23-09-2019;591;0;58;1;Spese correnti;3;Acquisto di beni e servizi;1;Acquisto di beni;2;Altri beni di consumo;999;Altri beni e materiali di consumo n.a.c.;23-09-2019;
1257;1;0;"5,65";"300,85";POSTE ITALIANE SPA - PROVENTI POLO LOGISTICO;Z6F2648DBC;SALDO Fatt.n. 8719278160  del 11/09/2019 FATTURAZIONE SPESE POSTALI MESE DI LUGLIO 2019;23-09-2019;34;3;539;1;Spese correnti;3;Acquisto di beni e servizi;2;Acquisto di servizi;16;Servizi amministrativi;2;Spese postali;23-09-2019;
1257;2;0;"295,20";"300,85";POSTE ITALIANE SPA - PROVENTI POLO LOGISTICO;Z6F2648DBC;SALDO Fatt.n. 8719278161  del 11/09/2019 FATTURAZIONE SPESE POSTALI MESE DI AGOSTO 2019;23-09-2019;34;3;539;1;Spese correnti;3;Acquisto di beni e servizi;2;Acquisto di servizi;16;Servizi amministrativi;2;Spese postali;23-09-2019;
1258;1;0;"1.781,82";"1.781,82";UNICOOPER SERVIZI S.C.R.L.;Z0128215E5;SALDO Fatt.n. 1433  del 31/08/2019 PULIZIA EDIFICI COMUNALI - AGOSTO 2019;23-09-2019;178;1;193;1;Spese correnti;3;Acquisto di beni e servizi;2;Acquisto di servizi;13;Servizi ausiliari per il funzionamento dell'ente;2;Servizi di pulizia e lavanderia;23-09-2019;
1259;1;0;"800,00";"800,00";UNICOOPER SERVIZI S.C.R.L.;Z8320E86EF;ACCONTO Fatt.n. 1446  del 31/08/2019 PULIZIE CENTRO LA ROGGIA - LUGLIO E AGOSTO 2019;23-09-2019;71;1;192;1;Spese correnti;3;Acquisto di beni e servizi;2;Acquisto di servizi;13;Servizi ausiliari per il funzionamento dell'ente;2;Servizi di pulizia e lavanderia;23-09-2019;
1260;1;0;"590,50";"590,50";UNICOOPER SERVIZI S.C.R.L.;Z8320E86EF;ACCONTO Fatt.n. 1446  del 31/08/2019 PULIZIE CENTRO LA ROGGIA - LUGLIO E AGOSTO 2019;23-09-2019;178;1;143;1;Spese correnti;3;Acquisto di beni e servizi;2;Acquisto di servizi;13;Servizi ausiliari per il funzionamento dell'ente;2;Servizi di pulizia e lavanderia;23-09-2019;
1261;1;0;"299,01";"299,01";UNICOOPER SERVIZI S.C.R.L.;Z8320E86EF;ACCONTO Fatt.n. 1446  del 31/08/2019 PULIZIE CENTRO LA ROGGIA - LUGLIO E AGOSTO 2019;23-09-2019;71;1;142;1;Spese correnti;3;Acquisto di beni e servizi;2;Acquisto di servizi;13;Servizi ausiliari per il funzionamento dell'ente;2;Servizi di pulizia e lavanderia;23-09-2019;
1262;1;0;"150,00";"150,00";UNICOOPER SERVIZI S.C.R.L.;Z8320E86EF;ACCONTO Fatt.n. 1446  del 31/08/2019 PULIZIE CENTRO LA ROGGIA - LUGLIO E AGOSTO 2019;23-09-2019;178;2;195;1;Spese correnti;3;Acquisto di beni e servizi;2;Acquisto di servizi;9;Manutenzione ordinaria e riparazioni;3;Manutenzione ordinaria e riparazioni di mobili e arredi;23-09-2019;
1263;1;0;"169,96";"169,96";UNICOOPER SERVIZI S.C.R.L.;Z8320E86EF;ACCONTO Fatt.n. 1446  del 31/08/2019 PULIZIE CENTRO LA ROGGIA - LUGLIO E AGOSTO 2019;23-09-2019;34;1;564;1;Spese correnti;3;Acquisto di beni e servizi;2;Acquisto di servizi;9;Manutenzione ordinaria e riparazioni;8;Manutenzione ordinaria e riparazioni di beni immobili;23-09-2019;
1264;1;0;"14,51";"14,51";UNICOOPER SERVIZI S.C.R.L.;Z8320E86EF;SALDO Fatt.n. 1446  del 31/08/2019 PULIZIE CENTRO LA ROGGIA - LUGLIO E AGOSTO 2019;23-09-2019;34;2;565;1;Spese correnti;3;Acquisto di beni e servizi;2;Acquisto di servizi;13;Servizi ausiliari per il funzionamento dell'ente;1;"Servizi di sorveglianza, custodia e accoglienza";23-09-2019;
1265;1;0;"155,88";"322,92";GREEN TELECOMUNICAZIONI S.P.A.;Z40279DD24;SALDO Fatt.n. E16388  del 12/09/2019 Traffico Telefonico Periodo: agosto 2019;23-09-2019;34;0;136;1;Spese correnti;3;Acquisto di beni e servizi;2;Acquisto di servizi;5;Utenze e canoni;1;Telefonia fissa;23-09-2019;
1265;2;0;"167,04";"322,92";GREEN TELECOMUNICAZIONI S.P.A.;Z40279DD24;SALDO Fatt.n. E17582  del 12/09/2019 Traffico Telefonico Periodo: agosto 2019;23-09-2019;34;0;136;1;Spese correnti;3;Acquisto di beni e servizi;2;Acquisto di servizi;5;Utenze e canoni;1;Telefonia fissa;23-09-2019;
1266;1;0;"2.537,60";"2.537,60";FILIPPIN ADRIANO;Z7A262F6DD;SALDO Fatt.n. 135  del 16/09/2019 SPESE PROGETTAZIONE PLESSO SCOLASTICO;23-09-2019;775;5;497;2;Spese in conto capitale;2;Investimenti fissi lordi e acquisto di terreni;3;Beni immateriali;5;Incarichi professionali per la realizzazione di investimenti;1;Incarichi professionali per la realizzazione di investimenti;23-09-2019;
1267;1;0;"158,60";"158,60";IMQ S.P.A.;Z8125B7DE5;SALDO Fatt.n. 119023539  del 12/09/2019 Collaudo/Verifica impianti elevatori;23-09-2019;311;0;449;1;Spese correnti;3;Acquisto di beni e servizi;2;Acquisto di servizi;5;Utenze e canoni;999;Utenze e canoni per altri servizi n.a.c.;23-09-2019;
1268;1;0;"27,05";"27,05";SICURITALIA S.P.A.;Z3827208DE;SALDO Fatt.n. 9117007259  del 12/09/2019 SERVIZIO DI PRONTO INTERVENTO CENTRO POLIV.;23-09-2019;71;0;89;1;Spese correnti;3;Acquisto di beni e servizi;2;Acquisto di servizi;5;Utenze e canoni;999;Utenze e canoni per altri servizi n.a.c.;23-09-2019;
1269;1;0;"5.500,00";"5.500,00";TECNO METAL S.R.L.;Z2B290C978;SALDO Fatt.n. 00005/R3  del 16/09/2019 TENDE FRANGISOLE PLESSO SCOLASTICO;23-09-2019;775;0;362;2;Spese in conto capitale;2;Investimenti fissi lordi e acquisto di terreni;1;Beni materiali;9;Beni immobili;3;Fabbricati ad uso scolastico;23-09-2019;
1270;1;0;"19.800,00";"19.800,00";TERMOIDRAULICA SERRAGLIO S.A.S. DI S. SERRAGLIO & C.;Z54291A26B;SALDO Fatt.n. 36  del 18/09/2019 RIFACIMENTO PARZIALE CIRCUITI TERMICO SCUOLE;23-09-2019;775;0;361;2;Spese in conto capitale;2;Investimenti fissi lordi e acquisto di terreni;1;Beni materiali;9;Beni immobili;3;Fabbricati ad uso scolastico;23-09-2019;
1272;1;0;"524,60";"524,60";SICURITALIA S.P.A.;Z3827208DE;SALDO Fatt.n. 9117007210  del 02/09/2019 SERVIZIO DI PRONTO INTERVENTO ED. COMUNALI;23-09-2019;235;0;92;1;Spese correnti;3;Acquisto di beni e servizi;2;Acquisto di servizi;5;Utenze e canoni;999;Utenze e canoni per altri servizi n.a.c.;23-09-2019;
1275;1;0;"9,71";"9,71";ALTO TREVIGIANO SERVIZI S.R.L.;ZF9282AA1E;SALDO Fatt.n. O2201900006057  del 14/09/2019 SERVIZIO IDRICO;27-09-2019;313;2;208;1;Spese correnti;3;Acquisto di beni e servizi;2;Acquisto di servizi;5;Utenze e canoni;5;Acqua;27-09-2019;
1276;1;0;"200,00";"200,00";ALBERTON FERRAMENTA E CASALINGHI SNC DI ALBERTON P.& C.;ZF024B19FE;ACCONTO Fatt.n. 2/PA  del 24/09/2019 FORNITURA MATERIALI DI FERRAMENTA E MINUTERIA;27-09-2019;589;1;445;1;Spese correnti;3;Acquisto di beni e servizi;2;Acquisto di servizi;9;Manutenzione ordinaria e riparazioni;12;Manutenzione ordinaria e riparazioni di terreni e beni materiali non prodotti;27-09-2019;
1277;1;0;"408,05";"408,05";ALBERTON FERRAMENTA E CASALINGHI SNC DI ALBERTON P.& C.;ZF024B19FE;SALDO Fatt.n. 2/PA  del 24/09/2019 FORNITURA MATERIALI DI FERRAMENTA E MINUTERIA;27-09-2019;591;0;444;1;Spese correnti;3;Acquisto di beni e servizi;1;Acquisto di beni;2;Altri beni di consumo;999;Altri beni e materiali di consumo n.a.c.;27-09-2019;
1278;1;0;"312,00";"312,00";GAZZOLA GIANANTONIO;Z7529DD934;SALDO Fatt.n. 19/2019  del 23/07/2019 AFFIDAMENTO COLLAUDO ANNUALE PALCO COMUNALE;27-09-2019;71;2;458;1;Spese correnti;3;Acquisto di beni e servizi;1;Acquisto di beni;2;Altri beni di consumo;999;Altri beni e materiali di consumo n.a.c.;27-09-2019;
1279;1;0;"349,01";"1.945,37";SOCIETA' CONTARINA S.P.A.;Z8E282245E;SALDO Fatt.n. 0001665/VET  del 23/09/2019 TARIFFA GESTIONE RIFIUTI URBANI-  2 SEMESTRE 2019;27-09-2019;463;0;196;1;Spese correnti;3;Acquisto di beni e servizi;2;Acquisto di servizi;15;Contratti di servizio pubblico;4;Contratti di servizio per la raccolta rifiuti;27-09-2019;
1279;2;0;"363,65";"1.945,37";SOCIETA' CONTARINA S.P.A.;Z8E282245E;SALDO Fatt.n. 0001705/VET  del 23/09/2019 TARIFFA GESTIONE RIFIUTI URBANI -2 SEMESTRE 2019;27-09-2019;463;0;196;1;Spese correnti;3;Acquisto di beni e servizi;2;Acquisto di servizi;15;Contratti di servizio pubblico;4;Contratti di servizio per la raccolta rifiuti;27-09-2019;
1279;3;0;"373,89";"1.945,37";SOCIETA' CONTARINA S.P.A.;Z8E282245E;ACCONTO Fatt.n. 0001622/VET  del 23/09/2019 TARIFFA GESTIONE RIFIUTI URBANI - 2 SEMESTRE 2019;27-09-2019;463;0;196;1;Spese correnti;3;Acquisto di beni e servizi;2;Acquisto di servizi;15;Contratti di servizio pubblico;4;Contratti di servizio per la raccolta rifiuti;27-09-2019;
1279;4;0;"858,82";"1.945,37";SOCIETA' CONTARINA S.P.A.;Z8E282245E;SALDO Fatt.n. 0001666/VET  del 23/09/2019 TARIFFA GESTIONE RIFIUTI URBANI - 2 SEMESTRE 2019;27-09-2019;463;0;196;1;Spese correnti;3;Acquisto di beni e servizi;2;Acquisto di servizi;15;Contratti di servizio pubblico;4;Contratti di servizio per la raccolta rifiuti;27-09-2019;
1280;1;0;"22,40";"2.962,61";SOCIETA' CONTARINA S.P.A.;Z8E282245E;SALDO Fatt.n. 0001622/VET  del 23/09/2019 TARIFFA GESTIONE RIFIUTI URBANI - 2 SEMESTRE 2019;27-09-2019;463;0;461;1;Spese correnti;3;Acquisto di beni e servizi;2;Acquisto di servizi;15;Contratti di servizio pubblico;4;Contratti di servizio per la raccolta rifiuti;27-09-2019;
1280;2;0;"207,37";"2.962,61";SOCIETA' CONTARINA S.P.A.;Z8E282245E;SALDO Fatt.n. 0001706/VET  del 23/09/2019 TARIFFA GESTIONE RIFIUTI URBANI - 2 SEMESTRE 2019;27-09-2019;463;0;461;1;Spese correnti;3;Acquisto di beni e servizi;2;Acquisto di servizi;15;Contratti di servizio pubblico;4;Contratti di servizio per la raccolta rifiuti;27-09-2019;
1280;3;0;"363,65";"2.962,61";SOCIETA' CONTARINA S.P.A.;Z8E282245E;SALDO Fatt.n. 0001704/VET  del 23/09/2019 TARIFFA GESTIONE RIFIUTI URBANI - 2 SEMESTRE 2019;27-09-2019;463;0;461;1;Spese correnti;3;Acquisto di beni e servizi;2;Acquisto di servizi;15;Contratti di servizio pubblico;4;Contratti di servizio per la raccolta rifiuti;27-09-2019;
1280;4;0;"388,55";"2.962,61";SOCIETA' CONTARINA S.P.A.;Z8E282245E;SALDO Fatt.n. 0001576/VET  del 23/09/2019 TARIFFA GESTIONE RIFIUTI URBANI - 2 SEMESTRE 2019;27-09-2019;463;0;461;1;Spese correnti;3;Acquisto di beni e servizi;2;Acquisto di servizi;15;Contratti di servizio pubblico;4;Contratti di servizio per la raccolta rifiuti;27-09-2019;
1280;5;0;"398,56";"2.962,61";SOCIETA' CONTARINA S.P.A.;Z8E282245E;SALDO Fatt.n. 0001754/VET  del 23/09/2019 TARIFFA GESTIONE RIFIUTI URBANI - 2 SEMESTRE 2019;27-09-2019;463;0;461;1;Spese correnti;3;Acquisto di beni e servizi;2;Acquisto di servizi;15;Contratti di servizio pubblico;4;Contratti di servizio per la raccolta rifiuti;27-09-2019;
1280;6;0;"409,90";"2.962,61";SOCIETA' CONTARINA S.P.A.;Z8E282245E;SALDO Fatt.n. 0001664/VET  del 23/09/2019 TARIFFA GESTIONE RIFIUTI URBANI - 2 SEMESTRE 2019;27-09-2019;463;0;461;1;Spese correnti;3;Acquisto di beni e servizi;2;Acquisto di servizi;15;Contratti di servizio pubblico;4;Contratti di servizio per la raccolta rifiuti;27-09-2019;
1280;7;0;"430,86";"2.962,61";SOCIETA' CONTARINA S.P.A.;Z8E282245E;SALDO Fatt.n. 0001755/VET  del 23/09/2019 TARIFFA GESTIONE RIFIUTI URBANI - 2 SEMESTRE 2019;27-09-2019;463;0;461;1;Spese correnti;3;Acquisto di beni e servizi;2;Acquisto di servizi;15;Contratti di servizio pubblico;4;Contratti di servizio per la raccolta rifiuti;27-09-2019;
1280;8;0;"741,32";"2.962,61";SOCIETA' CONTARINA S.P.A.;Z8E282245E;SALDO Fatt.n. 0001574/VET  del 23/09/2019 TARIFFA GESTIONE RIFIUTI URBANI - 2 SEMESTRE 2019;27-09-2019;463;0;461;1;Spese correnti;3;Acquisto di beni e servizi;2;Acquisto di servizi;15;Contratti di servizio pubblico;4;Contratti di servizio per la raccolta rifiuti;27-09-2019;
1281;1;0;"1.830,00";"1.830,00";TERMOIDRAULICA SERRAGLIO S.A.S. DI S. SERRAGLIO & C.;Z3929DEA5E;SALDO Fatt.n. 37  del 25/09/2019 LAVORI DI ORDINARIA MANUTENZIONE;27-09-2019;745;0;459;2;Spese in conto capitale;2;Investimenti fissi lordi e acquisto di terreni;1;Beni materiali;9;Beni immobili;3;Fabbricati ad uso scolastico;27-09-2019;
1282;1;0;"3.000,00";"3.000,00";FORNITECNICA S.R.L.;Z792964203;ACCONTO Fatt.n. 000461PA19  del 11/09/2019 FORNITURA DI QUATTRO MONITOR INTERATTIVI PER SCUOLE;27-09-2019;774;0;387;2;Spese in conto capitale;2;Investimenti fissi lordi e acquisto di terreni;1;Beni materiali;3;Mobili e arredi;999;Mobili e arredi n.a.c.;27-09-2019;
1283;1;0;"5.296,00";"5.296,00";FORNITECNICA S.R.L.;Z792964203;SALDO Fatt.n. 000461PA19  del 11/09/2019 FORNITURA DI QUATTRO MONITOR INTERATTIVI PER SCUOLE;27-09-2019;772;0;388;2;Spese in conto capitale;2;Investimenti fissi lordi e acquisto di terreni;1;Beni materiali;9;Beni immobili;3;Fabbricati ad uso scolastico;27-09-2019;
1284;1;0;"12.859,00";"12.859,00";EVOLUTION FLOOR S.R.L.S.;Z7027B24CF;SALDO Fatt.n. 51  del 24/09/2019 CAMMINAMENTI E GRADINI IN CALCESTRUZZO VILLA RUBELLI;27-09-2019;780;0;148;2;Spese in conto capitale;2;Investimenti fissi lordi e acquisto di terreni;1;Beni materiali;9;Beni immobili;13;Altre vie di comunicazione;27-09-2019;
1285;1;0;"64,62";"64,62";CED DIGITAL & SERVIZI SRL;ZE729A8873;SALDO Fatt.n. P190000195  del 10/09/2019 Carta . Digital Gazzettino - 1 Anno;27-09-2019;304;0;437;1;Spese correnti;3;Acquisto di beni e servizi;1;Acquisto di beni;1;"Giornali, riviste e pubblicazioni";1;Giornali e riviste;27-09-2019;
1286;1;0;"65,00";"65,00";EGAF EDIZIONI SRL;Z2729A298F;SALDO Fatt.n. 2019-V-VE2-79  del 19/09/2019 TESTI PER UFFICIO POLIZIA LOCALE;27-09-2019;178;0;450;1;Spese correnti;3;Acquisto di beni e servizi;1;Acquisto di beni;2;Altri beni di consumo;1;"Carta, cancelleria e stampati";27-09-2019;
